Workbook

Sheet MotorSpecs1
B2: Combined Motor and Amplifier Specification Sheet
B3: Motor Model Number | C3: =MotorData1!B5 -> K089075-5Y_
B4: Amplifier Model Number | C4: =DriveData1!B5 -> Custom
B5: Motor Thermal Test Condition | C5: =MotorData1!B27 -> K089 Housed in a motor frame. Typically an aluminum cylinder with 0.250in thick walls, mounted to a 8in x 8in x 0.5in aluminum plate
B6: Description | C6: Notes | D6: Symbol | E6: Units | F6: Value | J6: Torque Speed Data Page Name:
B7: Stall Torque Continuous | C7: 1,2,3,4,11,13 | D7: Tcs | E7: Nm | F7: =MotorData1!B31/141.6 -> 2.003531073 | J7: TSData1
B8: Stall Torque Continuous | C8: 1,2,3,4,11,13 | D8: Tcs | E8: in-lb | F8: =MotorData1!B31/16 -> 17.73125
B9: Stall Torque Continuous | C9: 1,2,3,4,11,13 | D9: Tcs | E9: oz-in | F9: =MotorData1!B31 -> 283.7
B10: Stall Current Continuous | C10: 1,2,3,4,11,13 | D10: Ics(rms) | E10: Arms | F10: =MotorData1!B33*SQRT(2/3) -> 10.00208312
B11: Stall Current Continuous | C11: 1,2,3,4,11,13 | D11: Ics(trap) | E11: Amps DC | F11: =MotorData1!B33 -> 12.25
B12: Peak Torque | C12: 4,11 | D12: Tpk | E12: Nm | F12: =MotorData1!B32/141.6 -> 2.003531073
B13: Peak Torque | C13: 4,11 | D13: Tpk | E13: in-lb | F13: =MotorData1!B32/16 -> 17.73125
B14: Peak Torque | C14: 4,11 | D14: Tpk | E14: oz-in | F14: =MotorData1!B32 -> 283.7
B15: Peak Current | D15: Ipk(rms) | E15: Arms | F15: =MotorData1!B34*SQRT(2/3) -> 10.00208312
B16: Peak Current | D16: Ipk(trap) | E16: Amps DC | F16: =MotorData1!B34 -> 12.25
B17: Rated Speed | C17: 1,2,3 | D17: Sr | E17: rpm | F17: =MotorData1!B35 -> 2007
B18: Rated Torque | C18: 1,2,3,4,11 | D18: Tr | E18: Nm | F18: =MotorData1!B36/141.6 -> 1.986581921
B19: Rated Torque | C19: 1,2,3,4,11 | D19: Tr | E19: in-lb | F19: =MotorData1!B36/16 -> 17.58125
B20: Rated Torque | C20: 1,2,3,4,11 | D20: Tr | E20: oz-in | F20: =MotorData1!B36 -> 281.3
B21: Rated Shaft Output Power | C21: 1,2,3,4,11 | D21: Pout | E21: kW | F21: =MotorData1!B37/1000 -> 0.4176
B22: Current at Rated Speed | C22: 1,2,3,4,11 | D22: Ir | E22: Arms | F22: =MotorData1!B38/SQRT(2) -> 9.963134547
B23: Voltage Constant | C23: 9,10,12 | D23: Kb | E23: V/rad/s | F23: =MotorData1!B7 -> 0.167
B24: Voltage Constant | C24: 9,10,12 | D24: Ke | E24: Vrms/krpm | F24: =2*3.1415927*1000*F23/60/SQRT(2) -> 12.36602436
B25: Torque Constant | C25: 4,9,12 | D25: Kt(sine) | E25: Nm/Arms | F25: =F23*SQRT(3/2) -> 0.2045323935
B26: Torque Constant | C26: 4,9,12 | D26: Kt(trap) | E26: Oz*in/Amp DC | F26: =MotorData1!B7*141.6 -> 23.6472
B27: Resistance | C27: 4,9,12 | D27: R | E27: ohm | F27: =MotorData1!B8 -> 0.5505
B28: Inductance | C28: 5,9 | D28: L | E28: mH | F28: =(MotorData1!B9+MotorData1!B10)*500 -> 1.073
B29: Max DC bus Voltage | C29: 6 | D29: Vmbus | E29: VDCmax | F29: =MotorData1!B12 -> 340.0
B30: Max AC Voltage | C30: 6 | D30: Vs | E30: VAC | F30: =F29/SQRT(2) -> 240.4163056
B31: Winding-Amb Thermal Resist | C31: 6,4 | D31: Rthw-a | E31: °C/W | F31: =MotorData1!B13 -> 1.020
B32: Winding-Case Thermal Resist | C32: 6,4 | D32: Rthw-c | E32: °C/W | F32: =MotorData1!B14 -> 0.3238 | H32: Chart Units: | N32: Chart Units: | T32: Chart units:
B33: Ambient Temp at Rating | D33: Tamb | E33: °C | F33: =MotorData1!B19 -> 25.00
B34: Max Winding Temp | D34: Tmax | E34: °C | F34: =MotorData1!B17 -> 155.0
B35: Winding Temp at Rating | C35: 7 | D35: Twr | E35: °C | F35: =MotorData1!B39 -> 155.0
B36: Motor Thermal Time Constant | C36: 6,5 | D36: tthc | E36: minutes | F36: =MotorData1!B25/60 -> 28
B37: Winding Thermal Time Constant | C37: 6,5 | D37: tthw | E37: minutes | F37: =MotorData1!B26/60 -> 2.75
B38: Rotor Shaft Viscous Damping | C38: 6,5 | D38: B | E38: Nm/krpm | F38: =MotorData1!B15/141.6 -> 0.005105225989
B39: Rotor Shaft Dynamic Friction | C39: 6,5 | D39: Tf | E39: Nm | F39: =MotorData1!B16/141.6 -> 0.01449152542 | H39: Blue Dotted is the Continuous Torque | N39: Blue Dotted is the Continuous Current | T39: Blue Dotted is the Continuous Output Power | Z39: Blue Dotted is the Continuous Efficiency | AF39: Blue Dotted is the Adv Angle w Cont Cur | AK39: Blue Dotted is the Motor Volts w Cont Cur | AP39: Blue Dashed is a linear line with initial slope
B40: Rotor Inertia | C40: 6,4 | D40: J | E40: kg-m2 | F40: =MotorData1!B11*0.00706154 -> 5.649938154e-05 | H40: Blue Solid is the Peak Torque | N40: Blue Solid is the Peak Current | T40: Blue Solid is the Peak Output Power | Z40: Blue Solid is the Peak Efficiency | AF40: Blue Solid is the Adv Angle w Peak Cur | AK40: Blue Solid is the Motor Votls w Peak Cur | AP40: Red solid line is Galaxy saturation model
B41: Rotor Inertia | C41: 6,4 | D41: J | E41: in-lb-sec2 | F41: =MotorData1!B11*0.0624998 -> 0.0005000608998 | H41: ="Lt Blue Dotted is battery cont current limit ("&TSData1!BF2&"Amps)" -> Lt Blue Dotted is battery cont current limit (-10Amps) | N41: Green Dotted is the Continuous Current LV | T41: The orange line is the moving losses is the motor | Z41: Efficiency is Torque*Speed/Volts*Amp for Positive Speed | AF41: Green Dotted is the Adv Angle w Cont Cur LV | AK41: Red is Motor Back EMF | AP41: Green Solid is the FEA Predicted saturatation curve at raed magnet temperature
B42: Number of rotor magnet poles | D42: Np | E42: #poles | F42: =MotorData1!B21 -> 12.00 | H42: ="Lt Blue solid is battery peak current limit ("&TSData1!BF1&"Amps)" -> Lt Blue solid is battery peak current limit (-10Amps) | N42: Green Solid is the Peak Current LV | T42: Dotted Red is the Continuous Resistive Dissipation | Z42: Efficiency is Volts*Amp/Torque*Speed for Negative Speed | AF42: Green Solid is the Adv Angle w Peak Cur LV | AK42: Purple is the bus Voltage
B43: Motor Weight | C43: 6,4 | D43: weight | E43: kg | F43: =MotorData1!B28/2.2046 -> 0.7484350903 | H43: Green Dotted is the Continuous Torque LV | T43: Solid Red is the Peak Resistive Dissipation | Z43: This chart contains the motor only efficiency. | AK43: Orange Dotted is FEA Mtr Volts w Cont I
B44: Motor Weight | C44: 6,4 | D44: weight | E44: lb | F44: =MotorData1!B28 -> 1.650 | H44: Green Solid is the Peak Torque LV | T44: Output Power is Shaft Power for positive speeds | Z44: Green Dotted is the Continuous Efficiency LV | AK44: Orange Solid is FEA Mtr Volts w Peak I
B45: Motor UL Class | D45: F | E45: UL class | F45: H | H45: Battery Cont Current: | J45: -10 | K45: Amps | T45: Output Power is Electrical Power for negative speeds | Z45: Green Solid is the Peak Efficiency LV
B46: Magnet Temp Used for Rating | D46: Tmag | E46: °C | F46: =MotorData1!B6 -> n/a | H46: Battery Peak Current: | J46: -10 | K46: Amps | T46: Green Dotted is the Continuous Output Power LV
B47: Environmental Protection Rating | C47: 8 | D47: IP | F47: IP40 - IP65 | T47: Green Solid is the Peak Output Power LV
B48: Amplifier Bus Voltage | D48: Volts DC | F48: =DriveData1!B6 -> 48.00
B49: Amplifier Continuous Current | D49: Ica(rms) | F49: =IF(DriveData1!B10=0,"",DriveData1!B10/SQRT(2)) -> 9.998489886
B50: Amplifier Peak Current | D50: Ipa(rms) | F50: =IF(DriveData1!B11=0,"",DriveData1!B11/SQRT(2)) -> 9.998489886
B51: Amplifier Switching Frequency | D51: kHz | F51: =IF(DriveData1!B9=0,"",DriveData1!B9/1000) -> 0
B54: Errors and Warnings:
B55: =MotorData1!B43 -> Information - Simple Thermal Model is in use Information - Lumped Electrical Motor Model is in use Warning - The motor continuous current is much larger than the amplifier continuous current. Warning - The amplifier continuous current is lower than the motor rated current.
B58: Prepared By:
B59: =MotorData1!D47 -> Andrew Hardison
B60: =MotorData1!D45 -> July 9, 2025
B61: =MotorData1!D46 -> 16:8:32
B63: Application Notes:
B64: =MotorData1!D48 -> 0

Sheet MotorData1 (hidden)
B1: Raw Motor Information | F1: Winding Data | J1: Thermal Model Information
B4: Value | C4: Units | D4: Description | F4: Value | G4: Units | H4: Description | J4: Value | K4: Units | L4: Description
B5: K089075-5Y_ | D5: Motor Description | F5: Orginal Values do not apply if Scaled Values are Present | J5: Parameter Value | K5: Parameter Units | L5: Parameter Description
B6: n/a | D6: Winding Number | F6: 10.00 | G6: unitless | H6: The Original Number of turns of wire per Phase | J6: 3833 | K6: Joules/Deg C | L6: BackIron Thermal Capacitance
B7: 0.167 | C7: Volts/Rad/s | D7: Motor lead to lead voltage constant | F7: 18.00 | G7: AWG | H7: The Original Effective Wire Guage | J7: 1168 | K7: Joules/Deg C | L7: Winding Rear Thermal Capacitance
B8: 0.5505 | C8: Ohms | D8: Cold lead to lead Resistance of the motor | F8: K089075-5Y_ | G8: text | H8: The Original Motor Name | J8: 1168 | K8: Joules/Deg C | L8: Winding Middle Thermal Capacitance
B9: 0.001073 | C9: Henries | D9: Maximum Lead to lead Inductance of the motor | F9: 0.180607946394938 | G9: unitless | H9: The Original Slot Fill Calculation | J9: 1168 | K9: Joules/Deg C | L9: Winding Front Thermal Capacitance
B10: 0.001073 | C10: Henries | D10: Minimum Lead to lead Inductance of the motor | F10: 2 | G10: unitless | H10: The Original number of wire insulation Layers | J10: 10909 | K10: Joules/Deg C | L10: Rotor Thermal Capacitance
B11: 0.008001 | C11: oz*in*sec^2 | D11: Motor rotor Inertia | F11: 1 | G11: unitless | H11: The Original number of wire in hand for the winding | J11: 3055 | K11: Joules/Deg C | L11: Tooth Tip Thermal Capacitance
B12: 340.0 | C12: Volts | D12: Motor maximum rated voltage | F12: 0.75 | G12: unitless | H12: The Original Length of the stator Stack | J12: 3055 | K12: Joules/Deg C | L12: Tooth Center Thermal Capacitance
B13: 1.020 | C13: deg C/Watt | D13: Thermal Resistance from Wind to Amb | F13: 1.250 | G13: unitless | H13: The Original Length of the Endturn | J13: 6788 | K13: Joules/Deg C | L13: Housing Thermal Capacitance
B14: 0.3238 | C14: deg C/Watt | D14: Thermal Resistance from wind to case | F14: Wye | G14: unitless | H14: The Original Phase Orientation | J14: 0.06948 | K14: Deg C/Watt | L14: R12, Rth_Backiron_To_WindingRear Thermal Resistance
B15: 0.7229 | C15: oz*in/KRPM | D15: Rotor Viscous Damping | F15: NotSelectable | G15: unitless | H15: The Original Wire Bundle Orientation | J15: 0.005877 | K15: Deg C/Watt | L15: R17, Rth_Backiron_To_ToothCenter Thermal Resistance
B16: 2.052 | C16: oz*in | D16: Rotor Dynamic Friction | F16: 10 | G16: unitless | H16: The Scaled Number of turns of wire per Phase | J16: 0.0001969 | K16: Deg C/Watt | L16: R18, Rth_Backiron_To_Housing Thermal Resistance
B17: 155.0 | C17: Deg C | D17: Max Winding Temperature | F17: 18 | G17: AWG | H17: The Scaled Effective Wire Guage | J17: 0.06948 | K17: Deg C/Watt | L17: R37, Rth_WindMiddle_To_ToothCenter Thermal Resistance
B18: 155.0 | C18: Deg C | D18: Rated Winding Temperature | F18: 0.180607946394938 | G18: unitLess | H18: The Scaled Slot Fill Calculation | J18: 0.06948 | K18: Deg C/Watt | L18: R46, Rth_WindFront_To_ToothTip Thermal Resistance
B19: 25.00 | C19: Deg C | D19: Ambient Air Temp around motor. | F19: 2 | G19: unitless | H19: The Scaled Number of wire insulation Layers | J19: 0.06196 | K19: Deg C/Watt | L19: R510, Rth_Rotor_To_Coolant Thermal Resistance
B20: 4998 | C20: RPM | D20: Maximum Shaft Speed Mechanical Limit | F20: 1 | G20: unitless | H20: The Scaled number of wire in hand for the winding | J20: 0.03431 | K20: Deg C/Watt | L20: R56, Rth_Rotor_To_ToothTip Thermal Resistance
B21: 12.00 | C21: unitless | D21: Number of magnet poles on the rotor | F21: 0.75 | G21: unitless | H21: The Scaled Length of the stator Stack | J21: 0.005877 | K21: Deg C/Watt | L21: R67, Rth_ToothTip_To_ToothCenter Thermal Resistance
B22: 1.000 | C22: unitless | D22: Determines if the friction and damping derates the motor | F22: 1.250 | G22: unitless | H22: The Scaled Length of the Endturn | J22: 0.01413 | K22: Deg C/Watt | L22: R810, Rth_Housing_To_Coolant Thermal Resistance
B23: 3.160 | C23: unitless | D23: The Ratio of Peak to Cont Torque | F23: Wye | G23: unitless | H23: The Scaled Phase Orientation | J23: 0.2168 | K23: Deg C/Watt | L23: R89, Rth_Housing_To_Amb Thermal Resistance
B24: 0.000 | C24: Watts | D24: Losses in the case due to the fail-safe Brake | F24: NotSelectable | G24: unitless | H24: The Scaled Wire Bundle Orientation | J24: 0.7282 | K24: Seconds | L24: Tau1, Tau_Backiron Thermal Time Constant
B25: 1680 | C25: Seconds | D25: Motor time constant | J25: 81.15 | K25: Seconds | L25: Tau2, Tau_WindingRear Thermal Time Constant
B26: 165.0 | C26: Seconds | D26: Winding time constant | J26: 81.15 | K26: Seconds | L26: Tau3, Tau_WindingMiddle Thermal Time Constant
B27: K089 Housed in a motor frame. Typically an aluminum cylinder with 0.250in thick walls, mounted to a 8in x 8in x 0.5in aluminum plate | D27: Motor Thermal Test Condition | F27: Short Circuit analysis: These calculations assume all of the phases are shorted to ground | J27: 81.15 | K27: Seconds | L27: Tau4, Tau_WindingFront Thermal Time Constant
B28: 1.650 | C28: Lbs | D28: Motor Only Weight | J28: 240.9 | K28: Seconds | L28: Tau5, Tau_Rotor Thermal Time Constant
B29: 0.000 | C29: Lbs | D29: Additional Weight if Equipped with Brake | F29: =4*B8/(B9+B10)/B21 -> 85.50792171 | G29: rads/s | H29: Rotor speed at the phase break frequency | J29: 14.3 | K29: Seconds | L29: Tau6, Tau_ToothTip Thermal Time Constant
B30: 0.000 | C30: oz*in*sec^2 | D30: Additional Inertia if Equipped with Brake | F30: =30*F29/PI() -> 816.5405049 | G30: RPM | H30: Rotor speed at the phase break frequency | J30: 8.614 | K30: Seconds | L30: Tau7, Tau_ToothCenter Thermal Time Constant
B31: 283.7 | C31: Oz*in | D31: Stall Torque | F31: =2.305*B7/D52/B21 -> 29.89554209 | G31: Amps Peak Sine | H31: Short Circuit Current at Tmag=25C | J31: 1.317 | K31: Seconds | L31: Tau8, Tau_Housing Thermal Time Constant
B32: 283.7 | C32: Oz*in | D32: Peak Torque | F32: =F31/SQRT(2) -> 21.13934054 | G32: Amps RMS | H32: Short Circuit Current at Tmag=25C
B33: 12.25 | C33: Amps Six State | D33: Cont Stall Current | F33: =B31/141.6/B33 -> 0.163553557 | G33: N*m/Amps SS | H33: Torque Constant at 25c
B34: 12.25 | C34: Amps Six State | D34: Peak Current | F34: =2*F33*B7/((B9+B10)*B21) -> 2.121267787 | G34: N*m | H34: Peak Short Circuit Torque
B35: 2007 | C35: RPM | D35: Rated Speed | F35: =F32/SQRT(2) -> 14.94777105 | G35: Amps RMS | H35: Current at Peak Drag Torque
B36: 281.3 | C36: Oz*in | D36: Rated Torque
B37: 417.6 | C37: Watts | D37: Rated Power
B38: 14.09 | C38: Amps Sine Peak | D38: Rated Current
B39: 155.0 | C39: deg C | D39: Temp of Winding at Rated TS
B40: 114.9 | C40: deg C | D40: Temp of Case at Rated TS
B41: Not Implemented | C41: Seconds | D41: The Max time at 2x Rated Current Starting at 60c
B42: Not Implemented | C42: Seconds | D42: The Max time at 3x Rated Current Starting at 60c
B43: Information - Simple Thermal Model is in use Information - Lumped Electrical Motor Model is in use Warning - The motor continuous current is much larger than the amplifier continuous current. Warning - The amplifier continuous current is lower than the motor rated current. | C43: N/A | D43: Warnings and Error Messages
B44: Digital | C44: Volt Limit Type | D44: Ver 6.03.006 Servo Motor Torque-Speed and Thermal Model by SRH
B45: Date | C45: n/a | D45: July 9, 2025
B46: Time | C46: n/a | D46: 16:8:32
B47: User | C47: n/a | D47: Andrew Hardison
B48: AppNotes | C48: n/a
B49: Idirect Max | C49: Amps RMS | D49: 8.000
B50: Rotor Speed at Peak Short Circuit Drag Torque, @Twr | C50: RPM | D50: 1234
B51: Max Short Circuit Current, @Twr, @Tmag_rated | C51: Amps RMS | D51: 21.15
B52: Inductance at Short Curcuit Current | C52: Henries | D52: 0.001073
B53: Peak Short Circuit Drag Torque | C53: N*m | D53: 2.167
B54: Current at Peak Drag Torque, @Twr | C54: Amps RMS | D54: 14.96
B55: Galaxy Version | C55: n/a | D55: 0.10.08.2024
B56: Motor Series Name | C56: n/a | D56: K

Sheet DriveData1 (hidden)
B1: Raw Drive Information
B4: Value | C4: Units | D4: Description
B5: Custom | D5: Amplifier Model Number
B6: 48.00 | C6: Volts DC | D6: Amplifier Bus Voltage
B7: 750.0 | C7: Volts DC | D7: Amplifier Max Bus Voltage
B8: 10.00 | C8: Volts DC | D8: Amplifier Min Bus Voltage
B9: 0.000 | C9: Hz | D9: Amplifier Switching Freqency
B10: 14.14 | C10: Amps Peak of Sine | D10: Continuous Amplifier Current
B11: 14.14 | C11: Amps Peak of Sine | D11: Peak Amplifier Current

Sheet TSData1 (hidden)
B1: Torque Speed Curves | W1: Conversion | X1: 1 | Y1: RPM | Z1: per RPM | AD1: 0.707107 | AE1: Amps RMS | AF1: per Amps Peak of Sine | AJ1: 0.001 | AK1: KiloWatts | AL1: per Watt | AX1: Amp E | AY1: 1 | BD1: Battery Peak current | BF1: =MotorSpecs1!J46 -> -10 | BH1: Battery Peak Power | BJ1: =BF1*MotorSpecs1!F48 -> -480 | BL1: Torque Vrs Current Saturation Curves
W2: Conversion | X2: 141.6 | Y2: N*m | Z2: per oz*in | AC2: Lable | AD2: ="Current " & AE1 -> Current Amps RMS | AI2: Lable | AJ2: ="Output Power " & AK1 -> Output Power KiloWatts | BD2: Battery cont current | BF2: =MotorSpecs1!J45 -> -10 | BH2: Battery cont power | BJ2: =BF2*MotorSpecs1!F48 -> -480
B3: Speed | C3: Oz*in | D3: Amps Peak of sine | E3: Oz*in | F3: Amps Peak Sine | H3: Speed | I3: Cont Torq | J3: Peak Torq | K3: Cont Current | L3: Peak Current | N3: Cont Power | O3: Peak Power | P3: Cont Power | Q3: Peak Power | R3: Cont Efficiency | S3: Peak Efficiency | T3: Moving Losses (Tf+B*Spd)*spd | U3: Moving Losses | W3: Y-Axis Lable | X3: ="Torque "&Y2 -> Torque N*m | AO3: Cont Resistive Loses | AP3: Peak Resistive Losses | AQ3: Cont Resistive Loses | AR3: Peak Resistive Losses | AT3: Phase Adv Ang w I peak (col F) | AU3: Phase Adv Ang w Icont (col D) | AW3: Bus Voltage | AX3: Lump Cir Volts Icont | AY3: Lump Cir Volts Ipeak | AZ3: BEMF | BA3: FEA Volts w Ipeak | BB3: FEA Volts w Icont | BD3: Battery Cont Power Lim, Torque | BE3: Battery Peak Power lim, Torque | BF3: Battery Cont Power Lim, Torque | BG3: Battery Peak Power lim, Torque | BK3: Saturaion Curve, Current | BL3: Saturation Curve Torque, Linear | BM3: Saturation Curve Torque, Galaxy | BN3: Saturation Curve Torque, FEA | BP3: Saturaion Curve, Current | BQ3: Saturation Curve Torque, Linear | BR3: Saturation Curve Torque, Galaxy | BS3: Saturation Curve Torque, FEA
B4: RPM | C4: Cont Torque | D4: Cont Current | E4: Peak Torque | F4: Peak Current | H4: =Y1 -> RPM | I4: =Y2 -> N*m | J4: =Y2 -> N*m | K4: =AE1 -> Amps RMS | L4: =AE1 -> Amps RMS | N4: Watts | O4: Watts | P4: =AK1 -> KiloWatts | Q4: =AK1 -> KiloWatts | R4: Percent | S4: Percent | T4: Watts | U4: =AK1 -> KiloWatts | W4: X-Axis | X4: ="Speed " & Y1 -> Speed RPM | AO4: Watts | AP4: Watts | AQ4: =AK1 -> KiloWatts | AR4: =AK1 -> KiloWatts | AT4: Degrees | AU4: Degrees | AW4: Vdc | AX4: Vpeaksin | AY4: Vpeaksin | AZ4: Vpeaksin | BA4: Vpeaksin | BB4: Vpeaksin | BD4: oz*in | BE4: oz*in | BF4: =Y2 -> N*m | BG4: =Y2 -> N*m | BK4: Amps Peak sine | BL4: oz*in | BM4: oz*in | BN4: oz*in | BP4: =AE1 -> Amps RMS | BQ4: =Y2 -> N*m | BR4: =Y2 -> N*m | BS4: =Y2 -> N*m
B5: 0 | C5: 283.6913015 | D5: 14.14213562 | E5: 283.6913015 | F5: 14.14213562 | H5: =B5*$X$1 -> 0 | I5: =C5/$X$2 -> 2.003469643 | J5: =E5/$X$2 -> 2.003469643 | K5: =D5*$AD$1 -> 10.00000309 | L5: =$AD$1*F5 -> 10.00000309 | N5: 0 | O5: 0 | P5: =N5*$AJ$1 -> 0 | Q5: =O5*$AJ$1 -> 0 | R5: 0 | S5: 0 | T5: 0 | U5: =T5*$AJ$1 -> 0 | X5: Unit Selection Information | AD5: Unit Selection | AJ5: Unit Selection | AO5: 124.7534822 | AP5: 124.7534822 | AQ5: =AO5*$AJ$1 -> 0.1247534822 | AR5: =AP5*$AJ$1 -> 0.1247534822 | AT5: 0 | AU5: 0 | AW5: 48 | AX5: 10.18607917 | AY5: 10.18607917 | AZ5: 0 | BA5: 0 | BB5: 0 | BD5: =141.6*$BJ$2*R6*$AY$1/(B6*PI()/30+0.000001) -> -1037.974262 | BE5: =141.6*$BJ$1*R6/(B6*PI()/30+0.000001) -> -1037.974262 | BF5: =MIN(BD5/$X$2,I5) -> -7.330326709 | BG5: =MIN(BE5/$X$2,J5) -> -7.330326709 | BK5: 0 | BL5: 0 | BM5: 0 | BN5: 0 | BP5: =BK5*$AD$1 -> 0 | BQ5: =BL5/$X$2 -> 0 | BR5: =BM5/$X$2 -> 0 | BS5: 0
B6: 30.41014117 | C6: 283.6693181 | D6: 14.14213562 | E6: 283.6693181 | F6: 14.14213562 | H6: 30.41014117 | I6: =C6/$X$2 -> 2.003314393 | J6: 2.003314393 | K6: 10.00000309 | L6: 10.00000309 | N6: 6.379639899 | O6: 6.379639899 | P6: 0.006379639899 | Q6: 0.006379639899 | R6: 0.04863280113 | S6: 0.04863280113 | T6: 0.04664328028 | U6: 4.664328028e-05 | X6: Conv Value | Y6: Units | AD6: Conv Value | AE6: Units | AJ6: Conv Value | AK6: Units | AO6: 124.7534822 | AP6: 124.7534822 | AQ6: 0.1247534822 | AR6: 0.1247534822 | AT6: 0 | AU6: 0 | AW6: 48 | AX6: 10.71382404 | AY6: 10.71382404 | AZ6: 0.5318186036 | BA6: 0 | BB6: 0 | BD6: =141.6*$BJ$2*R7*$AY$1/(B7*PI()/30+0.000001) -> -989.4236634 | BE6: =141.6*$BJ$1*R7/(B7*PI()/30+0.000001) -> -989.4236634 | BF6: =MIN(BD6/$X$2,I6) -> -6.98745525 | BG6: =MIN(BE6/$X$2,J6) -> -6.98745525 | BK6: 0.4910895447 | BL6: 10.05676506 | BM6: 10.05676506 | BN6: 0 | BP6: =BK6*$AD$1 -> 0.3472528547 | BQ6: =BL6/$X$2 -> 0.07102235214 | BR6: =BM6/$X$2 -> 0.07102235214 | BS6: =BN6/$X$2 -> 0
B7: 60.82028234 | C7: 283.6473346 | D7: 14.14213562 | E7: 283.6473346 | F7: 14.14213562 | H7: 60.82028234 | I7: 2.003159143 | J7: 2.003159143 | K7: 10.00000309 | L7: 10.00000309 | N7: 12.758291 | O7: 12.758291 | P7: 0.012758291 | Q7: 0.012758291 | R7: 0.09271604982 | S7: 0.09271604982 | T7: 0.09427536288 | U7: 9.427536288e-05 | X7: 1 | Y7: oz*in | AD7: 1 | AE7: Amps Peak of Sine | AJ7: 1 | AK7: Watts | AO7: 124.7534822 | AP7: 124.7534822 | AQ7: 0.1247534822 | AR7: 0.1247534822 | AT7: 0 | AU7: 0 | AW7: 48 | AX7: 11.24689582 | AY7: 11.24689582 | AZ7: 1.063637207 | BA7: 0 | BB7: 0 | BD7: -945.2053304 | BE7: -945.2053304 | BF7: -6.675178887 | BG7: -6.675178887 | BK7: 0.9821790895 | BL7: 20.11353013 | BM7: 20.11353013 | BN7: 0 | BP7: 0.6945057094 | BQ7: 0.1420447043 | BR7: 0.1420447043 | BS7: 0
B8: 91.23042351 | C8: 283.6253512 | D8: 14.14213562 | E8: 283.6253512 | F8: 14.14213562 | H8: 91.23042351 | I8: 2.003003893 | J8: 2.003003893 | K8: 10.00000309 | L8: 10.00000309 | N8: 19.13595329 | O8: 19.13595329 | P8: 0.01913595329 | Q8: 0.01913595329 | R8: 0.1328587083 | S8: 0.1328587083 | T8: 0.1428962478 | U8: 0.0001428962478 | X8: 16 | Y8: in*lbs | AD8: 0.707107 | AE8: Amps RMS | AJ8: 0.001 | AK8: KiloWatts | AO8: 124.7534822 | AP8: 124.7534822 | AQ8: 0.1247534822 | AR8: 0.1247534822 | AT8: 0 | AU8: 0 | AW8: 48 | AX8: 11.78457164 | AY8: 11.78457164 | AZ8: 1.595455811 | BA8: 0 | BB8: 0 | BD8: -904.7642234 | BE8: -904.7642234 | BF8: -6.389577849 | BG8: -6.389577849 | BK8: 1.473268634 | BL8: 30.17029519 | BM8: 30.17029519 | BN8: 0 | BP8: 1.041758564 | BQ8: 0.2130670564 | BR8: 0.2130670564 | BS8: 0
B9: 121.6405647 | C9: 283.6033677 | D9: 14.14213562 | E9: 283.6033677 | F9: 14.14213562 | H9: 121.6405647 | I9: 2.002848642 | J9: 2.002848642 | K9: 10.00000309 | L9: 10.00000309 | N9: 25.51262678 | O9: 25.51262678 | P9: 0.02551262678 | Q9: 0.02551262678 | R9: 0.1695657004 | S9: 0.1695657004 | T9: 0.192505935 | U9: 0.000192505935 | X9: =12*16 -> 192 | Y9: ft*lb | AD9: 0.866025 | AE9: Amps Six-State | AJ9: 0.00134 | AK9: Horse Power | AO9: 124.7534822 | AP9: 124.7534822 | AQ9: 0.1247534822 | AR9: 0.1247534822 | AT9: 0 | AU9: 0 | AW9: 48 | AX9: 12.32624903 | AY9: 12.32624903 | AZ9: 2.127274414 | BA9: 0 | BB9: 0 | BD9: -867.6361898 | BE9: -867.6361898 | BF9: -6.127374222 | BG9: -6.127374222 | BK9: 1.964358179 | BL9: 40.22706025 | BM9: 40.22706025 | BN9: 0 | BP9: 1.389011419 | BQ9: 0.2840894086 | BR9: 0.2840894086 | BS9: 0
B10: 152.0507058 | C10: 283.5813843 | D10: 14.14213562 | E10: 283.5813843 | F10: 14.14213562 | H10: 152.0507058 | I10: 2.002693392 | J10: 2.002693392 | K10: 10.00000309 | L10: 10.00000309 | N10: 31.88831147 | O10: 31.88831147 | P10: 0.03188831147 | Q10: 0.03188831147 | R10: 0.2032592195 | S10: 0.2032592195 | T10: 0.2431044245 | U10: 0.0002431044245 | X10: 141.6 | Y10: N*m | AO10: 124.7534822 | AP10: 124.7534822 | AQ10: 0.1247534822 | AR10: 0.1247534822 | AT10: 0 | AU10: 0 | AW10: 48 | AX10: 12.87142279 | AY10: 12.87142279 | AZ10: 2.659093018 | BA10: 0 | BB10: 0 | BD10: -833.430126 | BE10: -833.430126 | BF10: -5.885805975 | BG10: -5.885805975 | BK10: 2.455447724 | BL10: 50.28382531 | BM10: 50.28382531 | BN10: 0 | BP10: 1.736264274 | BQ10: 0.3551117607 | BR10: 0.3551117607 | BS10: 0
B11: 182.460847 | C11: 283.5594009 | D11: 14.14213562 | E11: 283.5594009 | F11: 14.14213562 | H11: 182.460847 | I11: 2.002538142 | J11: 2.002538142 | K11: 10.00000309 | L11: 10.00000309 | N11: 38.26300736 | O11: 38.26300736 | P11: 0.03826300736 | Q11: 0.03826300736 | R11: 0.2342950059 | S11: 0.2342950059 | T11: 0.2946917163 | U11: 0.0002946917163 | X11: 1 | Y11: RPM | AO11: 124.7534822 | AP11: 124.7534822 | AQ11: 0.1247534822 | AR11: 0.1247534822 | AT11: 0 | AU11: 0 | AW11: 48 | AX11: 13.41966681 | AY11: 13.41966681 | AZ11: 3.190911622 | BA11: 0 | BB11: 0 | BD11: -801.8141549 | BE11: -801.8141549 | BF11: -5.662529342 | BG11: -5.662529342 | BK11: 2.946537268 | BL11: 60.34059038 | BM11: 60.34059038 | BN11: 0 | BP11: 2.083517128 | BQ11: 0.4261341128 | BR11: 0.4261341128 | BS11: 0
B12: 212.8709882 | C12: 283.5374174 | D12: 14.14213562 | E12: 283.5374174 | F12: 14.14213562 | H12: 212.8709882 | I12: 2.002382891 | J12: 2.002382891 | K12: 10.00000309 | L12: 10.00000309 | N12: 44.63671444 | O12: 44.63671444 | P12: 0.04463671444 | Q12: 0.04463671444 | R12: 0.2629749261 | S12: 0.2629749261 | T12: 0.3472678105 | U12: 0.0003472678105 | X12: 0.01666666667 | Y12: RPS | AO12: 124.7534822 | AP12: 124.7534822 | AQ12: 0.1247534822 | AR12: 0.1247534822 | AT12: 0 | AU12: 0 | AW12: 48 | AX12: 13.97061964 | AY12: 13.97061964 | AZ12: 3.722730225 | BA12: 0 | BB12: 0 | BD12: -772.5048248 | BE12: -772.5048248 | BF12: -5.455542548 | BG12: -5.455542548 | BK12: 3.437626813 | BL12: 70.39735544 | BM12: 70.39735544 | BN12: 0 | BP12: 2.430769983 | BQ12: 0.497156465 | BR12: 0.497156465 | BS12: 0
B13: 243.2811294 | C13: 283.515434 | D13: 14.14213562 | E13: 283.515434 | F13: 14.14213562 | H13: 243.2811294 | I13: 2.002227641 | J13: 2.002227641 | K13: 10.00000309 | L13: 10.00000309 | N13: 51.00943273 | O13: 51.00943273 | P13: 0.05100943273 | Q13: 0.05100943273 | R13: 0.2895567998 | S13: 0.2895567998 | T13: 0.4008327069 | U13: 0.0004008327069 | X13: =PI()/30 -> 0.1047197551 | Y13: Rads/s | AO13: 124.7534822 | AP13: 124.7534822 | AQ13: 0.1247534822 | AR13: 0.1247534822 | AT13: 0 | AU13: 0 | AW13: 48 | AX13: 14.52397301 | AY13: 14.52397301 | AZ13: 4.254548829 | BA13: 0 | BB13: 0 | BD13: -745.2585883 | BE13: -745.2585883 | BF13: -5.263125624 | BG13: -5.263125624 | BK13: 3.928716358 | BL13: 80.4541205 | BM13: 80.4541205 | BN13: 0 | BP13: 2.778022838 | BQ13: 0.5681788171 | BR13: 0.5681788171 | BS13: 0
B14: 273.6912705 | C14: 283.4934505 | D14: 14.14213562 | E14: 283.4934505 | F14: 14.14213562 | H14: 273.6912705 | I14: 2.002072391 | J14: 2.002072391 | K14: 10.00000309 | L14: 10.00000309 | N14: 57.38116221 | O14: 57.38116221 | P14: 0.05738116221 | Q14: 0.05738116221 | R14: 0.3142621502 | S14: 0.3142621502 | T14: 0.4553864057 | U14: 0.0004553864057 | AO14: 124.7534822 | AP14: 124.7534822 | AQ14: 0.1247534822 | AR14: 0.1247534822 | AT14: 0 | AU14: 0 | AW14: 48 | AX14: 15.07946266 | AY14: 15.07946266 | AZ14: 4.786367432 | BA14: 0 | BB14: 0 | BD14: -719.8650188 | BE14: -719.8650188 | BF14: -5.083792506 | BG14: -5.083792506 | BK14: 4.419805903 | BL14: 90.51088557 | BM14: 90.51088557 | BN14: 0 | BP14: 3.125275692 | BQ14: 0.6392011692 | BR14: 0.6392011692 | BS14: 0
B15: 304.1014117 | C15: 283.4714671 | D15: 14.14213562 | E15: 283.4714671 | F15: 14.14213562 | H15: 304.1014117 | I15: 2.001917141 | J15: 2.001917141 | K15: 10.00000309 | L15: 10.00000309 | N15: 63.75190288 | O15: 63.75190288 | P15: 0.06375190288 | Q15: 0.06375190288 | R15: 0.3372823748 | S15: 0.3372823748 | T15: 0.5109289067 | U15: 0.0005109289067 | AO15: 124.7534822 | AP15: 124.7534822 | AQ15: 0.1247534822 | AR15: 0.1247534822 | AT15: 0 | AU15: 0 | AW15: 48 | AX15: 15.63686092 | AY15: 15.63686092 | AZ15: 5.318186036 | BA15: 0 | BB15: 0 | BD15: -696.1413654 | BE15: -696.1413654 | BF15: -4.916252581 | BG15: -4.916252581 | BK15: 4.910895447 | BL15: 100.5676506 | BM15: 100.5676506 | BN15: 0 | BP15: 3.472528547 | BQ15: 0.7102235214 | BR15: 0.7102235214 | BS15: 0
B16: 334.5115529 | C16: 283.4494837 | D16: 14.14213562 | E16: 283.4494837 | F16: 14.14213562 | H16: 334.5115529 | I16: 2.00176189 | J16: 2.00176189 | K16: 10.00000309 | L16: 10.00000309 | N16: 70.12165476 | O16: 70.12165476 | P16: 0.07012165476 | Q16: 0.07012165476 | R16: 0.3587836979 | S16: 0.3587836979 | T16: 0.5674602101 | U16: 0.0005674602101 | W16: Note: Use the Macro buttons on the Spec page to change the plot units. | AO16: 124.7534822 | AP16: 124.7534822 | AQ16: 0.1247534822 | AR16: 0.1247534822 | AT16: 0 | AU16: 0 | AW16: 48 | AX16: 16.19597074 | AY16: 16.19597074 | AZ16: 5.850004639 | BA16: 0 | BB16: 0 | BD16: -673.9281482 | BE16: -673.9281482 | BF16: -4.759379577 | BG16: -4.759379577 | BK16: 5.401984992 | BL16: 110.6244157 | BM16: 110.6244157 | BN16: 0 | BP16: 3.819781402 | BQ16: 0.7812458735 | BR16: 0.7812458735 | BS16: 0
B17: 364.921694 | C17: 283.4275002 | D17: 14.14213562 | E17: 283.4275002 | F17: 14.14213562 | H17: 364.921694 | I17: 2.00160664 | J17: 2.00160664 | K17: 10.00000309 | L17: 10.00000309 | N17: 76.49041783 | O17: 76.49041783 | P17: 0.07649041783 | Q17: 0.07649041783 | R17: 0.3789111777 | S17: 0.3789111777 | T17: 0.6249803158 | U17: 0.0006249803158 | AO17: 124.7534822 | AP17: 124.7534822 | AQ17: 0.1247534822 | AR17: 0.1247534822 | AT17: 0 | AU17: 0 | AW17: 48 | AX17: 16.75662077 | AY17: 16.75662077 | AZ17: 6.381823243 | BA17: 0 | BB17: 0 | BD17: -653.0855678 | BE17: -653.0855678 | BF17: -4.612186213 | BG17: -4.612186213 | BK17: 5.893074537 | BL17: 120.6811808 | BM17: 120.6811808 | BN17: 0 | BP17: 4.167034257 | BQ17: 0.8522682257 | BR17: 0.8522682257 | BS17: 0
B18: 395.3318352 | C18: 283.4055168 | D18: 14.14213562 | E18: 283.4055168 | F18: 14.14213562 | H18: 395.3318352 | I18: 2.00145139 | J18: 2.00145139 | K18: 10.00000309 | L18: 10.00000309 | N18: 82.8581921 | O18: 82.8581921 | P18: 0.0828581921 | Q18: 0.0828581921 | R18: 0.3977919708 | S18: 0.3977919708 | T18: 0.6834892238 | U18: 0.0006834892238 | AO18: 124.7534822 | AP18: 124.7534822 | AQ18: 0.1247534822 | AR18: 0.1247534822 | AT18: 0 | AU18: 0 | AW18: 48 | AX18: 17.31866146 | AY18: 17.31866146 | AZ18: 6.913641847 | BA18: 0 | BB18: 0 | BD18: -633.4905612 | BE18: -633.4905612 | BF18: -4.473803398 | BG18: -4.473803398 | BK18: 6.384164082 | BL18: 130.7379458 | BM18: 130.7379458 | BN18: 0 | BP18: 4.514287111 | BQ18: 0.9232905778 | BR18: 0.9232905778 | BS18: 0
B19: 425.7419764 | C19: 283.3835333 | D19: 14.14213562 | E19: 283.3835333 | F19: 14.14213562 | H19: 425.7419764 | I19: 2.001296139 | J19: 2.001296139 | K19: 10.00000309 | L19: 10.00000309 | N19: 89.22497757 | O19: 89.22497757 | P19: 0.08922497757 | Q19: 0.08922497757 | R19: 0.4155380116 | S19: 0.4155380116 | T19: 0.7429869341 | U19: 0.0007429869341 | AO19: 124.7534822 | AP19: 124.7534822 | AQ19: 0.1247534822 | AR19: 0.1247534822 | AT19: 0 | AU19: 0 | AW19: 48 | AX19: 17.88196166 | AY19: 17.88196166 | AZ19: 7.44546045 | BA19: 0 | BB19: 0 | BD19: -615.0343694 | BE19: -615.0343694 | BF19: -4.343463061 | BG19: -4.343463061 | BK19: 6.875253626 | BL19: 140.7947109 | BM19: 140.7947109 | BN19: 0 | BP19: 4.861539966 | BQ19: 0.9943129299 | BR19: 0.9943129299 | BS19: 0
B20: 456.1521175 | C20: 283.3615499 | D20: 14.14213562 | E20: 283.3615499 | F20: 14.14213562 | H20: 456.1521175 | I20: 2.001140889 | J20: 2.001140889 | K20: 10.00000309 | L20: 10.00000309 | N20: 95.59077424 | O20: 95.59077424 | P20: 0.09559077424 | Q20: 0.09559077424 | R20: 0.4322482238 | S20: 0.4322482238 | T20: 0.8034734467 | U20: 0.0008034734467 | W20: Main Chart Title | X20: =" Simulated Torque Speed Curve for a " & X21 & " with a " &X22 & " at " & INT(X23) &"VDC" -> Simulated Torque Speed Curve for a K089075-5Y_ with a Custom at 48VDC | AO20: 124.7534822 | AP20: 124.7534822 | AQ20: 0.1247534822 | AR20: 0.1247534822 | AT20: 0 | AU20: 0 | AW20: 48 | AX20: 18.44640599 | AY20: 18.44640599 | AZ20: 7.977279054 | BA20: 0 | BB20: 0 | BD20: -597.620518 | BE20: -597.620518 | BF20: -4.220483884 | BG20: -4.220483884 | BK20: 7.366343171 | BL20: 150.8514759 | BM20: 150.8514759 | BN20: 0 | BP20: 5.208792821 | BQ20: 1.065335282 | BR20: 1.065335282 | BS20: 0
B21: 486.5622587 | C21: 283.3395664 | D21: 14.14213562 | E21: 283.3395664 | F21: 14.14213562 | H21: 486.5622587 | I21: 2.000985639 | J21: 2.000985639 | K21: 10.00000309 | L21: 10.00000309 | N21: 101.9555821 | O21: 101.9555821 | P21: 0.1019555821 | Q21: 0.1019555821 | R21: 0.4480103572 | S21: 0.4480103572 | T21: 0.8649487616 | U21: 0.0008649487616 | X21: =MotorSpecs1!$C$3 -> K089075-5Y_ | AO21: 124.7534822 | AP21: 124.7534822 | AQ21: 0.1247534822 | AR21: 0.1247534822 | AT21: 0 | AU21: 0 | AW21: 48 | AX21: 19.01189255 | AY21: 19.01189255 | AZ21: 8.509097657 | BA21: 0 | BB21: 0 | BD21: -581.1631304 | BE21: -581.1631304 | BF21: -4.104259396 | BG21: -4.104259396 | BK21: 7.857432716 | BL21: 160.908241 | BM21: 160.908241 | BN21: 0 | BP21: 5.556045675 | BQ21: 1.136357634 | BR21: 1.136357634 | BS21: 0
B22: 516.9723999 | C22: 283.317583 | D22: 14.14213562 | E22: 283.317583 | F22: 14.14213562 | H22: 516.9723999 | I22: 2.000830388 | J22: 2.000830388 | K22: 10.00000309 | L22: 10.00000309 | N22: 108.3194012 | O22: 108.3194012 | P22: 0.1083194012 | Q22: 0.1083194012 | R22: 0.4629025224 | S22: 0.4629025224 | T22: 0.9274128788 | U22: 0.0009274128788 | X22: =MotorSpecs1!$C$4 -> Custom | AO22: 124.7534822 | AP22: 124.7534822 | AQ22: 0.1247534822 | AR22: 0.1247534822 | AT22: 0 | AU22: 0 | AW22: 48 | AX22: 19.57833103 | AY22: 19.57833103 | AZ22: 9.040916261 | BA22: 0 | BB22: 0 | BD22: -565.5855117 | BE22: -565.5855117 | BF22: -3.994247964 | BG22: -3.994247964 | BK22: 8.348522261 | BL22: 170.9650061 | BM22: 170.9575741 | BN22: 0 | BP22: 5.90329853 | BQ22: 1.207379986 | BR22: 1.207327501 | BS22: 0
B23: 547.3825411 | C23: 283.2955996 | D23: 14.14213562 | E23: 283.2955996 | F23: 14.14213562 | H23: 547.3825411 | I23: 2.000675138 | J23: 2.000675138 | K23: 10.00000309 | L23: 10.00000309 | N23: 114.6822314 | O23: 114.6822314 | P23: 0.1146822314 | Q23: 0.1146822314 | R23: 0.4769944787 | S23: 0.4769944787 | T23: 0.9908657984 | U23: 0.0009908657984 | X23: =MotorSpecs1!$F$48 -> 48.00 | AO23: 124.7534822 | AP23: 124.7534822 | AQ23: 0.1247534822 | AR23: 0.1247534822 | AT23: 0 | AU23: 0 | AW23: 48 | AX23: 20.14564113 | AY23: 20.14564113 | AZ23: 9.572734865 | BA23: 0 | BB23: 0 | BD23: -550.8189531 | BE23: -550.8189531 | BF23: -3.889964358 | BG23: -3.889964358 | BK23: 8.839611805 | BL23: 181.0217711 | BM23: 180.9613836 | BN23: 0 | BP23: 6.250551385 | BQ23: 1.278402338 | BR23: 1.277975873 | BS23: 0
B24: 577.7926822 | C24: 283.2736161 | D24: 14.14213562 | E24: 283.2736161 | F24: 14.14213562 | H24: 577.7926822 | I24: 2.000519888 | J24: 2.000519888 | K24: 10.00000309 | L24: 10.00000309 | N24: 121.0440729 | O24: 121.0440729 | P24: 0.1210440729 | Q24: 0.1210440729 | R24: 0.4903487213 | S24: 0.4903487213 | T24: 1.05530752 | U24: 0.00105530752 | AO24: 124.7534822 | AP24: 124.7534822 | AQ24: 0.1247534822 | AR24: 0.1247534822 | AT24: 0 | AU24: 0 | AW24: 48 | AX24: 20.71375124 | AY24: 20.71375124 | AZ24: 10.10455347 | BA24: 0 | BB24: 0 | BD24: -536.8017192 | BE24: -536.8017192 | BF24: -3.790972593 | BG24: -3.790972593 | BK24: 9.33070135 | BL24: 191.0785362 | BM24: 190.9142936 | BN24: 0 | BP24: 6.597804239 | BQ24: 1.349424691 | BR24: 1.348264785 | BS24: 0
B25: 608.2028234 | C25: 283.2516327 | D25: 14.14213562 | E25: 283.2516327 | F25: 14.14213562 | H25: 608.2028234 | I25: 2.000364638 | J25: 2.000364638 | K25: 10.00000309 | L25: 10.00000309 | N25: 127.4049255 | O25: 127.4049255 | P25: 0.1274049255 | Q25: 0.1274049255 | R25: 0.5030214028 | S25: 0.5030214028 | T25: 1.120738044 | U25: 0.001120738044 | AO25: 124.7534822 | AP25: 124.7534822 | AQ25: 0.1247534822 | AR25: 0.1247534822 | AT25: 0 | AU25: 0 | AW25: 48 | AX25: 21.2825973 | AY25: 21.2825973 | AZ25: 10.63637207 | BA25: 0 | BB25: 0 | BD25: -523.4781848 | BE25: -523.4781848 | BF25: -3.696879836 | BG25: -3.696879836 | BK25: 9.821790895 | BL25: 201.1353013 | BM25: 200.816304 | BN25: 0 | BP25: 6.945057094 | BQ25: 1.420447043 | BR25: 1.418194237 | BS25: 0
B26: 638.6129646 | C26: 283.2296492 | D26: 14.14213562 | E26: 283.2296492 | F26: 14.14213562 | H26: 638.6129646 | I26: 2.000209387 | J26: 2.000209387 | K26: 10.00000309 | L26: 10.00000309 | N26: 133.7647894 | O26: 133.7647894 | P26: 0.1337647894 | Q26: 0.1337647894 | R26: 0.5150631179 | S26: 0.5150631179 | T26: 1.187157371 | U26: 0.001187157371 | AO26: 124.7534822 | AP26: 124.7534822 | AQ26: 0.1247534822 | AR26: 0.1247534822 | AT26: 0 | AU26: 0 | AW26: 48 | AX26: 21.85212182 | AY26: 21.85212182 | AZ26: 11.16819068 | BA26: 0 | BB26: 0 | BD26: -510.7980976 | BE26: -510.7980976 | BF26: -3.607331198 | BG26: -3.607331198 | BK26: 10.31288044 | BL26: 211.1920663 | BM26: 210.6674148 | BN26: 0 | BP26: 7.292309949 | BQ26: 1.491469395 | BR26: 1.487764229 | BS26: 0
B27: 669.0231057 | C27: 283.2076658 | D27: 14.14213562 | E27: 283.2076658 | F27: 14.14213562 | H27: 669.0231057 | I27: 2.000054137 | J27: 2.000054137 | K27: 10.00000309 | L27: 10.00000309 | N27: 140.1236644 | O27: 140.1236644 | P27: 0.1401236644 | Q27: 0.1401236644 | R27: 0.5265195745 | S27: 0.5265195745 | T27: 1.2545655 | U27: 0.0012545655 | AO27: 124.7534822 | AP27: 124.7534822 | AQ27: 0.1247534822 | AR27: 0.1247534822 | AT27: 0 | AU27: 0 | AW27: 48 | AX27: 22.42227311 | AY27: 22.42227311 | AZ27: 11.70000928 | BA27: 0 | BB27: 0 | BD27: -498.7159447 | BE27: -498.7159447 | BF27: -3.522005259 | BG27: -3.522005259 | BK27: 10.80396998 | BL27: 221.2488314 | BM27: 220.4676261 | BN27: 0 | BP27: 7.639562804 | BQ27: 1.562491747 | BR27: 1.556974761 | BS27: 0
B28: 699.4332469 | C28: 283.1856824 | D28: 14.14213562 | E28: 283.1856824 | F28: 14.14213562 | H28: 699.4332469 | I28: 1.999898887 | J28: 1.999898887 | K28: 10.00000309 | L28: 10.00000309 | N28: 146.4815507 | O28: 146.4815507 | P28: 0.1464815507 | Q28: 0.1464815507 | R28: 0.5374321697 | S28: 0.5374321697 | T28: 1.322962431 | U28: 0.001322962431 | AO28: 124.7534822 | AP28: 124.7534822 | AQ28: 0.1247534822 | AR28: 0.1247534822 | AT28: 0 | AU28: 0 | AW28: 48 | AX28: 22.99300455 | AY28: 22.99300455 | AZ28: 12.23182788 | BA28: 0 | BB28: 0 | BD28: -487.1904066 | BE28: -487.1904066 | BF28: -3.440610216 | BG28: -3.440610216 | BK28: 11.29505953 | BL28: 231.3055964 | BM28: 230.2169378 | BN28: 0 | BP28: 7.986815658 | BQ28: 1.633514099 | BR28: 1.625825832 | BS28: 0
B29: 729.8433881 | C29: 283.1636989 | D29: 14.14213562 | E29: 283.1636989 | F29: 14.14213562 | H29: 729.8433881 | I29: 1.999743636 | J29: 1.999743636 | K29: 10.00000309 | L29: 10.00000309 | N29: 152.8384481 | O29: 152.8384481 | P29: 0.1528384481 | Q29: 0.1528384481 | R29: 0.5478384864 | S29: 0.5478384864 | T29: 1.392348164 | U29: 0.001392348164 | AO29: 124.7534822 | AP29: 124.7534822 | AQ29: 0.1247534822 | AR29: 0.1247534822 | AT29: 0 | AU29: 0 | AW29: 48 | AX29: 23.56427397 | AY29: 23.56427397 | AZ29: 12.76364649 | BA29: 0 | BB29: 0 | BD29: -476.1838851 | BE29: -476.1838851 | BF29: -3.362880544 | BG29: -3.362880544 | BK29: 11.78614907 | BL29: 241.3623615 | BM29: 239.91535 | BN29: 0 | BP29: 8.334068513 | BQ29: 1.704536451 | BR29: 1.694317444 | BS29: 0
B30: 760.2535292 | C30: 283.1417155 | D30: 14.14213562 | E30: 283.1417155 | F30: 14.14213562 | H30: 760.2535292 | I30: 1.999588386 | J30: 1.999588386 | K30: 10.00000309 | L30: 10.00000309 | N30: 159.1943568 | O30: 159.1943568 | P30: 0.1591943568 | Q30: 0.1591943568 | R30: 0.5577727225 | S30: 0.5577727225 | T30: 1.4627227 | U30: 0.0014627227 | AO30: 124.7534822 | AP30: 124.7534822 | AQ30: 0.1247534822 | AR30: 0.1247534822 | AT30: 0 | AU30: 0 | AW30: 48 | AX30: 24.13604319 | AY30: 24.13604319 | AZ30: 13.29546509 | BA30: 0 | BB30: 0 | BD30: -465.6620938 | BE30: -465.6620938 | BF30: -3.288574109 | BG30: -3.288574109 | BK30: 12.27723862 | BL30: 251.4191266 | BM30: 249.5628626 | BN30: 0 | BP30: 8.681321368 | BQ30: 1.775558803 | BR30: 1.762449595 | BS30: 0
B31: 790.6636704 | C31: 283.119732 | D31: 14.14213562 | E31: 283.119732 | F31: 14.14213562 | H31: 790.6636704 | I31: 1.999433136 | J31: 1.999433136 | K31: 10.00000309 | L31: 10.00000309 | N31: 165.5492766 | O31: 165.5492766 | P31: 0.1655492766 | Q31: 0.1655492766 | R31: 0.567266064 | S31: 0.567266064 | T31: 1.534086038 | U31: 0.001534086038 | AO31: 124.7534822 | AP31: 124.7534822 | AQ31: 0.1247534822 | AR31: 0.1247534822 | AT31: 0 | AU31: 0 | AW31: 48 | AX31: 24.7082775 | AY31: 24.7082775 | AZ31: 13.82728369 | BA31: 0 | BB31: 0 | BD31: -455.5937011 | BE31: -455.5937011 | BF31: -3.217469641 | BG31: -3.217469641 | BK31: 12.76832816 | BL31: 261.4758916 | BM31: 259.1594757 | BN31: 0 | BP31: 9.028574222 | BQ31: 1.846581156 | BR31: 1.830222286 | BS31: 0
B32: 821.0738116 | C32: 283.0977486 | D32: 14.14213562 | E32: 283.0977486 | F32: 14.14213562 | H32: 821.0738116 | I32: 1.999277886 | J32: 1.999277886 | K32: 10.00000309 | L32: 10.00000309 | N32: 171.9032077 | O32: 171.9032077 | P32: 0.1719032077 | Q32: 0.1719032077 | R32: 0.576347009 | S32: 0.576347009 | T32: 1.606438178 | U32: 0.001606438178 | AO32: 124.7534822 | AP32: 124.7534822 | AQ32: 0.1247534822 | AR32: 0.1247534822 | AT32: 0 | AU32: 0 | AW32: 48 | AX32: 25.28094532 | AY32: 25.28094532 | AZ32: 14.3591023 | BA32: 0 | BB32: 0 | BD32: -445.9500188 | BE32: -445.9500188 | BF32: -3.14936454 | BG32: -3.14936454 | BK32: 13.25941771 | BL32: 271.5326567 | BM32: 268.7051892 | BN32: 0 | BP32: 9.375827077 | BQ32: 1.917603508 | BR32: 1.897635517 | BS32: 0
B33: 851.4839528 | C33: 283.0757652 | D33: 14.14213562 | E33: 283.0757652 | F33: 14.14213562 | H33: 851.4839528 | I33: 1.999122635 | J33: 1.999122635 | K33: 10.00000309 | L33: 10.00000309 | N33: 178.2561499 | O33: 178.2561499 | P33: 0.1782561499 | Q33: 0.1782561499 | R33: 0.5850416514 | S33: 0.5850416514 | T33: 1.679779121 | U33: 0.001679779121 | AO33: 124.7534822 | AP33: 124.7534822 | AQ33: 0.1247534822 | AR33: 0.1247534822 | AT33: 0 | AU33: 0 | AW33: 48 | AX33: 25.85401785 | AY33: 25.85401785 | AZ33: 14.8909209 | BA33: 0 | BB33: 0 | BD33: -436.704729 | BE33: -436.704729 | BF33: -3.084072945 | BG33: -3.084072945 | BK33: 13.75050725 | BL33: 281.5894218 | BM33: 278.2000031 | BN33: 0 | BP33: 9.723079932 | BQ33: 1.98862586 | BR33: 1.964689288 | BS33: 0
B34: 881.8940939 | C34: 283.0537817 | D34: 14.14213562 | E34: 283.0537817 | F34: 14.14213562 | H34: 881.8940939 | I34: 1.998967385 | J34: 1.998967385 | K34: 10.00000309 | L34: 10.00000309 | N34: 184.6081033 | O34: 184.6081033 | P34: 0.1846081033 | Q34: 0.1846081033 | R34: 0.5933739291 | S34: 0.5933739291 | T34: 1.754108866 | U34: 0.001754108866 | AO34: 124.7534822 | AP34: 124.7534822 | AQ34: 0.1247534822 | AR34: 0.1247534822 | AT34: 0 | AU34: 0 | AW34: 48 | AX34: 26.42746875 | AY34: 26.42746875 | AZ34: 15.4227395 | BA34: 0 | BB34: 0 | BD34: -427.8336441 | BE34: -427.8336441 | BF34: -3.02142404 | BG34: -3.02142404 | BK34: 14.2415968 | BL34: 291.6461868 | BM34: 287.6439175 | BN34: 0 | BP34: 10.07033279 | BQ34: 2.059648212 | BR34: 2.031383598 | BS34: 0
B35: 912.3042351 | C35: 283.0317983 | D35: 14.14213562 | E35: 283.0317983 | F35: 14.14213562 | H35: 912.3042351 | I35: 1.998812135 | J35: 1.998812135 | K35: 10.00000309 | L35: 10.00000309 | N35: 190.959068 | O35: 190.959068 | P35: 0.190959068 | Q35: 0.190959068 | R35: 0.6013658423 | S35: 0.6013658423 | T35: 1.829427413 | U35: 0.001829427413 | AO35: 124.7534822 | AP35: 124.7534822 | AQ35: 0.1247534822 | AR35: 0.1247534822 | AT35: 0 | AU35: 0 | AW35: 48 | AX35: 27.00127392 | AY35: 27.00127392 | AZ35: 15.95455811 | BA35: 0 | BB35: 0 | BD35: -419.3144956 | BE35: -419.3144956 | BF35: -2.961260562 | BG35: -2.961260562 | BK35: 14.73268634 | BL35: 301.7029519 | BM35: 297.0369323 | BN35: 0 | BP35: 10.41758564 | BQ35: 2.130670564 | BR35: 2.097718449 | BS35: 0
B36: 942.7143763 | C36: 283.0098148 | D36: 14.14213562 | E36: 283.0098148 | F36: 14.14213562 | H36: 942.7143763 | I36: 1.998656884 | J36: 1.998656884 | K36: 10.00000309 | L36: 10.00000309 | N36: 197.3090438 | O36: 197.3090438 | P36: 0.1973090438 | Q36: 0.1973090438 | R36: 0.6090376456 | S36: 0.6090376456 | T36: 1.905734762 | U36: 0.001905734762 | AO36: 124.7534822 | AP36: 124.7534822 | AQ36: 0.1247534822 | AR36: 0.1247534822 | AT36: 0 | AU36: 0 | AW36: 48 | AX36: 27.57541124 | AY36: 27.57541124 | AZ36: 16.48637671 | BA36: 0 | BB36: 0 | BD36: -411.1267479 | BE36: -411.1267479 | BF36: -2.903437485 | BG36: -2.903437485 | BK36: 15.22377589 | BL36: 311.7597169 | BM36: 306.3790476 | BN36: 0 | BP36: 10.7648385 | BQ36: 2.201692916 | BR36: 2.163693839 | BS36: 0
B37: 973.1245174 | C37: 282.9878314 | D37: 14.14213562 | E37: 282.9878314 | F37: 14.14213562 | H37: =B37*$X$1 -> 973.1245174 | I37: =C37/$X$2 -> 1.998501634 | J37: =E37/$X$2 -> 1.998501634 | K37: =D37*$AD$1 -> 10.00000309 | L37: =$AD$1*F37 -> 10.00000309 | N37: 203.6580308 | O37: 203.6580308 | P37: =N37*$AJ$1 -> 0.2036580308 | Q37: =O37*$AJ$1 -> 0.2036580308 | R37: 0.6164080177 | S37: 0.6164080177 | T37: 1.983030914 | U37: =T37*$AJ$1 -> 0.001983030914 | AO37: 124.7534822 | AP37: 124.7534822 | AQ37: =AO37*$AJ$1 -> 0.1247534822 | AR37: =AP37*$AJ$1 -> 0.1247534822 | AT37: 0 | AU37: 0 | AW37: 48 | AX37: 28.1498604 | AY37: 28.1498604 | AZ37: 17.01819531 | BA37: 0 | BB37: 0 | BD37: -403.2514323 | BE37: -403.2514323 | BF37: -2.847820849 | BG37: -2.847820849 | BK37: 15.71486543 | BL37: 321.816482 | BM37: 315.6702633 | BN37: 0 | BP37: 11.11209135 | BQ37: 2.272715268 | BR37: 2.229309769 | BS37: 0
B38: 1003.534659 | C38: 282.9658479 | D38: 14.14213562 | E38: 282.9658479 | F38: 14.14213562 | H38: 1003.534659 | I38: 1.998346384 | J38: 1.998346384 | K38: 10.00000309 | L38: 10.00000309 | N38: 210.006029 | O38: 210.006029 | P38: 0.210006029 | Q38: 0.210006029 | R38: 0.6234942118 | S38: 0.6234942118 | T38: 2.061315868 | U38: 0.002061315868 | AO38: 124.7534822 | AP38: 124.7534822 | AQ38: 0.1247534822 | AR38: 0.1247534822 | AT38: 0 | AU38: 0 | AW38: 48 | AX38: 28.72460268 | AY38: 28.72460268 | AZ38: 17.55001392 | BA38: 0 | BB38: 0 | BD38: -395.6710006 | BE38: -395.6710006 | BF38: -2.794286727 | BG38: -2.794286727 | BK38: 16.20595498 | BL38: 331.8732471 | BM38: 324.9105795 | BN38: 0 | BP38: 11.45934421 | BQ38: 2.343737621 | BR38: 2.294566239 | BS38: 0
B39: 1033.9448 | C39: 282.9438645 | D39: 14.14213562 | E39: 282.9438645 | F39: 14.14213562 | H39: 1033.9448 | I39: 1.998191134 | J39: 1.998191134 | K39: 10.00000309 | L39: 10.00000309 | N39: 216.3530385 | O39: 216.3530385 | P39: 0.2163530385 | Q39: 0.2163530385 | R39: 0.6303121892 | S39: 0.6303121892 | T39: 2.140589625 | U39: 0.002140589625 | AO39: 124.7534822 | AP39: 124.7534822 | AQ39: 0.1247534822 | AR39: 0.1247534822 | AT39: 0 | AU39: 0 | AW39: 48 | AX39: 29.29962082 | AY39: 29.29962082 | AZ39: 18.08183252 | BA39: 0 | BB39: 0 | BD39: -388.3691947 | BE39: -388.3691947 | BF39: -2.742720302 | BG39: -2.742720302 | BK39: 16.69704452 | BL39: 341.9300121 | BM39: 334.0999961 | BN39: 0 | BP39: 11.80659706 | BQ39: 2.414759973 | BR39: 2.359463249 | BS39: 0
B40: 1064.354941 | C40: 282.9218811 | D40: 14.14213562 | E40: 282.9218811 | F40: 14.14213562 | H40: 1064.354941 | I40: 1.998035883 | J40: 1.998035883 | K40: 10.00000309 | L40: 10.00000309 | N40: 222.6990591 | O40: 222.6990591 | P40: 0.2226990591 | Q40: 0.2226990591 | R40: 0.6368767377 | S40: 0.6368767377 | T40: 2.220852184 | U40: 0.002220852184 | AO40: 124.7534822 | AP40: 124.7534822 | AQ40: 0.1247534822 | AR40: 0.1247534822 | AT40: 0 | AU40: 0 | AW40: 48 | AX40: 29.87489891 | AY40: 29.87489891 | AZ40: 18.61365113 | BA40: 0 | BB40: 0 | BD40: -381.3309303 | BE40: -381.3309303 | BF40: -2.693015044 | BG40: -2.693015044 | BK40: 17.18813407 | BL40: 351.9867772 | BM40: 343.2385131 | BN40: 0 | BP40: 12.15384991 | BQ40: 2.485782325 | BR40: 2.424000799 | BS40: 0
B41: 1094.765082 | C41: 282.8998976 | D41: 14.14213562 | E41: 282.8998976 | F41: 14.14213562 | H41: 1094.765082 | I41: 1.997880633 | J41: 1.997880633 | K41: 10.00000309 | L41: 10.00000309 | N41: 229.0440909 | O41: 229.0440909 | P41: 0.2290440909 | Q41: 0.2290440909 | R41: 0.6432015776 | S41: 0.6432015776 | T41: 2.302103545 | U41: 0.002302103545 | AO41: 124.7534822 | AP41: 124.7534822 | AQ41: 0.1247534822 | AR41: 0.1247534822 | AT41: 0 | AU41: 0 | AW41: 48 | AX41: 30.45042221 | AY41: 30.45042221 | AZ41: 19.14546973 | BA41: 0 | BB41: 0 | BD41: -374.5421922 | BE41: -374.5421922 | BF41: -2.645071979 | BG41: -2.645071979 | BK41: 17.67922361 | BL41: 362.0435423 | BM41: 352.3261306 | BN41: 0 | BP41: 12.50110277 | BQ41: 2.556804677 | BR41: 2.488178888 | BS41: 0
B42: 1125.175223 | C42: 282.8779142 | D42: 14.14213562 | E42: 282.8779142 | F42: 14.14213562 | H42: 1125.175223 | I42: 1.997725383 | J42: 1.997725383 | K42: 10.00000309 | L42: 10.00000309 | N42: 235.3881339 | O42: 235.3881339 | P42: 0.2353881339 | Q42: 0.2353881339 | R42: 0.6492994564 | S42: 0.6492994564 | T42: 2.384343708 | U42: 0.002384343708 | AO42: 124.7534822 | AP42: 124.7534822 | AQ42: 0.1247534822 | AR42: 0.1247534822 | AT42: 0 | AU42: 0 | AW42: 48 | AX42: 31.02617708 | AY42: 31.02617708 | AZ42: 19.67728833 | BA42: 0 | BB42: 0 | BD42: -367.989942 | BE42: -367.989942 | BF42: -2.598799026 | BG42: -2.598799026 | BK42: 18.17031316 | BL42: 372.1003073 | BM42: 361.3628485 | BN42: 0 | BP42: 12.84835562 | BQ42: 2.627827029 | BR42: 2.551997518 | BS42: 0
B43: 1155.585364 | C43: 282.8559307 | D43: 14.14213562 | E43: 282.8559307 | F43: 14.14213562 | H43: 1155.585364 | I43: 1.997570132 | J43: 1.997570132 | K43: 10.00000309 | L43: 10.00000309 | N43: 241.7311881 | O43: 241.7311881 | P43: 0.2417311881 | Q43: 0.2417311881 | R43: 0.6551822337 | S43: 0.6551822337 | T43: 2.467572674 | U43: 0.002467572674 | AO43: 124.7534822 | AP43: 124.7534822 | AQ43: 0.1247534822 | AR43: 0.1247534822 | AT43: 0 | AU43: 0 | AW43: 48 | AX43: 31.60215085 | AY43: 31.60215085 | AZ43: 20.20910694 | BA43: 0 | BB43: 0 | BD43: -361.6620342 | BE43: -361.6620342 | BF43: -2.554110411 | BG43: -2.554110411 | BK43: 18.6614027 | BL43: 382.1570724 | BM43: 370.3486669 | BN43: 0 | BP43: 13.19560848 | BQ43: 2.698849381 | BR43: 2.615456687 | BS43: 0
B44: 1185.995506 | C44: 282.8339473 | D44: 14.14213562 | E44: 282.8339473 | F44: 14.14213562 | H44: 1185.995506 | I44: 1.997414882 | J44: 1.997414882 | K44: 10.00000309 | L44: 10.00000309 | N44: 248.0732535 | O44: 248.0732535 | P44: 0.2480732535 | Q44: 0.2480732535 | R44: 0.6608609566 | S44: 0.6608609566 | T44: 2.551790442 | U44: 0.002551790442 | AO44: 124.7534822 | AP44: 124.7534822 | AQ44: 0.1247534822 | AR44: 0.1247534822 | AT44: 0 | AU44: 0 | AW44: 48 | AX44: 32.17833177 | AY44: 32.17833177 | AZ44: 20.74092554 | BA44: 0 | BB44: 0 | BD44: -355.5471406 | BE44: -355.5471406 | BF44: -2.510926134 | BG44: -2.510926134 | BK44: 19.15249224 | BL44: 392.2138375 | BM44: 379.2835857 | BN44: 0 | BP44: 13.54286133 | BQ44: 2.769871733 | BR44: 2.678556396 | BS44: 0
B45: 1216.405647 | C45: 282.8119639 | D45: 14.14213562 | E45: 282.8119639 | F45: 14.14213562 | H45: 1216.405647 | I45: 1.997259632 | J45: 1.997259632 | K45: 10.00000309 | L45: 10.00000309 | N45: 254.4143301 | O45: 254.4143301 | P45: 0.2544143301 | Q45: 0.2544143301 | R45: 0.6663459286 | S45: 0.6663459286 | T45: 2.636997012 | U45: 0.002636997012 | AO45: 124.7534822 | AP45: 124.7534822 | AQ45: 0.1247534822 | AR45: 0.1247534822 | AT45: 0 | AU45: 0 | AW45: 48 | AX45: 32.75470892 | AY45: 32.75470892 | AZ45: 21.27274414 | BA45: 0 | BB45: 0 | BD45: -349.6346835 | BE45: -349.6346835 | BF45: -2.469171493 | BG45: -2.469171493 | BK45: 19.64358179 | BL45: 402.2706025 | BM45: 388.1676049 | BN45: 0 | BP45: 13.89011419 | BQ45: 2.840894086 | BR45: 2.741296645 | BS45: 0
B46: 1246.815788 | C46: 282.7899804 | D46: 14.14213562 | E46: 282.7899804 | F46: 14.14213562 | H46: 1246.815788 | I46: 1.997104381 | J46: 1.997104381 | K46: 10.00000309 | L46: 10.00000309 | N46: 260.754418 | O46: 260.754418 | P46: 0.260754418 | Q46: 0.260754418 | R46: 0.6716467711 | S46: 0.6716467711 | T46: 2.723192385 | U46: 0.002723192385 | AO46: 124.7534822 | AP46: 124.7534822 | AQ46: 0.1247534822 | AR46: 0.1247534822 | AT46: 0 | AU46: 0 | AW46: 48 | AX46: 33.3312721 | AY46: 33.3312721 | AZ46: 21.80456275 | BA46: 0 | BB46: 0 | BD46: -343.9147738 | BE46: -343.9147738 | BF46: -2.428776651 | BG46: -2.428776651 | BK46: 20.13467133 | BL46: 412.3273676 | BM46: 397.0007246 | BN46: 0 | BP46: 14.23736704 | BQ46: 2.911916438 | BR46: 2.803677434 | BS46: 0
B47: 1277.225929 | C47: 282.767997 | D47: 14.14213562 | E47: 282.767997 | F47: 14.14213562 | H47: 1277.225929 | I47: 1.996949131 | J47: 1.996949131 | K47: 10.00000309 | L47: 10.00000309 | N47: 267.093517 | O47: 267.093517 | P47: 0.267093517 | Q47: 0.267093517 | R47: 0.6767724788 | S47: 0.6767724788 | T47: 2.81037656 | U47: 0.00281037656 | AO47: 124.7534822 | AP47: 124.7534822 | AQ47: 0.1247534822 | AR47: 0.1247534822 | AT47: 0 | AU47: 0 | AW47: 48 | AX47: 33.90801184 | AY47: 33.90801184 | AZ47: 22.33638135 | BA47: 0 | BB47: 0 | BD47: -338.3781565 | BE47: -338.3781565 | BF47: -2.389676246 | BG47: -2.389676246 | BK47: 20.62576088 | BL47: 422.3841326 | BM47: 405.7829448 | BN47: 0 | BP47: 14.5846199 | BQ47: 2.98293879 | BR47: 2.865698763 | BS47: 0
B48: 1307.63607 | C48: 282.7460135 | D48: 14.14213562 | E48: 282.7460135 | F48: 14.14213562 | H48: 1307.63607 | I48: 1.996793881 | J48: 1.996793881 | K48: 10.00000309 | L48: 10.00000309 | N48: 273.4316272 | O48: 273.4316272 | P48: 0.2734316272 | Q48: 0.2734316272 | R48: 0.6817314698 | S48: 0.6817314698 | T48: 2.898549537 | U48: 0.002898549537 | AO48: 124.7534822 | AP48: 124.7534822 | AQ48: 0.1247534822 | AR48: 0.1247534822 | AT48: 0 | AU48: 0 | AW48: 48 | AX48: 34.48491927 | AY48: 34.48491927 | AZ48: 22.86819995 | BA48: 0 | BB48: 0 | BD48: -333.01616 | BE48: -333.01616 | BF48: -2.35180904 | BG48: -2.35180904 | BK48: 21.11685042 | BL48: 432.4408977 | BM48: 414.5050904 | BN48: 0 | BP48: 14.93187275 | BQ48: 3.053961142 | BR48: 2.927295836 | BS48: 0
B49: 1338.046211 | C49: 282.7240301 | D49: 14.14213562 | E49: 282.7240301 | F49: 14.14213562 | H49: 1338.046211 | I49: 1.996638631 | J49: 1.996638631 | K49: 10.00000309 | L49: 10.00000309 | N49: 279.7687486 | O49: 279.7687486 | P49: 0.2797687486 | Q49: 0.2797687486 | R49: 0.6865316314 | S49: 0.6865316314 | T49: 2.987711317 | U49: 0.002987711317 | AO49: 124.7534822 | AP49: 124.7534822 | AQ49: 0.1247534822 | AR49: 0.1247534822 | AT49: 0 | AU49: 0 | AW49: 48 | AX49: 35.06198612 | AY49: 35.06198612 | AZ49: 23.40001856 | BA49: 0 | BB49: 0 | BD49: -327.8206517 | BE49: -327.8206517 | BF49: -2.315117597 | BG49: -2.315117597 | BK49: 21.60793997 | BL49: 442.4976628 | BM49: 423.1382187 | BN49: 0 | BP49: 15.27912561 | BQ49: 3.124983494 | BR49: 2.988264257 | BS49: 0
B50: 1368.456353 | C50: 282.7020467 | D50: 14.14213562 | E50: 282.7020467 | F50: 14.14213562 | H50: 1368.456353 | I50: 1.99648338 | J50: 1.99648338 | K50: 10.00000309 | L50: 10.00000309 | N50: 286.1048812 | O50: 286.1048812 | P50: 0.2861048812 | Q50: 0.2861048812 | R50: 0.6911803608 | S50: 0.6911803608 | T50: 3.077861898 | U50: 0.003077861898 | AO50: 124.7534822 | AP50: 124.7534822 | AQ50: 0.1247534822 | AR50: 0.1247534822 | AT50: 0 | AU50: 0 | AW50: 48 | AX50: 35.63920463 | AY50: 35.63920463 | AZ50: 23.93183716 | BA50: 0 | BB50: 0 | BD50: -322.7839959 | BE50: -322.7839959 | BF50: -2.279547994 | BG50: -2.279547994 | BK50: 22.09902951 | BL50: 452.5544278 | BM50: 431.6802086 | BN50: 0 | BP50: 15.62637846 | BQ50: 3.196005846 | BR50: 3.048589044 | BS50: 0
B51: 1398.866494 | C51: 282.6800632 | D51: 14.14213562 | E51: 282.6800632 | F51: 14.14213562 | H51: 1398.866494 | I51: 1.99632813 | J51: 1.99632813 | K51: 10.00000309 | L51: 10.00000309 | N51: 292.440025 | O51: 292.440025 | P51: 0.292440025 | Q51: 0.292440025 | R51: 0.6956846033 | S51: 0.6956846033 | T51: 3.169001283 | U51: 0.003169001283 | AO51: 124.7534822 | AP51: 124.7534822 | AQ51: 0.1247534822 | AR51: 0.1247534822 | AT51: 0 | AU51: 0 | AW51: 48 | AX51: 36.21656757 | AY51: 36.21656757 | AZ51: 24.46365576 | BA51: 0 | BB51: 0 | BD51: -317.8990169 | BE51: -317.8990169 | BF51: -2.245049555 | BG51: -2.245049555 | BK51: 22.59011906 | BL51: 462.6111929 | BM51: 440.13106 | BN51: 0 | BP51: 15.97363132 | BQ51: 3.267028198 | BR51: 3.108270198 | BS51: 0
B52: 1429.276635 | C52: 282.6580798 | D52: 14.14213562 | E52: 282.6580798 | F52: 14.14213562 | H52: 1429.276635 | I52: 1.99617288 | J52: 1.99617288 | K52: 10.00000309 | L52: 10.00000309 | N52: 298.7741799 | O52: 298.7741799 | P52: 0.2987741799 | Q52: 0.2987741799 | R52: 0.7000508854 | S52: 0.7000508854 | T52: 3.261129469 | U52: 0.003261129469 | AO52: 124.7534822 | AP52: 124.7534822 | AQ52: 0.1247534822 | AR52: 0.1247534822 | AT52: 0 | AU52: 0 | AW52: 48 | AX52: 36.79406813 | AY52: 36.79406813 | AZ52: 24.99547437 | BA52: 0 | BB52: 0 | BD52: -313.1589649 | BE52: -313.1589649 | BF52: -2.211574611 | BG52: -2.211574611 | BK52: 23.0812086 | BL52: 472.667958 | BM52: 448.4907729 | BN52: 0 | BP52: 16.32088417 | BQ52: 3.338050551 | BR52: 3.167307718 | BS52: 0
B53: 1459.686776 | C53: 282.6360963 | D53: 14.14213562 | E53: 282.6360963 | F53: 14.14213562 | H53: 1459.686776 | I53: 1.996017629 | J53: 1.996017629 | K53: 10.00000309 | L53: 10.00000309 | N53: 305.1073461 | O53: 305.1073461 | P53: 0.3051073461 | Q53: 0.3051073461 | R53: 0.7042853468 | S53: 0.7042853468 | T53: 3.354246458 | U53: 0.003354246458 | AO53: 124.7534822 | AP53: 124.7534822 | AQ53: 0.1247534822 | AR53: 0.1247534822 | AT53: 0 | AU53: 0 | AW53: 48 | AX53: 37.37169993 | AY53: 37.37169993 | AZ53: 25.52729297 | BA53: 0 | BB53: 0 | BD53: -308.5574846 | BE53: -308.5574846 | BF53: -2.179078281 | BG53: -2.179078281 | BK53: 23.57229815 | BL53: 482.724723 | BM53: 456.7593473 | BN53: 0 | BP53: 16.66813703 | BQ53: 3.409072903 | BR53: 3.225701605 | BS53: 0
B54: 1490.096917 | C54: 282.6141129 | D54: 14.14213562 | E54: 282.6141129 | F54: 14.14213562 | H54: 1490.096917 | I54: 1.995862379 | J54: 1.995862379 | K54: 10.00000309 | L54: 10.00000309 | N54: 311.4395235 | O54: 311.4395235 | P54: 0.3114395235 | Q54: 0.3114395235 | R54: 0.7083937678 | S54: 0.7083937678 | T54: 3.448352249 | U54: 0.003448352249 | AO54: 124.7534822 | AP54: 124.7534822 | AQ54: 0.1247534822 | AR54: 0.1247534822 | AT54: 0 | AU54: 0 | AW54: 48 | AX54: 37.94945697 | AY54: 37.94945697 | AZ54: 26.05911158 | BA54: 0 | BB54: 0 | BD54: -304.0885871 | BE54: -304.0885871 | BF54: -2.14751827 | BG54: -2.14751827 | BK54: 24.06338769 | BL54: 492.7814881 | BM54: 464.9367832 | BN54: 0 | BP54: 17.01538988 | BQ54: 3.480095255 | BR54: 3.283451859 | BS54: 0
B55: 1520.507058 | C55: 282.5921294 | D55: 14.14213562 | E55: 282.5921294 | F55: 14.14213562 | H55: 1520.507058 | I55: 1.995707129 | J55: 1.995707129 | K55: 10.00000309 | L55: 10.00000309 | N55: 317.7707121 | O55: 317.7707121 | P55: 0.3177707121 | Q55: 0.3177707121 | R55: 0.712381596 | S55: 0.712381596 | T55: 3.543446842 | U55: 0.003543446842 | AO55: 124.7534822 | AP55: 124.7534822 | AQ55: 0.1247534822 | AR55: 0.1247534822 | AT55: 0 | AU55: 0 | AW55: 48 | AX55: 38.52733363 | AY55: 38.52733363 | AZ55: 26.59093018 | BA55: 0 | BB55: 0 | BD55: -299.7466234 | BE55: -299.7466234 | BF55: -2.116854685 | BG55: -2.116854685 | BK55: 24.55447724 | BL55: 502.8382531 | BM55: 473.0230806 | BN55: 0 | BP55: 17.36264274 | BQ55: 3.551117607 | BR55: 3.340558479 | BS55: 0
B56: 1550.9172 | C56: 282.570146 | D56: 14.14213562 | E56: 282.570146 | F56: 14.14213562 | H56: 1550.9172 | I56: 1.995551879 | J56: 1.995551879 | K56: 10.00000309 | L56: 10.00000309 | N56: 324.1009119 | O56: 324.1009119 | P56: 0.3241009119 | Q56: 0.3241009119 | R56: 0.7162539693 | S56: 0.7162539693 | T56: 3.639530238 | U56: 0.003639530238 | AO56: 124.7534822 | AP56: 124.7534822 | AQ56: 0.1247534822 | AR56: 0.1247534822 | AT56: 0 | AU56: 0 | AW56: 48 | AX56: 39.1053246 | AY56: 39.1053246 | AZ56: 27.12274878 | BA56: 0 | BB56: 0 | BD56: -295.5262612 | BE56: -295.5262612 | BF56: -2.087049867 | BG56: -2.087049867 | BK56: 25.04556678 | BL56: 512.8950182 | BM56: 481.0182396 | BN56: 0 | BP56: 17.70989559 | BQ56: 3.622139959 | BR56: 3.397021466 | BS56: 0
B57: 1581.327341 | C57: 282.5481626 | D57: 14.14213562 | E57: 282.5481626 | F57: 14.14213562 | H57: 1581.327341 | I57: 1.995396628 | J57: 1.995396628 | K57: 10.00000309 | L57: 10.00000309 | N57: 330.4301229 | O57: 330.4301229 | P57: 0.3304301229 | Q57: 0.3304301229 | R57: 0.7200157379 | S57: 0.7200157379 | T57: 3.736602436 | U57: 0.003736602436 | AO57: 124.7534822 | AP57: 124.7534822 | AQ57: 0.1247534822 | AR57: 0.1247534822 | AT57: 0 | AU57: 0 | AW57: 48 | AX57: 39.68342489 | AY57: 39.68342489 | AZ57: 27.65456739 | BA57: 0 | BB57: 0 | BD57: -291.4224628 | BE57: -291.4224628 | BF57: -2.05806824 | BG57: -2.05806824 | BK57: 25.53665633 | BL57: 522.9517833 | BM57: 488.9222601 | BN57: 0 | BP57: 18.05714844 | BQ57: 3.693162311 | BR57: 3.45284082 | BS57: 0
B58: 1611.737482 | C58: 282.5261791 | D58: 14.14213562 | E58: 282.5261791 | F58: 14.14213562 | H58: 1611.737482 | I58: 1.995241378 | J58: 1.995241378 | K58: 10.00000309 | L58: 10.00000309 | N58: 336.7583451 | O58: 336.7583451 | P58: 0.3367583451 | Q58: 0.3367583451 | R58: 0.7236714839 | S58: 0.7236714839 | T58: 3.834663437 | U58: 0.003834663437 | AO58: 124.7534822 | AP58: 124.7534822 | AQ58: 0.1247534822 | AR58: 0.1247534822 | AT58: 0 | AU58: 0 | AW58: 48 | AX58: 40.26162978 | AY58: 40.26162978 | AZ58: 28.18638599 | BA58: 0 | BB58: 0 | BD58: -287.4304647 | BE58: -287.4304647 | BF58: -2.029876163 | BG58: -2.029876163 | BK58: 26.02774587 | BL58: 533.0085483 | BM58: 496.7351421 | BN58: 0 | BP58: 18.4044013 | BQ58: 3.764184663 | BR58: 3.50801654 | BS58: 0
B59: 1642.147623 | C59: 282.5041957 | D59: 14.14213562 | E59: 282.5041957 | F59: 14.14213562 | H59: 1642.147623 | I59: 1.995086128 | J59: 1.995086128 | K59: 10.00000309 | L59: 10.00000309 | N59: 343.0855784 | O59: 343.0855784 | P59: 0.3430855784 | Q59: 0.3430855784 | R59: 0.72722554 | S59: 0.72722554 | T59: 3.933713239 | U59: 0.003933713239 | AO59: 124.7534822 | AP59: 124.7534822 | AQ59: 0.1247534822 | AR59: 0.1247534822 | AT59: 0 | AU59: 0 | AW59: 48 | AX59: 40.83993484 | AY59: 40.83993484 | AZ59: 28.71820459 | BA59: 0 | BB59: 0 | BD59: -283.5625229 | BE59: -283.5625229 | BF59: -2.00256019 | BG59: -2.00256019 | BK59: 26.51883542 | BL59: 543.0653134 | BM59: 504.4568856 | BN59: 0 | BP59: 18.75165415 | BQ59: 3.835207015 | BR59: 3.562548627 | BS59: 0
B60: 1672.557764 | C60: 282.4211494 | D60: 14.13895535 | E60: 282.4822122 | F60: 14.14213562 | H60: 1672.557764 | I60: 1.994499643 | J60: 1.994930877 | K60: 9.997754304 | L60: 10.00000309 | N60: 349.3362924 | O60: 349.411823 | P60: 0.3493362924 | Q60: 0.349411823 | R60: 0.730725204 | S60: 0.7306820059 | T60: 4.033751844 | U60: 0.004033751844 | AO60: 124.6973797 | AP60: 124.7534822 | AQ60: 0.1246973797 | AR60: 0.1247534822 | AT60: 0 | AU60: 0 | AW60: 48 | AX60: 41.41833587 | AY60: 41.41544364 | AZ60: 29.2500232 | BA60: 0 | BB60: 0 | BD60: -279.8004377 | BE60: -279.8004377 | BF60: -1.975991791 | BG60: -1.975991791 | BK60: 27.00992496 | BL60: 553.1220785 | BM60: 512.0874906 | BN60: 0 | BP60: 19.09890701 | BQ60: 3.906229368 | BR60: 3.61643708 | BS60: 0
B61: 1702.967906 | C61: 282.3240814 | D61: 14.13504496 | E61: 282.4602288 | F61: 14.14213562 | H61: 1702.967906 | I61: 1.993814134 | J61: 1.994775627 | K61: 9.994989234 | L61: 10.00000309 | N61: 355.5656115 | O61: 355.7370788 | P61: 0.3555656115 | Q61: 0.3557370788 | R61: 0.7341401604 | S61: 0.7340447637 | T61: 4.134779251 | U61: 0.004134779251 | AO61: 124.6284143 | AP61: 124.7534822 | AQ61: 0.1246284143 | AR61: 0.1247534822 | AT61: 0 | AU61: 0 | AW61: 48 | AX61: 41.9968289 | AY61: 41.99034321 | AZ61: 29.7818418 | BA61: 0 | BB61: 0 | BD61: -276.1364689 | BE61: -276.1364689 | BF61: -1.950116306 | BG61: -1.950116306 | BK61: 27.50101451 | BL61: 563.1788435 | BM61: 519.6269571 | BN61: 0 | BP61: 19.44615986 | BQ61: 3.97725172 | BR61: 3.6696819 | BS61: 0
B62: 1733.378047 | C62: 282.2262541 | D62: 14.13109519 | E62: 282.4382454 | F62: 14.14213562 | H62: 1733.378047 | I62: 1.993123264 | J62: 1.994620377 | K62: 9.992196324 | L62: 10.00000309 | N62: 361.7895914 | O62: 362.0613457 | P62: 0.3617895914 | Q62: 0.3620613457 | R62: 0.737464618 | S62: 0.7373174926 | T62: 4.236795461 | U62: 0.004236795461 | AO62: 124.558774 | AP62: 124.7534822 | AQ62: 0.124558774 | AR62: 0.1247534822 | AT62: 0 | AU62: 0 | AW62: 48 | AX62: 42.57541018 | AY62: 42.56525356 | AZ62: 30.3136604 | BA62: 0 | BB62: 0 | BD62: -272.5668269 | BE62: -272.5668269 | BF62: -1.92490697 | BG62: -1.92490697 | BK62: 27.99210405 | BL62: 573.2356086 | BM62: 527.0752851 | BN62: 0 | BP62: 19.79341272 | BQ62: 4.048274072 | BR62: 3.722283087 | BS62: 0
B63: 1763.788188 | C63: 282.1276669 | D63: 14.12710601 | E63: 282.4162619 | F63: 14.14213562 | H63: 1763.788188 | I63: 1.992427026 | J63: 1.994465127 | K63: 9.989375551 | L63: 10.00000309 | N63: 368.0081796 | O63: 368.3846239 | P63: 0.3680081796 | Q63: 0.3683846239 | R63: 0.7407020691 | S63: 0.7405036814 | T63: 4.339800473 | U63: 0.004339800473 | AO63: 124.4884586 | AP63: 124.7534822 | AQ63: 0.1244884586 | AR63: 0.1247534822 | AT63: 0 | AU63: 0 | AW63: 48 | AX63: 43.15407617 | AY63: 43.14017029 | AZ63: 30.84547901 | BA63: 0 | BB63: 0 | BD63: -269.0879145 | BE63: -269.0879145 | BF63: -1.900338379 | BG63: -1.900338379 | BK63: 28.48319359 | BL63: 583.2923736 | BM63: 534.4324747 | BN63: 0 | BP63: 20.14066557 | BQ63: 4.119296424 | BR63: 3.77424064 | BS63: 0
B64: 1794.198329 | C64: 282.0283189 | D64: 14.1230774 | E64: 282.3942785 | F64: 14.14213562 | H64: 1794.198329 | I64: 1.991725416 | J64: 1.994309876 | K64: 9.986526892 | L64: 10.00000309 | N64: 374.2213241 | O64: 374.7069133 | P64: 0.3742213241 | Q64: 0.3747069133 | R64: 0.7438558285 | S64: 0.743606641 | T64: 4.443794287 | U64: 0.004443794287 | AO64: 124.4174683 | AP64: 124.7534822 | AQ64: 0.1244174683 | AR64: 0.1247534822 | AT64: 0 | AU64: 0 | AW64: 48 | AX64: 43.73282349 | AY64: 43.71508918 | AZ64: 31.37729761 | BA64: 0 | BB64: 0 | BD64: -265.6963152 | BE64: -265.6963152 | BF64: -1.876386406 | BG64: -1.876386406 | BK64: 28.97428314 | BL64: 593.3491387 | BM64: 541.6985258 | BN64: 0 | BP64: 20.48791843 | BQ64: 4.190318776 | BR64: 3.82555456 | BS64: 0
B65: 1824.60847 | C65: 281.9282094 | D65: 14.11900932 | E65: 282.372295 | F65: 14.14213562 | H65: 1824.60847 | I65: 1.991018428 | J65: 1.994154626 | K65: 9.983650323 | L65: 10.00000309 | N65: 380.4289725 | O65: 381.0282138 | P65: 0.3804289725 | Q65: 0.3810282138 | R65: 0.7469290447 | S65: 0.7466295156 | T65: 4.548776904 | U65: 0.004548776904 | AO65: 124.3458029 | AP65: 124.7534822 | AQ65: 0.1243458029 | AR65: 0.1247534822 | AT65: 0 | AU65: 0 | AW65: 48 | AX65: 44.31164897 | AY65: 44.2900062 | AZ65: 31.90911622 | BA65: 0 | BB65: 0 | BD65: -262.3887817 | BE65: -262.3887817 | BF65: -1.853028119 | BG65: -1.853028119 | BK65: 29.46537268 | BL65: 603.4059038 | BM65: 548.8734384 | BN65: 0 | BP65: 20.83517128 | BQ65: 4.261341128 | BR65: 3.876224847 | BS65: 0
B66: 1855.018611 | C66: 281.8273377 | D66: 14.11490173 | E66: 282.3503116 | F66: 14.14213562 | H66: 1855.018611 | I66: 1.990306057 | J66: 1.993999376 | K66: 9.980745819 | L66: 10.00000309 | N66: 386.6310723 | O66: 387.3485256 | P66: 0.3866310723 | Q66: 0.3873485256 | R66: 0.7499247099 | S66: 0.749575293 | T66: 4.654748322 | U66: 0.004654748322 | AO66: 124.2734626 | AP66: 124.7534822 | AQ66: 0.1242734626 | AR66: 0.1247534822 | AT66: 0 | AU66: 0 | AW66: 48 | AX66: 44.89054958 | AY66: 44.86491749 | AZ66: 32.44093482 | BA66: 0 | BB66: 0 | BD66: -259.162226 | BE66: -259.162226 | BF66: -1.830241709 | BG66: -1.830241709 | BK66: 29.95646223 | BL66: 613.4626688 | BM66: 555.9572125 | BN66: 0 | BP66: 21.18242414 | BQ66: 4.33236348 | BR66: 3.9262515 | BS66: 0
B67: 1885.428753 | C67: 281.7257031 | D67: 14.1107546 | E67: 282.3283282 | F67: 14.14213562 | H67: 1885.428753 | I67: 1.989588298 | J67: 1.993844125 | K67: 9.977813356 | L67: 10.00000309 | N67: 392.8275711 | O67: 393.6678486 | P67: 0.3928275711 | Q67: 0.3936678486 | R67: 0.7528456697 | S67: 0.7524468142 | T67: 4.761708543 | U67: 0.004761708543 | AO67: 124.2004472 | AP67: 124.7534822 | AQ67: 0.1242004472 | AR67: 0.1247534822 | AT67: 0 | AU67: 0 | AW67: 48 | AX67: 45.46952246 | AY67: 45.43981935 | AZ67: 32.97275342 | BA67: 0 | BB67: 0 | BD67: -256.0137094 | BE67: -256.0137094 | BF67: -1.808006422 | BG67: -1.808006422 | BK67: 30.44755177 | BL67: 623.5194339 | BM67: 562.9498481 | BN67: 0 | BP67: 21.52967699 | BQ67: 4.403385833 | BR67: 3.97563452 | BS67: 0
B68: 1915.838894 | C68: 281.6233046 | D68: 14.1065679 | E68: 282.3063447 | F68: 14.14213562 | H68: 1915.838894 | I68: 1.988865146 | J68: 1.993688875 | K68: 9.97485291 | L68: 10.00000309 | N68: 399.0184163 | O68: 399.9861827 | P68: 0.3990184163 | Q68: 0.3999861827 | R68: 0.7556946321 | S68: 0.7552467822 | T68: 4.869657567 | U68: 0.004869657567 | AO68: 124.1267569 | AP68: 124.7534822 | AQ68: 0.1241267569 | AR68: 0.1247534822 | AT68: 0 | AU68: 0 | AW68: 48 | AX68: 46.04856486 | AY68: 46.01470823 | AZ68: 33.50457203 | BA68: 0 | BB68: 0 | BD68: -252.9404337 | BE68: -252.9404337 | BF68: -1.786302498 | BG68: -1.786302498 | BK68: 30.93864132 | BL68: 633.576199 | BM68: 569.8513452 | BN68: 0 | BP68: 21.87692985 | BQ68: 4.474408185 | BR68: 4.024373907 | BS68: 0
B69: 1946.249035 | C69: 281.5201416 | D69: 14.10234159 | E69: 282.2843613 | F69: 14.14213562 | H69: =B69*$X$1 -> 1946.249035 | I69: =C69/$X$2 -> 1.988136593 | J69: =E69/$X$2 -> 1.993533625 | K69: =D69*$AD$1 -> 9.971864455 | L69: =$AD$1*F69 -> 10.00000309 | N69: 405.2035552 | O69: 406.3035281 | P69: =N69*$AJ$1 -> 0.4052035552 | Q69: =O69*$AJ$1 -> 0.4063035281 | R69: 0.7584741755 | S69: 0.7579777704 | T69: 4.978595393 | U69: =T69*$AJ$1 -> 0.004978595393 | AO69: 124.0523916 | AP69: 124.7534822 | AQ69: =AO69*$AJ$1 -> 0.1240523916 | AR69: =AP69*$AJ$1 -> 0.1247534822 | AT69: 0 | AU69: 0 | AW69: 48 | AX69: 46.62767422 | AY69: 46.58958071 | AZ69: 34.03639063 | BA69: 0 | BB69: 0 | BD69: -249.9397329 | BE69: -249.9397329 | BF69: -1.765111108 | BG69: -1.765111108 | BK69: 31.42973086 | BL69: 643.632964 | BM69: 576.6617038 | BN69: 0 | BP69: 22.2241827 | BQ69: 4.545430537 | BR69: 4.07246966 | BS69: 0
B70: 1976.659176 | C70: 281.4162133 | D70: 14.09807563 | E70: 282.2623778 | F70: 14.14213562 | H70: 1976.659176 | I70: 1.987402636 | J70: 1.993378375 | K70: 9.968847967 | L70: 10.00000309 | N70: 411.3829351 | O70: 412.6198846 | P70: 0.4113829351 | Q70: 0.4126198846 | R70: 0.7611867565 | S70: 0.7606422304 | T70: 5.088522021 | U70: 0.005088522021 | AO70: 123.9773513 | AP70: 124.7534822 | AQ70: 0.1239773513 | AR70: 0.1247534822 | AT70: 0 | AU70: 0 | AW70: 48 | AX70: 47.20684805 | AY70: 47.16443351 | AZ70: 34.56820923 | BA70: 0 | BB70: 0 | BD70: =141.6*$BJ$2*R71*$AY$1/(B71*PI()/30+0.000001) -> -247.0090654 | BE70: =141.6*$BJ$1*R71/(B71*PI()/30+0.000001) -> -247.0090654 | BF70: =MIN(BD70/$X$2,I70) -> -1.744414304 | BG70: =MIN(BE70/$X$2,J70) -> -1.744414304 | BK70: 31.92082041 | BL70: 653.6897291 | BM70: 583.380924 | BN70: 0 | BP70: =BK70*$AD$1 -> 22.57143556 | BQ70: =BL70/$X$2 -> 4.616452889 | BR70: =BM70/$X$2 -> 4.11992178 | BS70: =BN70/$X$2 -> 0
B71: 2007.069317 | C71: 281.3115188 | D71: 14.09377 | E71: 282.2403944 | F71: 14.14213562 | H71: 2007.069317 | I71: 1.986663269 | J71: 1.993223124 | K71: 9.96580342 | L71: 10.00000309 | N71: 417.5565032 | O71: 418.9352524 | P71: 0.4175565032 | Q71: 0.4189352524 | R71: 0.7638347171 | S71: 0.763242499 | T71: 5.199437451 | U71: 0.005199437451 | AO71: 123.9016359 | AP71: 124.7534822 | AQ71: 0.1239016359 | AR71: 0.1247534822 | AT71: 0 | AU71: 0 | AW71: 48 | AX71: 47.78608402 | AY71: 47.73926348 | AZ71: 35.10002784 | BA71: 0 | BB71: 0 | BD71: -245.3790498 | BE71: -245.3790498 | BF71: -1.732902894 | BG71: -1.732902894 | BK71: 32.41190995 | BL71: 663.7464941 | BM71: 590.0090057 | BN71: 0 | BP71: 22.91868841 | BQ71: 4.687475241 | BR71: 4.166730266 | BS71: 0
B72: 2037.479458 | C72: 275.1012476 | D72: 13.77202636 | E72: 275.1012476 | F72: 13.77202636 | H72: 2037.479458 | I72: 1.942805421 | J72: 1.942805421 | K72: 9.738296245 | L72: 9.738296245 | N72: 414.5254157 | O72: 414.5254157 | P72: 0.4145254157 | Q72: 0.4145254157 | R72: 0.7702910443 | S72: 0.7702910443 | T72: 5.311341684 | U72: 0.005311341684 | AO72: 118.3091603 | AP72: 118.3091603 | AQ72: 0.1183091603 | AR72: 0.1183091603 | AT72: 0 | AU72: 0 | AW72: 48 | AX72: 48.00561423 | AY72: 48.00561423 | AZ72: 35.63184644 | BA72: 0 | BB72: 0 | BD72: -244.7940144 | BE72: -244.7940144 | BF72: -1.728771288 | BG72: -1.728771288 | BK72: 32.9029995 | BL72: 673.8032592 | BM72: 596.5459489 | BN72: 0 | BP72: 23.26594127 | BQ72: 4.758497593 | BR72: 4.212895119 | BS72: 0
B73: 2067.8896 | C73: 263.5969327 | D73: 13.17839301 | E73: 263.5969327 | F73: 13.17839301 | H73: 2067.8896 | I73: 1.861560259 | J73: 1.861560259 | K73: 9.318533949 | L73: 9.318533949 | N73: 403.1188124 | O73: 403.1188124 | P73: 0.4031188124 | Q73: 0.4031188124 | R73: 0.7799239782 | S73: 0.7799239782 | T73: 5.424234719 | U73: 0.005424234719 | AO73: 108.3297128 | AP73: 108.3297128 | AQ73: 0.1083297128 | AR73: 0.1083297128 | AT73: 0 | AU73: 0 | AW73: 48 | AX73: 48.00526399 | AY73: 48.00526399 | AZ73: 36.16366504 | BA73: 0 | BB73: 0 | BD73: -244.1692968 | BE73: -244.1692968 | BF73: -1.724359441 | BG73: -1.724359441 | BK73: 33.39408904 | BL73: 683.8600243 | BM73: 602.9917536 | BN73: 0 | BP73: 23.61319412 | BQ73: 4.829519945 | BR73: 4.258416339 | BS73: 0
B74: 2098.299741 | C74: 252.0821587 | D74: 12.58802582 | E74: 252.0821587 | F74: 12.58802582 | H74: 2098.299741 | I74: 1.780241234 | J74: 1.780241234 | K74: 8.901081173 | L74: 8.901081173 | N74: 391.1785214 | O74: 391.1785214 | P74: 0.3911785214 | Q74: 0.3911785214 | R74: 0.7893738018 | S74: 0.7893738018 | T74: 5.538116556 | U74: 0.005538116556 | AO74: 98.84118222 | AP74: 98.84118222 | AQ74: 0.09884118222 | AR74: 0.09884118222 | AT74: 0 | AU74: 0 | AW74: 48 | AX74: 48.00487743 | AY74: 48.00487743 | AZ74: 36.69548365 | BA74: 0 | BB74: 0 | BD74: -243.5034712 | BE74: -243.5034712 | BF74: -1.719657283 | BG74: -1.719657283 | BK74: 33.88517859 | BL74: 693.9167893 | BM74: 609.3464198 | BN74: 0 | BP74: 23.96044697 | BQ74: 4.900542298 | BR74: 4.303293925 | BS74: 0
B75: 2128.709882 | C75: 240.5594234 | D75: 12.0009894 | E75: 240.5594234 | F75: 12.0009894 | H75: 2128.709882 | I75: 1.698865985 | J75: 1.698865985 | K75: 8.485983611 | L75: 8.485983611 | N75: 378.7077694 | O75: 378.7077694 | P75: 0.3787077694 | Q75: 0.3787077694 | R75: 0.798630261 | S75: 0.798630261 | T75: 5.652987196 | U75: 0.005652987196 | AO75: 89.83731953 | AP75: 89.83731953 | AQ75: 0.08983731953 | AR75: 0.08983731953 | AT75: 0 | AU75: 0 | AW75: 48 | AX75: 48.00444897 | AY75: 48.00444897 | AZ75: 37.22730225 | BA75: 0 | BB75: 0 | BD75: -242.794323 | BE75: -242.794323 | BF75: -1.714649173 | BG75: -1.714649173 | BK75: 34.37626813 | BL75: 703.9735544 | BM75: 615.6099475 | BN75: 0 | BP75: 24.30769983 | BQ75: 4.97156465 | BR75: 4.347527878 | BS75: 0
B76: 2159.120023 | C76: 229.0336429 | D76: 11.41746965 | E76: 229.0336429 | F76: 11.41746965 | H76: 2159.120023 | I76: 1.61746923 | J76: 1.61746923 | K76: 8.07337271 | L76: 8.07337271 | N76: 365.713869 | O76: 365.713869 | P76: 0.365713869 | Q76: 0.365713869 | R76: 0.8076802102 | S76: 0.8076802102 | T76: 5.768846637 | U76: 0.005768846637 | AO76: 81.31345464 | AP76: 81.31345464 | AQ76: 0.08131345464 | AR76: 0.08131345464 | AT76: 0 | AU76: 0 | AW76: 48 | AX76: 48.00397283 | AY76: 48.00397283 | AZ76: 37.75912085 | BA76: 0 | BB76: 0 | BD76: -242.0386882 | BE76: -242.0386882 | BF76: -1.70931277 | BG76: -1.70931277 | BK76: 34.86735768 | BL76: 714.0303195 | BM76: 621.7823368 | BN76: 0 | BP76: 24.65495268 | BQ76: 5.042587002 | BR76: 4.391118197 | BS76: 0
B77: 2189.530164 | C77: 217.512864 | D77: 10.83780595 | E77: 217.512864 | F77: 10.83780595 | H77: 2189.530164 | I77: 1.536107797 | J77: 1.536107797 | K77: 7.663488451 | L77: 7.663488451 | N77: 352.2096446 | O77: 352.2096446 | P77: 0.3522096446 | Q77: 0.3522096446 | R77: 0.816506887 | S77: 0.816506887 | T77: 5.885694882 | U77: 0.005885694882 | AO77: 73.26649615 | AP77: 73.26649615 | AQ77: 0.07326649615 | AR77: 0.07326649615 | AT77: 0 | AU77: 0 | AW77: 48 | AX77: 48.00344342 | AY77: 48.00344342 | AZ77: 38.29093946 | BA77: 0 | BB77: 0 | BD77: -241.2322695 | BE77: -241.2322695 | BF77: -1.703617722 | BG77: -1.703617722 | BK77: 35.35844722 | BL77: 724.0870845 | BM77: 627.8635875 | BN77: 0 | BP77: 25.00220554 | BQ77: 5.113609354 | BR77: 4.434064884 | BS77: 0
B78: 2219.940305 | C78: 206.0091386 | D78: 10.26253037 | E78: 206.0091386 | F78: 10.26253037 | H78: 2219.940305 | I78: 1.454866798 | J78: 1.454866798 | K78: 7.256707061 | L78: 7.256707061 | N78: 338.2152199 | O78: 338.2152199 | P78: 0.3382152199 | Q78: 0.3382152199 | R78: 0.8250890588 | S78: 0.8250890588 | T78: 6.003531928 | U78: 0.006003531928 | AO78: 65.6948903 | AP78: 65.6948903 | AQ78: 0.0656948903 | AR78: 0.0656948903 | AT78: 0 | AU78: 0 | AW78: 48 | AX78: 48.00285597 | AY78: 48.00285597 | AZ78: 38.82275806 | BA78: 0 | BB78: 0 | BD78: -240.3694329 | BE78: -240.3694329 | BF78: -1.697524244 | BG78: -1.697524244 | BK78: 35.84953677 | BL78: 734.1438496 | BM78: 633.8536998 | BN78: 0 | BP78: 25.34945839 | BQ78: 5.184631706 | BR78: 4.476367936 | BS78: 0
B79: 2250.350447 | C79: 194.539567 | D79: 9.692413878 | E79: 194.539567 | F79: 9.692413878 | H79: 2250.350447 | I79: 1.373866999 | J79: 1.373866999 | K79: 6.8535737 | L79: 6.8535737 | N79: 323.7602044 | O79: 323.7602044 | P79: 0.3237602044 | Q79: 0.3237602044 | R79: 0.8334000534 | S79: 0.8334000534 | T79: 6.122357777 | U79: 0.006122357777 | AO79: 58.59851129 | AP79: 58.59851129 | AQ79: 0.05859851129 | AR79: 0.05859851129 | AT79: 0 | AU79: 0 | AW79: 48 | AX79: 48.0022072 | AY79: 48.0022072 | AZ79: 39.35457667 | BA79: 0 | BB79: 0 | BD79: -239.443003 | BE79: -239.443003 | BF79: -1.690981659 | BG79: -1.690981659 | BK79: 36.34062631 | BL79: 744.2006147 | BM79: 639.7526736 | BN79: 0 | BP79: 25.69671125 | BQ79: 5.255654058 | BR79: 4.518027356 | BS79: 0
B80: 2280.760588 | C80: 183.127489 | D80: 9.128518303 | E80: 183.127489 | F80: 9.128518303 | H80: 2280.760588 | I80: 1.293273227 | J80: 1.293273227 | K80: 6.454839192 | L80: 6.454839192 | N80: 308.8862703 | O80: 308.8862703 | P80: 0.3088862703 | Q80: 0.3088862703 | R80: 0.8414067258 | S80: 0.8414067258 | T80: 6.242172428 | U80: 0.006242172428 | AO80: 51.97844257 | AP80: 51.97844257 | AQ80: 0.05197844257 | AR80: 0.05197844257 | AT80: 0 | AU80: 0 | AW80: 48 | AX80: 48.0014957 | AY80: 48.0014957 | AZ80: 39.88639527 | BA80: 0 | BB80: 0 | BD80: -238.4440861 | BE80: -238.4440861 | BF80: -1.683927162 | BG80: -1.683927162 | BK80: 36.83171586 | BL80: 754.2573797 | BM80: 645.5605089 | BN80: 0 | BP80: 26.0439641 | BQ80: 5.32667641 | BR80: 4.559043142 | BS80: 0
B81: 2311.170729 | C81: 171.8037518 | D81: 8.57225026 | E81: 171.8037518 | F81: 8.57225026 | H81: 2311.170729 | I81: 1.213303332 | J81: 1.213303332 | K81: 6.061498165 | L81: 6.061498165 | N81: 293.6500213 | O81: 293.6500213 | P81: 0.2936500213 | Q81: 0.2936500213 | R81: 0.8490684687 | S81: 0.8490684687 | T81: 6.362975882 | U81: 0.006362975882 | AO81: 45.83659667 | AP81: 45.83659667 | AQ81: 0.04583659667 | AR81: 0.04583659667 | AT81: 0 | AU81: 0 | AW81: 48 | AX81: 48.00072133 | AY81: 48.00072133 | AZ81: 40.41821387 | BA81: 0 | BB81: 0 | BD81: -237.3622892 | BE81: -237.3622892 | BF81: -1.676287353 | BG81: -1.676287353 | BK81: 37.3228054 | BL81: 764.3141448 | BM81: 651.2772057 | BN81: 0 | BP81: 26.39121696 | BQ81: 5.397698763 | BR81: 4.599415295 | BS81: 0
B82: 2341.58087 | C82: 160.6065488 | D82: 8.025326647 | E82: 160.6065488 | F82: 8.025326647 | H82: 2341.58087 | I82: 1.134227039 | J82: 1.134227039 | K82: 5.674764649 | L82: 5.674764649 | N82: 278.1235575 | O82: 278.1235575 | P82: 0.2781235575 | Q82: 0.2781235575 | R82: 0.8563375977 | S82: 0.8563375977 | T82: 6.484768137 | U82: 0.006484768137 | AO82: 40.17428141 | AP82: 40.17428141 | AQ82: 0.04017428141 | AR82: 0.04017428141 | AT82: 0 | AU82: 0 | AW82: 48 | AX82: 48 | AY82: 48 | AZ82: 40.95003248 | BA82: 0 | BB82: 0 | BD82: -236.2198085 | BE82: -236.2198085 | BF82: -1.668218986 | BG82: -1.668218986 | BK82: 37.81389494 | BL82: 774.3709098 | BM82: 656.9027641 | BN82: 0 | BP82: 26.73846981 | BQ82: 5.468721115 | BR82: 4.639143814 | BS82: 0
B83: 2371.991011 | C83: 149.4261827 | D83: 7.480459159 | E83: 149.4261827 | F83: 7.480459159 | H83: 2371.991011 | I83: 1.055269652 | J83: 1.055269652 | K83: 5.289485035 | L83: 5.289485035 | N83: 262.1229853 | O83: 262.1229853 | P83: 0.2621229853 | Q83: 0.2621229853 | R83: 0.8632835809 | S83: 0.8632835809 | T83: 6.607549195 | U83: 0.006607549195 | AO83: 34.90432097 | AP83: 34.90432097 | AQ83: 0.03490432097 | AR83: 0.03490432097 | AT83: 0 | AU83: 0 | AW83: 48 | AX83: 48 | AY83: 48 | AZ83: 41.48185108 | BA83: 0 | BB83: 0 | BD83: -235.0272574 | BE83: -235.0272574 | BF83: -1.659797016 | BG83: -1.659797016 | BK83: 38.30498449 | BL83: 784.4276749 | BM83: 662.4371839 | BN83: 0 | BP83: 27.08572267 | BQ83: 5.539743467 | BR83: 4.6782287 | BS83: 0
B84: 2402.401152 | C84: 138.1571912 | D84: 6.931264063 | E84: 138.1571912 | F84: 6.931264063 | H84: 2402.401152 | I84: 0.9756863783 | J84: 0.9756863783 | K84: 4.901145337 | L84: 4.901145337 | N84: 245.4620671 | O84: 245.4620671 | P84: 0.2454620671 | Q84: 0.2454620671 | R84: 0.8699371736 | S84: 0.8699371736 | T84: 6.731319056 | U84: 0.006731319056 | AO84: 29.96729689 | AP84: 29.96729689 | AQ84: 0.02996729689 | AR84: 0.02996729689 | AT84: 0 | AU84: 0 | AW84: 48 | AX84: 48 | AY84: 48 | AZ84: 42.01366968 | BA84: 0 | BB84: 0 | BD84: -233.7675295 | BE84: -233.7675295 | BF84: -1.650900632 | BG84: -1.650900632 | BK84: 38.79607403 | BL84: 794.48444 | BM84: 667.8804653 | BN84: 0 | BP84: 27.43297552 | BQ84: 5.610765819 | BR84: 4.716669952 | BS84: 0
B85: 2432.811294 | C85: 126.7797942 | D85: 6.376775492 | E85: 126.7797942 | F85: 6.376775492 | H85: 2432.811294 | I85: 0.8953375296 | J85: 0.8953375296 | K85: 4.509062588 | L85: 4.509062588 | N85: 228.0992358 | O85: 228.0992358 | P85: 0.2280992358 | Q85: 0.2280992358 | R85: 0.8762272178 | S85: 0.8762272178 | T85: 6.856077718 | U85: 0.006856077718 | AO85: 25.36441996 | AP85: 25.36441996 | AQ85: 0.02536441996 | AR85: 0.02536441996 | AT85: 0 | AU85: 0 | AW85: 48 | AX85: 48 | AY85: 48 | AZ85: 42.54548829 | BA85: 0 | BB85: 0 | BD85: -232.4151344 | BE85: -232.4151344 | BF85: -1.641349819 | BG85: -1.641349819 | BK85: 39.28716358 | BL85: 804.541205 | BM85: 673.2326081 | BN85: 0 | BP85: 27.78022838 | BQ85: 5.681788171 | BR85: 4.754467572 | BS85: 0
B86: 2463.221435 | C86: 115.2717856 | D86: 5.815909114 | E86: 115.2717856 | F86: 5.815909114 | H86: 2463.221435 | I86: 0.8140662825 | J86: 0.8140662825 | K86: 4.112470046 | L86: 4.112470046 | N86: 209.986725 | O86: 209.986725 | P86: 0.209986725 | Q86: 0.209986725 | R86: 0.8820475319 | S86: 0.8820475319 | T86: 6.981825183 | U86: 0.006981825183 | AO86: 21.09880719 | AP86: 21.09880719 | AQ86: 0.02109880719 | AR86: 0.02109880719 | AT86: 0 | AU86: 0 | AW86: 48 | AX86: 48 | AY86: 48 | AZ86: 43.07730689 | BA86: 0 | BB86: 0 | BD86: -230.9310014 | BE86: -230.9310014 | BF86: -1.630868654 | BG86: -1.630868654 | BK86: 39.77825312 | BL86: 814.5979701 | BM86: 678.4936125 | BN86: 0 | BP86: 28.12748123 | BQ86: 5.752810523 | BR86: 4.791621557 | BS86: 0
B87: 2493.631576 | C87: 103.6079872 | D87: 5.24743547 | E87: 103.6079872 | F87: 5.24743547 | H87: 2493.631576 | I87: 0.7316948251 | J87: 0.7316948251 | K87: 3.710498353 | L87: 3.710498353 | N87: 191.0692901 | O87: 191.0692901 | P87: 0.1910692901 | Q87: 0.1910692901 | R87: 0.8872349809 | S87: 0.8872349809 | T87: 7.108561451 | U87: 0.007108561451 | AO87: 17.17579683 | AP87: 17.17579683 | AQ87: 0.01717579683 | AR87: 0.01717579683 | AT87: 0 | AU87: 0 | AW87: 48 | AX87: 48 | AY87: 48 | AZ87: 43.60912549 | BA87: 0 | BB87: 0 | BD87: -229.2529394 | BE87: -229.2529394 | BF87: -1.619017933 | BG87: -1.619017933 | BK87: 40.26934267 | BL87: 824.6547352 | BM87: 683.6634784 | BN87: 0 | BP87: 28.47473409 | BQ87: 5.823832875 | BR87: 4.82813191 | BS87: 0
B88: 2524.041717 | C88: 91.75954323 | D88: 4.669945518 | E88: 91.75954323 | F88: 4.669945518 | H88: 2524.041717 | I88: 0.6480193731 | J88: 0.6480193731 | K88: 3.302151165 | L88: 3.302151165 | N88: 171.2825564 | O88: 171.2825564 | P88: 0.1712825564 | Q88: 0.1712825564 | R88: 0.8915291961 | S88: 0.8915291961 | T88: 7.23628652 | U88: 0.00723628652 | AO88: 13.60336368 | AP88: 13.60336368 | AQ88: 0.01360336368 | AR88: 0.01360336368 | AT88: 0 | AU88: 0 | AW88: 48 | AX88: 48 | AY88: 48 | AZ88: 44.1409441 | BA88: 0 | BB88: 0 | BD88: -227.2768764 | BE88: -227.2768764 | BF88: -1.605062686 | BG88: -1.605062686 | BK88: 40.76043221 | BL88: 834.7115002 | BM88: 688.7422059 | BN88: 0 | BP88: 28.82198694 | BQ88: 5.894855228 | BR88: 4.863998629 | BS88: 0
B89: 2554.451858 | C89: 79.69299328 | D89: 4.081805382 | E89: 79.69299328 | F89: 4.081805382 | H89: 2554.451858 | I89: 0.5628036249 | J89: 0.5628036249 | K89: 2.886273158 | L89: 2.886273158 | N89: 150.550855 | O89: 150.550855 | P89: 0.150550855 | Q89: 0.150550855 | R89: 0.8944933231 | S89: 0.8944933231 | T89: 7.365000392 | U89: 0.007365000392 | AO89: 10.39267315 | AP89: 10.39267315 | AQ89: 0.01039267315 | AR89: 0.01039267315 | AT89: 0 | AU89: 0 | AW89: 48 | AX89: 48 | AY89: 48 | AZ89: 44.6727627 | BA89: 0 | BB89: 0 | BD89: -224.8165654 | BE89: -224.8165654 | BF89: -1.587687609 | BG89: -1.587687609 | BK89: 41.25152176 | BL89: 844.7682653 | BM89: 693.7297948 | BN89: 0 | BP89: 29.1692398 | BQ89: 5.96587758 | BR89: 4.899221715 | BS89: 0
B90: 2584.861999 | C90: 67.36903358 | D90: 3.481095843 | E90: 67.36903358 | F90: 3.481095843 | H90: 2584.861999 | I90: 0.4757700112 | J90: 0.4757700112 | K90: 2.461507238 | L90: 2.461507238 | N90: 128.7843362 | O90: 128.7843362 | P90: 0.1287843362 | Q90: 0.1287843362 | R90: 0.8953437357 | S90: 0.8953437357 | T90: 7.494703066 | U90: 0.007494703066 | AO90: 7.55883112 | AP90: 7.55883112 | AQ90: 0.00755883112 | AR90: 0.00755883112 | AT90: 0 | AU90: 0 | AW90: 48 | AX90: 48 | AY90: 48 | AZ90: 45.2045813 | BA90: 0 | BB90: 0 | BD90: -221.5062799 | BE90: -221.5062799 | BF90: -1.564309886 | BG90: -1.564309886 | BK90: 41.7426113 | BL90: 854.8250303 | BM90: 698.6262453 | BN90: 0 | BP90: 29.51649265 | BQ90: 6.036899932 | BR90: 4.933801167 | BS90: 0
B91: 2615.272141 | C91: 54.74082642 | D91: 2.8655298 | E91: 54.74082642 | F91: 2.8655298 | H91: 2615.272141 | I91: 0.3865877572 | J91: 0.3865877572 | K91: 2.026236181 | L91: 2.026236181 | N91: 105.8750435 | O91: 105.8750435 | P91: 0.1058750435 | Q91: 0.1058750435 | R91: 0.8925387076 | S91: 0.8925387076 | T91: 7.625394543 | U91: 0.007625394543 | AO91: 5.121917039 | AP91: 5.121917039 | AQ91: 0.005121917039 | AR91: 0.005121917039 | AT91: 0 | AU91: 0 | AW91: 48 | AX91: 48 | AY91: 48 | AZ91: 45.73639991 | BA91: 0 | BB91: 0 | BD91: -216.523825 | BE91: -216.523825 | BF91: -1.529123058 | BG91: -1.529123058 | BK91: 42.23370085 | BL91: 864.8817954 | BM91: 703.4315572 | BN91: 0 | BP91: 29.86374551 | BQ91: 6.107922284 | BR91: 4.967736986 | BS91: 0
B92: 2645.682282 | C92: 41.75163987 | D92: 2.232337016 | E92: 41.75163987 | F92: 2.232337016 | H92: 2645.682282 | I92: 0.2948562138 | J92: 0.2948562138 | K92: 1.57850113 | L92: 1.57850113 | N92: 81.69144747 | O92: 81.69144747 | P92: 0.08169144747 | Q92: 0.08169144747 | R92: 0.8826072859 | S92: 0.8826072859 | T92: 7.757074822 | U92: 0.007757074822 | AO92: 3.10843795 | AP92: 3.10843795 | AQ92: 0.00310843795 | AR92: 0.00310843795 | AT92: 0 | AU92: 0 | AW92: 48 | AX92: 48 | AY92: 48 | AZ92: 46.26821851 | BA92: 0 | BB92: 0 | BD92: -207.5761251 | BE92: -207.5761251 | BF92: -1.465933087 | BG92: -1.465933087 | BK92: 42.72479039 | BL92: 874.9385605 | BM92: 708.1457307 | BN92: 0 | BP92: 30.21099836 | BQ92: 6.178944636 | BR92: 5.001029172 | BS92: 0
B93: 2676.092423 | C93: 28.33146194 | D93: 1.578098781 | E93: 28.33146194 | F93: 1.578098781 | H93: 2676.092423 | I93: 0.2000809459 | J93: 0.2000809459 | K93: 1.115884695 | L93: 1.115884695 | N93: 56.07063291 | O93: 56.07063291 | P93: 0.05607063291 | Q93: 0.05607063291 | R93: 0.8558598193 | S93: 0.8558598193 | T93: 7.889743903 | U93: 0.007889743903 | AO93: 1.553427718 | AP93: 1.553427718 | AQ93: 0.001553427718 | AR93: 0.001553427718 | AT93: 0 | AU93: 0 | AW93: 48 | AX93: 48 | AY93: 48 | AZ93: 46.80003712 | BA93: 0 | BB93: 0 | BD93: -185.0377956 | BE93: -185.0377956 | BF93: -1.306764093 | BG93: -1.306764093 | BK93: 43.21587994 | BL93: 884.9953255 | BM93: 712.7687657 | BN93: 0 | BP93: 30.55825121 | BQ93: 6.249966988 | BR93: 5.033677724 | BS93: 0
B94: 2706.502564 | C94: 14.39198678 | D94: 0.8985030921 | E94: 14.39198678 | F94: 0.8985030921 | H94: 2706.502564 | I94: 0.1016383247 | J94: 0.1016383247 | K94: 0.635337826 | L94: 0.635337826 | N94: 28.80676959 | O94: 28.80676959 | P94: 0.02880676959 | Q94: 0.02880676959 | R94: 0.7716014188 | S94: 0.7716014188 | T94: 8.023401786 | U94: 0.008023401786 | AO94: 0.5035723005 | AP94: 0.5035723005 | AQ94: 0.0005035723005 | AR94: 0.0005035723005 | AT94: 0 | AU94: 0 | AW94: 48 | AX94: 48 | AY94: 48 | AZ94: 47.33185572 | BA94: 0 | BB94: 0 | BD94: 0 | BE94: 0 | BF94: 0 | BG94: 0 | BK94: 43.70696948 | BL94: 895.0520906 | BM94: 717.3006622 | BN94: 0 | BP94: 30.90550407 | BQ94: 6.32098934 | BR94: 5.065682643 | BS94: 0
B95: 2736.912705 | C95: -1 | D95: 0 | E95: -1 | F95: 0 | H95: 2736.912705 | I95: -0.007062146893 | J95: -0.007062146893 | K95: 0 | L95: 0 | N95: 0 | O95: 0 | P95: 0 | Q95: 0 | R95: 0 | S95: 0 | T95: 0 | U95: 0 | AO95: 0 | AP95: 0 | AQ95: 0 | AR95: 0 | AT95: 0 | AU95: 0 | AW95: 48 | AX95: 0 | AY95: 0 | AZ95: 47.86367432 | BA95: 0 | BB95: 0 | BD95: 0 | BE95: 0 | BF95: -0.007062146893 | BG95: -0.007062146893 | BK95: 44.19805903 | BL95: 905.1088557 | BM95: 721.760546 | BN95: 0 | BP95: 31.25275692 | BQ95: 6.392011692 | BR95: 5.097178997 | BS95: 0
B96: 2767.322846 | C96: -1 | D96: 0 | E96: -1 | F96: 0 | N96: 0 | O96: 0 | R96: 0 | S96: 0 | T96: 0 | AO96: 0 | AP96: 0 | AT96: 0 | AU96: 0 | AW96: 48 | AX96: 0 | AY96: 0 | AZ96: 48.39549293 | BA96: 0 | BB96: 0 | BD96: 0 | BE96: 0 | BF96: 0 | BG96: 0 | BK96: 44.68914857 | BL96: 915.1656207 | BM96: 726.2147786 | BN96: 0 | BP96: 31.60000978 | BQ96: 6.463034045 | BR96: 5.128635442 | BS96: 0
BD97: 0 | BE97: 0 | BF97: 0 | BG97: 0 | BP97: 0 | BQ97: 0 | BR97: 0 | BS97: 0
BD98: 0 | BE98: 0 | BF98: 0 | BG98: 0 | BP98: 0 | BQ98: 0 | BR98: 0 | BS98: 0
BD99: 0 | BE99: 0 | BF99: 0 | BG99: 0 | BP99: 0 | BQ99: 0 | BR99: 0 | BS99: 0
BD100: 0 | BE100: 0 | BF100: 0 | BG100: 0 | BP100: 0 | BQ100: 0 | BR100: 0 | BS100: 0

Sheet EffMap1 (hidden)
Q1: Efficiency Map | S1: Torque(Nm)
S2: 0 | T2: 0.1 | U2: 0.2 | V2: 0.3 | W2: 0.4 | X2: 0.5 | Y2: 0.6 | Z2: 0.7 | AA2: 0.8 | AB2: 0.9 | AC2: 1 | AD2: 1.1 | AE2: 1.2 | AF2: 1.3 | AG2: 1.4 | AH2: 1.5 | AI2: 1.6 | AJ2: 1.7 | AK2: 1.8 | AL2: 1.9 | AM2: 2 | AN2: 2.1 | AO2: 2.2 | AP2: 2.3 | AQ2: 2.4 | AR2: 2.5 | AS2: 2.6 | AT2: 2.7 | AU2: 2.8 | AV2: 2.9 | AW2: 3
Q3: Speed(RPM) | R3: 0 | S3: 0 | T3: 0 | U3: 0 | V3: 0 | W3: 0 | X3: 0 | Y3: 0 | Z3: 0 | AA3: 0 | AB3: 0 | AC3: 0 | AD3: 0 | AE3: 0 | AF3: 0 | AG3: 0 | AH3: 0 | AI3: 0 | AJ3: 0 | AK3: 0 | AL3: 0 | AM3: 0 | AN3: 0 | AO3: 0 | AP3: 0 | AQ3: 0 | AR3: 0 | AS3: 0 | AT3: 0 | AU3: 0 | AV3: 0 | AW3: 0
R4: 0.1 | S4: -6.183778071e-15 | T4: 81.89348559 | U4: 88.28176193 | V4: 88.7837214 | W4: 88.76966285 | X4: 87.47552368 | Y4: 86.06449241 | Z4: 85.0954545 | AA4: 84.3922466 | AB4: 83.40277172 | AC4: 81.69812256 | AD4: 80.35663374 | AE4: 79.27110211 | AF4: 78.10075286 | AG4: 76.371997 | AH4: 74.94585142 | AI4: 73.74158968 | AJ4: 72.24187269 | AK4: 70.50886278 | AL4: 69.02767753 | AM4: 67.4761674 | AN4: 64.88201782 | AO4: 62.70351871 | AP4: 60.83834535 | AQ4: 59.22360857 | AR4: 57.81081718 | AS4: 54.88292017 | AT4: 52.3159668 | AU4: 50.13830763 | AV4: 47.89471879 | AW4: 44.60729612
C5: Sorry, due to a contour plot incompatibiliy between Office 2003 and Office 2007 the chart has been deleted. | R5: 0.2 | S5: 0 | T5: 83.29472797 | U5: 89.9533164 | V5: 91.42818817 | W5: 92.04380066 | X5: 91.71426046 | Y5: 91.17007938 | Z5: 90.78592956 | AA5: 90.52486898 | AB5: 90.04585298 | AC5: 89.13579451 | AD5: 88.39410911 | AE5: 87.78563834 | AF5: 87.10043662 | AG5: 86.05588193 | AH5: 85.17247175 | AI5: 84.42268968 | AJ5: 83.44714196 | AK5: 82.3034006 | AL5: 81.30096501 | AM5: 80.20769427 | AN5: 78.3658185 | AO5: 76.7631524 | AP5: 75.35585303 | AQ5: 74.11645859 | AR5: 73.01262449 | AS5: 70.60972194 | AT5: 68.45450864 | AU5: 66.56533217 | AV5: 64.52284525 | AW5: 61.4311409
C6: If the efficiency data was exported then the data is contained to the rigth. | R6: 0.3 | S6: 1.457357194e-14 | T6: 83.78033743 | U6: 90.52823878 | V6: 92.33602996 | W6: 93.19019502 | X6: 93.22090439 | Y6: 93.02332454 | Z6: 92.883329 | AA6: 92.78877221 | AB6: 92.49689406 | AC6: 91.90906299 | AD6: 91.43697843 | AE6: 91.04784726 | AF6: 90.58511723 | AG6: 89.8626503 | AH6: 89.24756727 | AI6: 88.71671887 | AJ6: 87.98310468 | AK6: 87.14919524 | AL6: 86.41709736 | AM6: 85.58845036 | AN6: 84.1980272 | AO6: 82.97271056 | AP6: 81.88478622 | AQ6: 80.91214706 | AR6: 80.02904203 | AS6: 78.05573709 | AT6: 76.29333234 | AU6: 74.72664408 | AV6: 72.96933256 | AW6: 70.30956569
C7: Create a new countour plot manually using your version of Excel. | R7: 0.4 | S7: -5.881651729e-15 | T7: 83.50302515 | U7: 90.51344005 | V7: 92.58872323 | W7: 93.61533047 | X7: 93.86841558 | Y7: 93.87649401 | Z7: 93.87933624 | AA7: 93.88641707 | AB7: 93.73061122 | AC7: 93.31904779 | AD7: 92.99319172 | AE7: 92.73094629 | AF7: 92.40415922 | AG7: 91.86800071 | AH7: 91.4032944 | AI7: 90.98321163 | AJ7: 90.41355063 | AK7: 89.75992069 | AL7: 89.1954478 | AM7: 88.53462799 | AN7: 87.42994573 | AO7: 86.44893341 | AP7: 85.56674284 | AQ7: 84.76715046 | AR7: 84.04260011 | AS7: 82.38347734 | AT7: 80.9034025 | AU7: 79.58445425 | AV7: 78.06376412 | AW7: 75.7713655
R8: 0.5 | S8: 5.780904204e-15 | T8: 83.43116749 | U8: 90.56645547 | V8: 92.7937883 | W8: 93.90825716 | X8: 94.29113702 | Y8: 94.41333578 | Z8: 94.50097003 | AA8: 94.5765004 | AB8: 94.50501258 | AC8: 94.21402319 | AD8: 93.97919873 | AE8: 93.7851284 | AF8: 93.5453026 | AG8: 93.11368432 | AH8: 92.73752391 | AI8: 92.41146924 | AJ8: 91.95270653 | AK8: 91.42660886 | AL8: 90.96105751 | AM8: 90.41010911 | AN8: 89.49427846 | AO8: 88.67015953 | AP8: 87.9303995 | AQ8: 87.26273726 | AR8: 86.64115074 | AS8: 85.23000111 | AT8: 83.96291924 | AU8: 82.81933066 | AV8: 81.48029388 | AW8: 79.47027908
R9: 0.6 | S9: 0 | T9: 83.18199902 | U9: 90.48489559 | V9: 92.8505043 | W9: 94.04932104 | X9: 94.50096656 | Y9: 94.71965601 | Z9: 94.87695836 | AA9: 95.00466755 | AB9: 94.99338201 | AC9: 94.78905603 | AD9: 94.62641518 | AE9: 94.49165259 | AF9: 94.28019817 | AG9: 93.92826192 | AH9: 93.629501 | AI9: 93.36988983 | AJ9: 92.99151831 | AK9: 92.55725703 | AL9: 92.17213395 | AM9: 91.67970336 | AN9: 90.8896902 | AO9: 90.19087005 | AP9: 89.5616787 | AQ9: 88.99222441 | AR9: 88.44922908 | AS9: 87.2281685 | AT9: 86.1263834 | AU9: 85.12736017 | AV9: 83.89698673 | AW9: 82.12080478
R10: 0.7 | S10: 0 | T10: 82.85354519 | U10: 90.33865718 | V10: 92.83069127 | W10: 94.09860532 | X10: 94.62595238 | Y10: 94.90289913 | Z10: 95.11616012 | AA10: 95.28574484 | AB10: 95.32106758 | AC10: 95.18457815 | AD10: 95.07585664 | AE10: 94.9754499 | AF10: 94.80530013 | AG10: 94.50194564 | AH10: 94.26166621 | AI10: 94.0528662 | AJ10: 93.73591162 | AK10: 93.37010521 | AL10: 93.04036835 | AM10: 92.60691922 | AN10: 91.90385292 | AO10: 91.29461887 | AP10: 90.75070031 | AQ10: 90.25736364 | AR10: 89.77863527 | AS10: 88.70516707 | AT10: 87.73334133 | AU10: 86.83463907 | AV10: 85.70946644 | AW10: 84.11036014
R11: 0.8 | S11: -1.07626599e-14 | T11: 82.69318177 | U11: 90.28082272 | V11: 92.85309867 | W11: 94.1632032 | X11: 94.75197501 | Y11: 95.0700505 | Z11: 95.31444247 | AA11: 95.51505763 | AB11: 95.58450606 | AC11: 95.49776833 | AD11: 95.42399308 | AE11: 95.34528117 | AF11: 95.21278332 | AG11: 94.95693669 | AH11: 94.75037728 | AI11: 94.57933129 | AJ11: 94.3088398 | AK11: 93.99539896 | AL11: 93.6997258 | AM11: 93.32003473 | AN11: 92.70341353 | AO11: 92.14928396 | AP11: 91.66773949 | AQ11: 91.23381745 | AR11: 90.80572348 | AS11: 89.85080252 | AT11: 88.98135828 | AU11: 88.15084021 | AV11: 87.12494543 | AW11: 85.67028943
R12: 0.9 | S12: 2.137948087e-14 | T12: 82.65011665 | U12: 90.28131582 | V12: 92.90057183 | W12: 94.23949384 | X12: 94.87168495 | Y12: 95.22975121 | Z12: 95.48862793 | AA12: 95.7097204 | AB12: 95.80480503 | AC12: 95.75470298 | AD12: 95.69480902 | AE12: 95.64475663 | AF12: 95.54159852 | AG12: 95.3268932 | AH12: 95.14276355 | AI12: 94.99918802 | AJ12: 94.76505302 | AK12: 94.48405721 | AL12: 94.22408395 | AM12: 93.8872561 | AN12: 93.33928646 | AO12: 92.84603084 | AP12: 92.39996713 | AQ12: 92.0128519 | AR12: 91.62640068 | AS12: 90.76635234 | AT12: 89.95603669 | AU12: 89.20651614 | AV12: 88.26155131 | AW12: 86.9348036
R13: 1 | S13: 0 | T13: 82.68712731 | U13: 90.32438094 | V13: 92.96434633 | W13: 94.32503605 | X13: 94.98784741 | Y13: 95.37519753 | Z13: 95.65736499 | AA13: 95.88094013 | AB13: 95.9939773 | AC13: 95.95697359 | AD13: 95.92305243 | AE13: 95.89509322 | AF13: 95.8142724 | AG13: 95.63223463 | AH13: 95.47608635 | AI13: 95.34390568 | AJ13: 95.13768468 | AK13: 94.88132109 | AL13: 94.65294602 | AM13: 94.35045463 | AN13: 93.85831465 | AO13: 93.41597877 | AP13: 93.01545961 | AQ13: 92.65076989 | AR13: 92.29699583 | AS13: 91.50014988 | AT13: 90.75422076 | AU13: 90.07148861 | AV13: 89.19444576 | AW13: 87.97808305
R14: 1.1 | S14: 1.52129013e-14 | T14: 82.74544168 | U14: 90.37847648 | V14: 93.02955145 | W14: 94.40559028 | X14: 95.09186093 | Y14: 95.50419812 | Z14: 95.80350032 | AA14: 96.03778025 | AB14: 96.14365815 | AC14: 96.12680783 | AD14: 96.11441456 | AE14: 96.10399611 | AF14: 96.04136051 | AG14: 95.88610125 | AH14: 95.75290265 | AI14: 95.63684875 | AJ14: 95.43637462 | AK14: 95.20943925 | AL14: 95.00710763 | AM14: 94.73335276 | AN14: 94.28935369 | AO14: 93.88861518 | AP14: 93.525305 | AQ14: 93.19491939 | AR14: 92.84707835 | AS14: 92.09638095 | AT14: 91.41356392 | AU14: 90.78772245 | AV14: 89.96912694 | AW14: 88.84701504
R15: 1.2 | S15: -7.882156533e-15 | T15: 82.52611217 | U15: 90.26515916 | V15: 92.97029164 | W15: 94.38513035 | X15: 95.10772569 | Y15: 95.55219139 | Z15: 95.87489168 | AA15: 96.11992138 | AB15: 96.22532067 | AC15: 96.22451746 | AD15: 96.23405626 | AE15: 96.24173628 | AF15: 96.19726206 | AG15: 96.06703584 | AH15: 95.95567623 | AI15: 95.84990208 | AJ15: 95.64994057 | AK15: 95.44934519 | AL15: 95.27174315 | AM15: 95.02510921 | AN15: 94.62205919 | AO15: 94.25850235 | AP15: 93.92888166 | AQ15: 93.6226828 | AR15: 93.26002509 | AS15: 92.53643291 | AT15: 91.9109662 | AU15: 91.33723102 | AV15: 90.57133254 | AW15: 89.53236244
R16: 1.3 | S16: -5.181010012e-15 | T16: 82.35447976 | U16: 90.1785786 | V16: 92.9277369 | W16: 94.37445039 | X16: 95.12887139 | Y16: 95.59968979 | Z16: 95.93925516 | AA16: 96.18457214 | AB16: 96.30776649 | AC16: 96.31439546 | AD16: 96.33875627 | AE16: 96.36170872 | AF16: 96.33258573 | AG16: 96.22398798 | AH16: 96.12939256 | AI16: 96.02723522 | AJ16: 95.84909473 | AK16: 95.65714572 | AL16: 95.50066424 | AM16: 95.27601916 | AN16: 94.90885759 | AO16: 94.57697367 | AP16: 94.27133601 | AQ16: 93.95828051 | AR16: 93.61774867 | AS16: 92.93058381 | AT16: 92.33869568 | AU16: 91.8089593 | AV16: 91.08658435 | AW16: 90.11876355
R17: 1.4 | S17: 0 | T17: 82.25261441 | U17: 90.13283745 | V17: 92.91771195 | W17: 94.38165167 | X17: 95.16058212 | Y17: 95.65234853 | Z17: 95.990543 | AA17: 96.25009437 | AB17: 96.3867665 | AC17: 96.41198155 | AD17: 96.4354457 | AE17: 96.4708439 | AF17: 96.45468428 | AG17: 96.36393314 | AH17: 96.27037195 | AI17: 96.18369544 | AJ17: 96.0252774 | AK17: 95.84479763 | AL17: 95.70030889 | AM17: 95.49519773 | AN17: 95.15833963 | AO17: 94.85068928 | AP17: 94.53644541 | AQ17: 94.24958451 | AR17: 93.92862796 | AS17: 93.29142432 | AT17: 92.70832866 | AU17: 92.21539989 | AV17: 91.5311285 | AW17: 90.60672484
R18: 1.5 | S18: 1.022508931e-14 | T18: 82.21083384 | U18: 90.12269115 | V18: 92.93227683 | W18: 94.40541444 | X18: 95.20295669 | Y18: 95.69630012 | Z18: 96.04609909 | AA18: 96.31648213 | AB18: 96.46377077 | AC18: 96.50421425 | AD18: 96.53760761 | AE18: 96.57191349 | AF18: 96.56634421 | AG18: 96.48127287 | AH18: 96.39734948 | AI18: 96.32507124 | AJ18: 96.18263797 | AK18: 96.01952381 | AL18: 95.87820943 | AM18: 95.68935658 | AN18: 95.37700553 | AO18: 95.05889198 | AP18: 94.76976029 | AQ18: 94.50592993 | AR18: 94.20160991 | AS18: 93.60485132 | AT18: 93.05642933 | AU18: 92.5687742 | AV18: 91.91998816 | AW18: 91.02158423
R19: 1.6 | S19: 0 | T19: 82.22332842 | U19: 90.14399976 | V19: 92.96694511 | W19: 94.44591909 | X19: 95.24408953 | Y19: 95.74443256 | Z19: 96.10611052 | AA19: 96.38409811 | AB19: 96.53964667 | AC19: 96.59257637 | AD19: 96.63611628 | AE19: 96.67254948 | AF19: 96.66711809 | AG19: 96.58452203 | AH19: 96.51457302 | AI19: 96.45380916 | AJ19: 96.32469433 | AK19: 96.17752836 | AL19: 96.04599613 | AM19: 95.86308475 | AN19: 95.53816204 | AO19: 95.24440847 | AP19: 94.97762866 | AQ19: 94.73224543 | AR19: 94.43915269 | AS19: 93.87834741 | AT19: 93.36464633 | AU19: 92.89205532 | AV19: 92.28353998 | AW19: 91.85607585
R20: 1.7 | S20: 1.013776236e-14 | T20: 82.12701658 | U20: 90.09884275 | V20: 92.95270372 | W20: 94.45057048 | X20: 95.24188266 | Y20: 95.76079731 | Z20: 96.13669507 | AA20: 96.42424752 | AB20: 96.58938118 | AC20: 96.65523949 | AD20: 96.70957836 | AE20: 96.75450626 | AF20: 96.73021377 | AG20: 96.66168259 | AH20: 96.60476448 | AI20: 96.55458157 | AJ20: 96.43888874 | AK20: 96.30578363 | AL20: 96.18650135 | AM20: 95.97752529 | AN20: 95.66891956 | AO20: 95.39757914 | AP20: 95.14721587 | AQ20: 94.91697192 | AR20: 94.63884214 | AS20: 94.11907517 | AT20: 93.7222485 | AU20: 93.42073497 | AV20: 0 | AW20: 0
R21: 1.8 | S21: -1.002735375e-14 | T21: 81.97865947 | U21: 90.02128437 | V21: 92.91383858 | W21: 94.42863713 | X21: 95.23539232 | Y21: 95.76111809 | Z21: 96.15115367 | AA21: 96.44889738 | AB21: 96.62390879 | AC21: 96.70262608 | AD21: 96.76744628 | AE21: 96.80932986 | AF21: 96.79314616 | AG21: 96.724153 | AH21: 96.67865452 | AI21: 96.63904896 | AJ21: 96.53539255 | AK21: 96.41501448 | AL21: 96.29887365 | AM21: 96.09854385 | AN21: 95.78526373 | AO21: 95.52255232 | AP21: 95.28898767 | AQ21: 95.12098783 | AR21: 94.94618193 | AS21: 94.55300477 | AT21: 0 | AU21: 0 | AV21: 0 | AW21: 0
R22: 1.9 | S22: 3.978850783e-14 | T22: 81.87203566 | U22: 89.96820698 | V22: 92.89111977 | W22: 94.4197372 | X22: 95.24422 | Y22: 95.7748246 | Z22: 96.17045696 | AA22: 96.47652444 | AB22: 96.65963148 | AC22: 96.74937447 | AD22: 96.81549106 | AE22: 96.85874752 | AF22: 96.85305995 | AG22: 96.78967262 | AH22: 96.74696046 | AI22: 96.7169653 | AJ22: 96.62370688 | AK22: 96.51477558 | AL22: 96.39655542 | AM22: 96.20625772 | AN22: 95.93446431 | AO22: 95.72627457 | AP22: 95.5546793 | AQ22: 95.40556535 | AR22: 95.29940054 | AS22: 0 | AT22: 0 | AU22: 0 | AV22: 0 | AW22: 0
R23: 2 | S23: -5.937782539e-14 | T23: 81.8122479 | U23: 89.93955449 | V23: 92.88077849 | W23: 94.42259746 | X23: 95.26112202 | Y23: 95.80421917 | Z23: 96.19588419 | AA23: 96.50736031 | AB23: 96.6974417 | AC23: 96.79392684 | AD23: 96.85631947 | AE23: 96.90834285 | AF23: 96.91123917 | AG23: 96.85822036 | AH23: 96.81341904 | AI23: 96.79003411 | AJ23: 96.70571504 | AK23: 96.61696953 | AL23: 96.53749092 | AM23: 96.38175527 | AN23: 96.13960235 | AO23: 95.96038203 | AP23: 95.81637894 | AQ23: 0 | AR23: 0 | AS23: 0 | AT23: 0 | AU23: 0 | AV23: 0 | AW23: 0
R24: 2.1 | S24: 0 | T24: 81.78833498 | U24: 89.93095472 | V24: 92.88170285 | W24: 94.43526582 | X24: 95.28523332 | Y24: 95.83806898 | Z24: 96.23654491 | AA24: 96.54083839 | AB24: 96.73669326 | AC24: 96.82627984 | AD24: 96.8969665 | AE24: 96.9571035 | AF24: 96.96671502 | AG24: 96.92377395 | AH24: 96.89459029 | AI24: 96.89196367 | AJ24: 96.83492093 | AK24: 96.76623681 | AL24: 96.69415735 | AM24: 96.53837015 | AN24: 96.3416678 | AO24: 96.04374807 | AP24: 0 | AQ24: 0 | AR24: 0 | AS24: 0 | AT24: 0 | AU24: 0 | AV24: 0 | AW24: 0
R25: 2.2 | S25: 2.091697819e-14 | T25: 81.76664289 | U25: 89.9226589 | V25: 92.88318787 | W25: 94.44752759 | X25: 95.30817469 | Y25: 95.86964617 | Z25: 96.27431686 | AA25: 96.58076803 | AB25: 96.75887986 | AC25: 96.85528683 | AD25: 96.93438151 | AE25: 97.00105252 | AF25: 97.04763935 | AG25: 97.03813085 | AH25: 97.0333301 | AI25: 97.04505781 | AJ25: 96.97247822 | AK25: 96.89602642 | AL25: 96.82962197 | AM25: 96.61256466 | AN25: 96.24007986 | AO25: 0 | AP25: 0 | AQ25: 0 | AR25: 0 | AS25: 0 | AT25: 0 | AU25: 0 | AV25: 0 | AW25: 0
R26: 2.3 | S26: 1.462588582e-14 | T26: 81.64171459 | U26: 89.85250165 | V26: 92.8395949 | W26: 94.42408794 | X26: 95.30106609 | Y26: 95.87495368 | Z26: 96.28857263 | AA26: 96.59432149 | AB26: 96.76521493 | AC26: 96.88858693 | AD26: 97.0137599 | AE26: 97.11859883 | AF26: 97.15233163 | AG26: 97.15118276 | AH26: 97.16008828 | AI26: 97.1645792 | AJ26: 97.08772227 | AK26: 96.98066947 | AL26: 96.87534161 | AM26: 96.50979484 | AN26: 0 | AO26: 0 | AP26: 0 | AQ26: 0 | AR26: 0 | AS26: 0 | AT26: 0 | AU26: 0 | AV26: 0 | AW26: 0
R27: 2.4 | S27: 0 | T27: 81.55018142 | U27: 89.80249292 | V27: 92.81065807 | W27: 94.41097478 | X27: 95.30154809 | Y27: 95.88752229 | Z27: 96.35920441 | AA27: 96.72295769 | AB27: 96.92355508 | AC27: 97.03998112 | AD27: 97.14045172 | AE27: 97.22603993 | AF27: 97.26220584 | AG27: 97.26657756 | AH27: 97.26861852 | AI27: 97.22789685 | AJ27: 97.1069539 | AK27: 97.00353544 | AL27: 96.78170473 | AM27: 0 | AN27: 0 | AO27: 0 | AP27: 0 | AQ27: 0 | AR27: 0 | AS27: 0 | AT27: 0 | AU27: 0 | AV27: 0 | AW27: 0
R28: 2.5 | S28: -9.628616117e-15 | T28: 81.47985035 | U28: 89.83719761 | V28: 92.95016285 | W28: 94.56961115 | X28: 95.48223798 | Y28: 96.09974735 | Z28: 96.5496044 | AA28: 96.89075448 | AB28: 97.08291002 | AC28: 97.17960825 | AD28: 97.27826996 | AE28: 97.38608713 | AF28: 97.3774607 | AG28: 97.33865929 | AH28: 97.29167453 | AI28: 97.22671626 | AJ28: 97.12179285 | AK28: 97.01856906 | AL28: 0 | AM28: 0 | AN28: 0 | AO28: 0 | AP28: 0 | AQ28: 0 | AR28: 0 | AS28: 0 | AT28: 0 | AU28: 0 | AV28: 0 | AW28: 0
R29: 2.6 | S29: -1.91915248e-14 | T29: 81.43852067 | U29: 90.41976868 | V29: 93.37121885 | W29: 94.92635504 | X29: 95.74336474 | Y29: 96.29790654 | Z29: 96.69619853 | AA29: 97.00140154 | AB29: 97.1663933 | AC29: 97.28658467 | AD29: 97.37807891 | AE29: 97.45690904 | AF29: 97.42069504 | AG29: 97.38034475 | AH29: 97.34689416 | AI29: 97.24456458 | AJ29: 97.13253474 | AK29: 0 | AL29: 0 | AM29: 0 | AN29: 0 | AO29: 0 | AP29: 0 | AQ29: 0 | AR29: 0 | AS29: 0 | AT29: 0 | AU29: 0 | AV29: 0 | AW29: 0
R30: 2.7 | S30: -9.569935338e-15 | T30: 81.40898276 | U30: 90.99361674 | V30: 93.77808511 | W30: 95.13841509 | X30: 95.88985008 | Y30: 96.40359258 | Z30: 96.78978118 | AA30: 97.09203488 | AB30: 97.23332177 | AC30: 97.35001853 | AD30: 97.44127414 | AE30: 97.49118297 | AF30: 97.45748182 | AG30: 97.4286693 | AH30: 97.40671399 | AI30: 97.27976993 | AJ30: 97.09336873 | AK30: 0 | AL30: 0 | AM30: 0 | AN30: 0 | AO30: 0 | AP30: 0 | AQ30: 0 | AR30: 0 | AS30: 0 | AT30: 0 | AU30: 0 | AV30: 0 | AW30: 0
R31: 2.8 | S31: 6.504373574e-13 | T31: 82.30347198 | U31: 90.99255687 | V31: 93.91538081 | W31: 95.16312664 | X31: 95.9729217 | Y31: 96.52391016 | Z31: 96.89180197 | AA31: 97.14754405 | AB31: 97.28688279 | AC31: 97.38937407 | AD31: 97.47510595 | AE31: 97.49901538 | AF31: 97.49026885 | AG31: 97.47267865 | AH31: 97.42017832 | AI31: 97.23871614 | AJ31: 0 | AK31: 0 | AL31: 0 | AM31: 0 | AN31: 0 | AO31: 0 | AP31: 0 | AQ31: 0 | AR31: 0 | AS31: 0 | AT31: 0 | AU31: 0 | AV31: 0 | AW31: 0
R32: 2.9 | S32: -1.241406044e-13 | T32: 82.70456293 | U32: 91.41776387 | V32: 94.01908826 | W32: 95.25583968 | X32: 95.99188791 | Y32: 96.54834416 | Z32: 96.94601765 | AA32: 97.19144391 | AB32: 97.32623072 | AC32: 97.44494809 | AD32: 97.50387815 | AE32: 97.53180481 | AF32: 97.51905986 | AG32: 97.48499478 | AH32: 97.35318491 | AI32: 97.06455525 | AJ32: 0 | AK32: 0 | AL32: 0 | AM32: 0 | AN32: 0 | AO32: 0 | AP32: 0 | AQ32: 0 | AR32: 0 | AS32: 0 | AT32: 0 | AU32: 0 | AV32: 0 | AW32: 0
B33: Note: The lowest efficiency color range actually starts at 0 efficiency. | R33: 3 | S33: 3.264556239e-13 | T33: 83.03020587 | U33: 91.47881858 | V33: 94.0567942 | W33: 95.3799715 | X33: 96.05639631 | Y33: 96.57217568 | Z33: 96.97191646 | AA33: 97.17173553 | AB33: 97.32752161 | AC33: 97.46405942 | AD33: 97.57760533 | AE33: 97.5303574 | AF33: 97.49978194 | AG33: 97.45737928 | AH33: 97.2885491 | AI33: 0 | AJ33: 0 | AK33: 0 | AL33: 0 | AM33: 0 | AN33: 0 | AO33: 0 | AP33: 0 | AQ33: 0 | AR33: 0 | AS33: 0 | AT33: 0 | AU33: 0 | AV33: 0 | AW33: 0
R34: 3.1 | S34: 1.644819593e-12 | T34: 83.00623454 | U34: 91.47405476 | V34: 93.99154426 | W34: 95.44271886 | X34: 96.15693721 | Y34: 96.64343682 | Z34: 96.98937099 | AA34: 97.19278228 | AB34: 97.36465889 | AC34: 97.51325276 | AD34: 97.58246807 | AE34: 97.52966372 | AF34: 97.48099353 | AG34: 97.39476382 | AH34: 0 | AI34: 0 | AJ34: 0 | AK34: 0 | AL34: 0 | AM34: 0 | AN34: 0 | AO34: 0 | AP34: 0 | AQ34: 0 | AR34: 0 | AS34: 0 | AT34: 0 | AU34: 0 | AV34: 0 | AW34: 0
R35: 3.2 | S35: 1.243850926e-12 | T35: 82.88558661 | U35: 91.4701314 | V35: 93.92898503 | W35: 95.44129117 | X35: 96.23578027 | Y35: 96.71814771 | Z35: 97.04582946 | AA35: 97.23719469 | AB35: 97.40956481 | AC35: 97.55418531 | AD35: 97.57455455 | AE35: 97.5286555 | AF35: 97.49249972 | AG35: 97.32484658 | AH35: 0 | AI35: 0 | AJ35: 0 | AK35: 0 | AL35: 0 | AM35: 0 | AN35: 0 | AO35: 0 | AP35: 0 | AQ35: 0 | AR35: 0 | AS35: 0 | AT35: 0 | AU35: 0 | AV35: 0 | AW35: 0
R36: 3.3 | S36: 3.307522119e-13 | T36: 83.30254909 | U36: 91.46533208 | V36: 93.92225271 | W36: 95.39885518 | X36: 96.26349456 | Y36: 96.78453507 | Z36: 97.06614603 | AA36: 97.27915147 | AB36: 97.44370695 | AC36: 97.57125067 | AD36: 97.56660432 | AE36: 97.52816646 | AF36: 97.49725029 | AG36: 0 | AH36: 0 | AI36: 0 | AJ36: 0 | AK36: 0 | AL36: 0 | AM36: 0 | AN36: 0 | AO36: 0 | AP36: 0 | AQ36: 0 | AR36: 0 | AS36: 0 | AT36: 0 | AU36: 0 | AV36: 0 | AW36: 0
R37: 3.4 | S37: -3.573912398e-14 | T37: 83.56380155 | U37: 91.45970748 | V37: 93.9478424 | W37: 95.39432512 | X37: 96.27385205 | Y37: 96.76789581 | Z37: 97.06241042 | AA37: 97.27915692 | AB37: 97.45029134 | AC37: 97.56067316 | AD37: 97.55846911 | AE37: 97.54602372 | AF37: 97.42569532 | AG37: 0 | AH37: 0 | AI37: 0 | AJ37: 0 | AK37: 0 | AL37: 0 | AM37: 0 | AN37: 0 | AO37: 0 | AP37: 0 | AQ37: 0 | AR37: 0 | AS37: 0 | AT37: 0 | AU37: 0 | AV37: 0 | AW37: 0
R38: 3.5 | S38: -1.218047966e-13 | T38: 83.45026562 | U38: 91.68407161 | V38: 94.01133939 | W38: 95.47106533 | X38: 96.27172687 | Y38: 96.75069174 | Z38: 97.04570278 | AA38: 97.27321691 | AB38: 97.44776879 | AC38: 97.53062335 | AD38: 97.55284322 | AE38: 97.54202579 | AF38: 97.28281362 | AG38: 0 | AH38: 0 | AI38: 0 | AJ38: 0 | AK38: 0 | AL38: 0 | AM38: 0 | AN38: 0 | AO38: 0 | AP38: 0 | AQ38: 0 | AR38: 0 | AS38: 0 | AT38: 0 | AU38: 0 | AV38: 0 | AW38: 0
R39: 3.6 | S39: -8.161012419e-14 | T39: 83.56455294 | U39: 91.64799448 | V39: 94.07659749 | W39: 95.54621138 | X39: 96.31549093 | Y39: 96.74319027 | Z39: 97.04457396 | AA39: 97.27275041 | AB39: 97.46618838 | AC39: 97.524614 | AD39: 97.54577506 | AE39: 97.50567446 | AF39: 0 | AG39: 0 | AH39: 0 | AI39: 0 | AJ39: 0 | AK39: 0 | AL39: 0 | AM39: 0 | AN39: 0 | AO39: 0 | AP39: 0 | AQ39: 0 | AR39: 0 | AS39: 0 | AT39: 0 | AU39: 0 | AV39: 0 | AW39: 0
R40: 3.7 | S40: 2.266395197e-13 | T40: 83.73298883 | U40: 91.72531781 | V40: 94.14438241 | W40: 95.6096534 | X40: 96.32725666 | Y40: 96.7628856 | Z40: 97.08535545 | AA40: 97.31445274 | AB40: 97.49434234 | AC40: 97.51805856 | AD40: 97.53484656 | AE40: 97.42665953 | AF40: 0 | AG40: 0 | AH40: 0 | AI40: 0 | AJ40: 0 | AK40: 0 | AL40: 0 | AM40: 0 | AN40: 0 | AO40: 0 | AP40: 0 | AQ40: 0 | AR40: 0 | AS40: 0 | AT40: 0 | AU40: 0 | AV40: 0 | AW40: 0
R41: 3.8 | S41: 1.270619905e-12 | T41: 83.76245996 | U41: 91.80093849 | V41: 94.21671553 | W41: 95.66087281 | X41: 96.33838994 | Y41: 96.78284933 | Z41: 97.11681162 | AA41: 97.35370161 | AB41: 97.49658705 | AC41: 97.51849868 | AD41: 97.52705129 | AE41: 0 | AF41: 0 | AG41: 0 | AH41: 0 | AI41: 0 | AJ41: 0 | AK41: 0 | AL41: 0 | AM41: 0 | AN41: 0 | AO41: 0 | AP41: 0 | AQ41: 0 | AR41: 0 | AS41: 0 | AT41: 0 | AU41: 0 | AV41: 0 | AW41: 0
R42: 3.9 | S42: -4.579986518e-15 | T42: 83.66691249 | U42: 91.83703337 | V42: 94.26785759 | W42: 95.63887644 | X42: 96.32612201 | Y42: 96.78395227 | Z42: 97.12243168 | AA42: 97.37782471 | AB42: 97.48587573 | AC42: 97.51118441 | AD42: 97.50572445 | AE42: 0 | AF42: 0 | AG42: 0 | AH42: 0 | AI42: 0 | AJ42: 0 | AK42: 0 | AL42: 0 | AM42: 0 | AN42: 0 | AO42: 0 | AP42: 0 | AQ42: 0 | AR42: 0 | AS42: 0 | AT42: 0 | AU42: 0 | AV42: 0 | AW42: 0
R43: 4 | S43: 9.152863189e-13 | T43: 83.53968512 | U43: 91.86737923 | V43: 94.38230977 | W43: 95.60137411 | X43: 96.30976796 | Y43: 96.77603257 | Z43: 97.12401445 | AA43: 97.3874203 | AB43: 97.47204053 | AC43: 97.501495 | AD43: 97.4136373 | AE43: 0 | AF43: 0 | AG43: 0 | AH43: 0 | AI43: 0 | AJ43: 0 | AK43: 0 | AL43: 0 | AM43: 0 | AN43: 0 | AO43: 0 | AP43: 0 | AQ43: 0 | AR43: 0 | AS43: 0 | AT43: 0 | AU43: 0 | AV43: 0 | AW43: 0
R44: 4.1 | S44: 8.085205755e-13 | T44: 83.41019211 | U44: 91.89814524 | V44: 94.42507276 | W44: 95.56815477 | X44: 96.29517888 | Y44: 96.76787332 | Z44: 97.1254186 | AA44: 97.37431315 | AB44: 97.44973552 | AC44: 97.48971977 | AD44: 0 | AE44: 0 | AF44: 0 | AG44: 0 | AH44: 0 | AI44: 0 | AJ44: 0 | AK44: 0 | AL44: 0 | AM44: 0 | AN44: 0 | AO44: 0 | AP44: 0 | AQ44: 0 | AR44: 0 | AS44: 0 | AT44: 0 | AU44: 0 | AV44: 0 | AW44: 0
R45: 4.2 | S45: -1.791431277e-14 | T45: 83.29575837 | U45: 91.92737624 | V45: 94.44033526 | W45: 95.57220231 | X45: 96.27129315 | Y45: 96.7595753 | Z45: 97.12699342 | AA45: 97.34566856 | AB45: 97.42352983 | AC45: 97.48915902 | AD45: 0 | AE45: 0 | AF45: 0 | AG45: 0 | AH45: 0 | AI45: 0 | AJ45: 0 | AK45: 0 | AL45: 0 | AM45: 0 | AN45: 0 | AO45: 0 | AP45: 0 | AQ45: 0 | AR45: 0 | AS45: 0 | AT45: 0 | AU45: 0 | AV45: 0 | AW45: 0
R46: 4.3 | S46: -4.053628647e-13 | T46: 83.38588296 | U46: 91.90378871 | V46: 94.44375171 | W46: 95.57571937 | X46: 96.26175038 | Y46: 96.75290314 | Z46: 97.12596166 | AA46: 97.31703229 | AB46: 97.42113061 | AC46: 97.47577875 | AD46: 0 | AE46: 0 | AF46: 0 | AG46: 0 | AH46: 0 | AI46: 0 | AJ46: 0 | AK46: 0 | AL46: 0 | AM46: 0 | AN46: 0 | AO46: 0 | AP46: 0 | AQ46: 0 | AR46: 0 | AS46: 0 | AT46: 0 | AU46: 0 | AV46: 0 | AW46: 0
R47: 4.4 | S47: 7.357345322e-13 | T47: 83.57385273 | U47: 91.84764783 | V47: 94.45196685 | W47: 95.57853239 | X47: 96.2694134 | Y47: 96.77934413 | Z47: 97.14186903 | AA47: 97.31489367 | AB47: 97.41954683 | AC47: 97.37547795 | AD47: 0 | AE47: 0 | AF47: 0 | AG47: 0 | AH47: 0 | AI47: 0 | AJ47: 0 | AK47: 0 | AL47: 0 | AM47: 0 | AN47: 0 | AO47: 0 | AP47: 0 | AQ47: 0 | AR47: 0 | AS47: 0 | AT47: 0 | AU47: 0 | AV47: 0 | AW47: 0
R48: 4.5 | S48: 2.122404612e-12 | T48: 83.74487298 | U48: 91.8367636 | V48: 94.44085606 | W48: 95.58055988 | X48: 96.27735161 | Y48: 96.82026783 | Z48: 97.16982943 | AA48: 97.31214366 | AB48: 97.41746656 | AC48: 97.21731203 | AD48: 0 | AE48: 0 | AF48: 0 | AG48: 0 | AH48: 0 | AI48: 0 | AJ48: 0 | AK48: 0 | AL48: 0 | AM48: 0 | AN48: 0 | AO48: 0 | AP48: 0 | AQ48: 0 | AR48: 0 | AS48: 0 | AT48: 0 | AU48: 0 | AV48: 0 | AW48: 0
R49: 4.6 | S49: 9.427395871e-13 | T49: 83.89768872 | U49: 91.83243598 | V49: 94.42106278 | W49: 95.5806684 | X49: 96.2981745 | Y49: 96.85519138 | Z49: 97.16952657 | AA49: 97.30838169 | AB49: 97.41473694 | AC49: 0 | AD49: 0 | AE49: 0 | AF49: 0 | AG49: 0 | AH49: 0 | AI49: 0 | AJ49: 0 | AK49: 0 | AL49: 0 | AM49: 0 | AN49: 0 | AO49: 0 | AP49: 0 | AQ49: 0 | AR49: 0 | AS49: 0 | AT49: 0 | AU49: 0 | AV49: 0 | AW49: 0
R50: 4.7 | S50: 1.779677082e-13 | T50: 84.03414285 | U50: 91.8274714 | V50: 94.40107865 | W50: 95.57993832 | X50: 96.32249484 | Y50: 96.87781221 | Z50: 97.16896987 | AA50: 97.30413736 | AB50: 97.40905199 | AC50: 0 | AD50: 0 | AE50: 0 | AF50: 0 | AG50: 0 | AH50: 0 | AI50: 0 | AJ50: 0 | AK50: 0 | AL50: 0 | AM50: 0 | AN50: 0 | AO50: 0 | AP50: 0 | AQ50: 0 | AR50: 0 | AS50: 0 | AT50: 0 | AU50: 0 | AV50: 0 | AW50: 0
R51: 4.8 | S51: -1.362715346e-13 | T51: 84.15267293 | U51: 91.81677045 | V51: 94.39872882 | W51: 95.58346505 | X51: 96.34572467 | Y51: 96.90028214 | Z51: 97.16732616 | AA51: 97.30361168 | AB51: 97.3750317 | AC51: 0 | AD51: 0 | AE51: 0 | AF51: 0 | AG51: 0 | AH51: 0 | AI51: 0 | AJ51: 0 | AK51: 0 | AL51: 0 | AM51: 0 | AN51: 0 | AO51: 0 | AP51: 0 | AQ51: 0 | AR51: 0 | AS51: 0 | AT51: 0 | AU51: 0 | AV51: 0 | AW51: 0
R52: 4.9 | S52: 8.722945596e-13 | T52: 84.25779262 | U52: 91.80212364 | V52: 94.43378189 | W52: 95.5874223 | X52: 96.36797621 | Y52: 96.92160693 | Z52: 97.16524427 | AA52: 97.30382027 | AB52: 97.2846062 | AC52: 0 | AD52: 0 | AE52: 0 | AF52: 0 | AG52: 0 | AH52: 0 | AI52: 0 | AJ52: 0 | AK52: 0 | AL52: 0 | AM52: 0 | AN52: 0 | AO52: 0 | AP52: 0 | AQ52: 0 | AR52: 0 | AS52: 0 | AT52: 0 | AU52: 0 | AV52: 0 | AW52: 0
R53: 5 | S53: -5.258826348e-13 | T53: 84.29477274 | U53: 91.75582963 | V53: 94.45083393 | W53: 95.5732647 | X53: 96.37493032 | Y53: 96.90467708 | Z53: 97.14826616 | AA53: 97.29445319 | AB53: 0 | AC53: 0 | AD53: 0 | AE53: 0 | AF53: 0 | AG53: 0 | AH53: 0 | AI53: 0 | AJ53: 0 | AK53: 0 | AL53: 0 | AM53: 0 | AN53: 0 | AO53: 0 | AP53: 0 | AQ53: 0 | AR53: 0 | AS53: 0 | AT53: 0 | AU53: 0 | AV53: 0 | AW53: 0
R54: 5.1 | S54: 1.705520013e-12 | T54: 84.2371316 | U54: 91.72363975 | V54: 94.46525716 | W54: 95.55912436 | X54: 96.38051575 | Y54: 96.8775349 | Z54: 97.12721379 | AA54: 97.28443884 | AB54: 0 | AC54: 0 | AD54: 0 | AE54: 0 | AF54: 0 | AG54: 0 | AH54: 0 | AI54: 0 | AJ54: 0 | AK54: 0 | AL54: 0 | AM54: 0 | AN54: 0 | AO54: 0 | AP54: 0 | AQ54: 0 | AR54: 0 | AS54: 0 | AT54: 0 | AU54: 0 | AV54: 0 | AW54: 0
R55: 5.2 | S55: 7.93778158e-14 | T55: 84.1598806 | U55: 91.72761334 | V55: 94.47884454 | W55: 95.56502927 | X55: 96.38532684 | Y55: 96.85103044 | Z55: 97.10617984 | AA55: 97.28079961 | AB55: 0 | AC55: 0 | AD55: 0 | AE55: 0 | AF55: 0 | AG55: 0 | AH55: 0 | AI55: 0 | AJ55: 0 | AK55: 0 | AL55: 0 | AM55: 0 | AN55: 0 | AO55: 0 | AP55: 0 | AQ55: 0 | AR55: 0 | AS55: 0 | AT55: 0 | AU55: 0 | AV55: 0 | AW55: 0
R56: 5.3 | S56: 3.493067553e-12 | T56: 84.10954467 | U56: 91.73608314 | V56: 94.49254289 | W56: 95.59807115 | X56: 96.38949806 | Y56: 96.82557154 | Z56: 97.09193541 | AA56: 97.27893551 | AB56: 0 | AC56: 0 | AD56: 0 | AE56: 0 | AF56: 0 | AG56: 0 | AH56: 0 | AI56: 0 | AJ56: 0 | AK56: 0 | AL56: 0 | AM56: 0 | AN56: 0 | AO56: 0 | AP56: 0 | AQ56: 0 | AR56: 0 | AS56: 0 | AT56: 0 | AU56: 0 | AV56: 0 | AW56: 0
R57: 5.4 | S57: 1.538952498e-12 | T57: 84.14634745 | U57: 91.7501555 | V57: 94.50594082 | W57: 95.62864097 | X57: 96.40608899 | Y57: 96.81470771 | Z57: 97.09258194 | AA57: 97.23785606 | AB57: 0 | AC57: 0 | AD57: 0 | AE57: 0 | AF57: 0 | AG57: 0 | AH57: 0 | AI57: 0 | AJ57: 0 | AK57: 0 | AL57: 0 | AM57: 0 | AN57: 0 | AO57: 0 | AP57: 0 | AQ57: 0 | AR57: 0 | AS57: 0 | AT57: 0 | AU57: 0 | AV57: 0 | AW57: 0
R58: 5.5 | S58: 1.340584483e-12 | T58: 84.17885269 | U58: 91.77608019 | V58: 94.51854733 | W58: 95.65419601 | X58: 96.42435182 | Y58: 96.81323591 | Z58: 97.09167331 | AA58: 97.16768774 | AB58: 0 | AC58: 0 | AD58: 0 | AE58: 0 | AF58: 0 | AG58: 0 | AH58: 0 | AI58: 0 | AJ58: 0 | AK58: 0 | AL58: 0 | AM58: 0 | AN58: 0 | AO58: 0 | AP58: 0 | AQ58: 0 | AR58: 0 | AS58: 0 | AT58: 0 | AU58: 0 | AV58: 0 | AW58: 0
R59: 5.6 | S59: 1.149715926e-13 | T59: 84.20762093 | U59: 91.81900167 | V59: 94.53040708 | W59: 95.67836621 | X59: 96.41821838 | Y59: 96.81176624 | Z59: 97.09004485 | AA59: 97.06691752 | AB59: 0 | AC59: 0 | AD59: 0 | AE59: 0 | AF59: 0 | AG59: 0 | AH59: 0 | AI59: 0 | AJ59: 0 | AK59: 0 | AL59: 0 | AM59: 0 | AN59: 0 | AO59: 0 | AP59: 0 | AQ59: 0 | AR59: 0 | AS59: 0 | AT59: 0 | AU59: 0 | AV59: 0 | AW59: 0
R60: 5.7 | S60: -6.021084976e-13 | T60: 84.20193366 | U60: 91.85994494 | V60: 94.52791827 | W60: 95.70140235 | X60: 96.41252947 | Y60: 96.81061012 | Z60: 97.08633764 | AA60: 0 | AB60: 0 | AC60: 0 | AD60: 0 | AE60: 0 | AF60: 0 | AG60: 0 | AH60: 0 | AI60: 0 | AJ60: 0 | AK60: 0 | AL60: 0 | AM60: 0 | AN60: 0 | AO60: 0 | AP60: 0 | AQ60: 0 | AR60: 0 | AS60: 0 | AT60: 0 | AU60: 0 | AV60: 0 | AW60: 0
R61: 5.8 | S61: 2.785931817e-13 | T61: 84.18095292 | U61: 91.89903407 | V61: 94.51722841 | W61: 95.72428475 | X61: 96.406899 | Y61: 96.80976595 | Z61: 97.08255943 | AA61: 0 | AB61: 0 | AC61: 0 | AD61: 0 | AE61: 0 | AF61: 0 | AG61: 0 | AH61: 0 | AI61: 0 | AJ61: 0 | AK61: 0 | AL61: 0 | AM61: 0 | AN61: 0 | AO61: 0 | AP61: 0 | AQ61: 0 | AR61: 0 | AS61: 0 | AT61: 0 | AU61: 0 | AV61: 0 | AW61: 0
R62: 5.9 | S62: 2.121315879e-13 | T62: 84.15876983 | U62: 91.93467906 | V62: 94.53126766 | W62: 95.74674847 | X62: 96.4013306 | Y62: 96.80841951 | Z62: 97.07868696 | AA62: 0 | AB62: 0 | AC62: 0 | AD62: 0 | AE62: 0 | AF62: 0 | AG62: 0 | AH62: 0 | AI62: 0 | AJ62: 0 | AK62: 0 | AL62: 0 | AM62: 0 | AN62: 0 | AO62: 0 | AP62: 0 | AQ62: 0 | AR62: 0 | AS62: 0 | AT62: 0 | AU62: 0 | AV62: 0 | AW62: 0
R63: 6 | S63: -4.918465436e-14 | T63: 84.13764332 | U63: 91.96859578 | V63: 94.52956046 | W63: 95.7682789 | X63: 96.39611543 | Y63: 96.80701855 | Z63: 97.07469685 | AA63: 0 | AB63: 0 | AC63: 0 | AD63: 0 | AE63: 0 | AF63: 0 | AG63: 0 | AH63: 0 | AI63: 0 | AJ63: 0 | AK63: 0 | AL63: 0 | AM63: 0 | AN63: 0 | AO63: 0 | AP63: 0 | AQ63: 0 | AR63: 0 | AS63: 0 | AT63: 0 | AU63: 0 | AV63: 0 | AW63: 0
Q69: Iq Map | S69: Torque(Nm)
S70: =S2 -> 0 | T70: =T2 -> 0.1 | U70: 0.2 | V70: 0.3 | W70: 0.4 | X70: 0.5 | Y70: 0.6 | Z70: 0.7 | AA70: 0.8 | AB70: 0.9 | AC70: 1 | AD70: 1.1 | AE70: 1.2 | AF70: 1.3 | AG70: 1.4 | AH70: 1.5 | AI70: 1.6 | AJ70: 1.7 | AK70: 1.8 | AL70: 1.9 | AM70: 2 | AN70: 2.1 | AO70: 2.2 | AP70: 2.3 | AQ70: 2.4 | AR70: 2.5 | AS70: 2.6 | AT70: 2.7 | AU70: 2.8 | AV70: 2.9 | AW70: 3
Q71: Speed(RPM)
R72: =R3 -> 0 | S72: 0.09001530012 | T72: 12.96170015 | U72: 25.83638348 | V72: 38.76637393 | W72: 51.7112828 | X72: 64.77487132 | Y72: 77.92425628 | Z72: 91.07364124 | AA72: 104.2230262 | AB72: 117.5848721 | AC72: 131.6393446 | AD72: 145.6938171 | AE72: 159.7482896 | AF72: 174.0033979 | AG72: 189.2455723 | AH72: 204.4877467 | AI72: 219.7299211 | AJ72: 235.7848786 | AK72: 252.9625672 | AL72: 270.1402558 | AM72: 287.7348956 | AN72: 309.3787833 | AO72: 331.0226709 | AP72: 352.6665586 | AQ72: 374.3104462 | AR72: 395.9543338 | AS72: 425.1403164 | AT72: 456.0601559 | AU72: 486.9799954 | AV72: 519.2462719 | AW72: 561.6852673
R73: =R4 -> 0.1 | S73: 0.689010031 | T73: 13.56530116 | U73: 26.44948791 | V73: 39.38439625 | W73: 52.32930513 | X73: 65.47351197 | Y73: 78.67669632 | Z73: 91.85811388 | AA73: 105.0395314 | AB73: 118.4815944 | AC73: 132.5360669 | AD73: 146.5905394 | AE73: 160.6450119 | AF73: 174.9758996 | AG73: 190.218074 | AH73: 205.4602484 | AI73: 220.7024228 | AJ73: 236.8808725 | AK73: 254.0585611 | AL73: 271.2362497 | AM73: 289.1502072 | AN73: 311.01272 | AO73: 332.8752328 | AP73: 354.7377455 | AQ73: 376.6002583 | AR73: 398.4627711 | AS73: 428.3408887 | AT73: 458.8252375 | AU73: 489.3095863 | AV73: 522.1073878 | AW73: 564.8598705
R74: 0.2 | S74: 0.8642981681 | T74: 13.72918621 | U74: 26.60539474 | V74: 39.54103786 | W74: 52.48594673 | X74: 65.63399283 | Y74: 78.89617888 | Z74: 92.15836493 | AA74: 105.3585385 | AB74: 118.8217305 | AC74: 132.876203 | AD74: 146.9306755 | AE74: 160.985148 | AF74: 175.3447795 | AG74: 190.5869539 | AH74: 205.8291283 | AI74: 221.0713027 | AJ74: 237.2965944 | AK74: 254.474283 | AL74: 271.6519716 | AM74: 289.6793078 | AN74: 311.5418205 | AO74: 333.4043333 | AP74: 355.2668461 | AQ74: 377.1293588 | AR74: 398.9918716 | AS74: 429.0786486 | AT74: 459.5629974 | AU74: 490.0473462 | AV74: 523.1550069 | AW74: 566.4427822
R75: 0.3 | S75: 1.02438693 | T75: 13.88927497 | U75: 26.75465772 | V75: 39.68913537 | W75: 52.63404425 | X75: 65.78572018 | Y75: 79.04790624 | Z75: 92.31009229 | AA75: 105.5722783 | AB75: 119.0691022 | AC75: 133.1235747 | AD75: 147.1780471 | AE75: 161.2325196 | AF75: 175.6130559 | AG75: 190.8552302 | AH75: 206.0974046 | AI75: 221.339579 | AJ75: 237.6896405 | AK75: 254.8673291 | AL75: 272.0450177 | AM75: 290.1795483 | AN75: 312.042061 | AO75: 333.9045738 | AP75: 355.7670866 | AQ75: 377.6295993 | AR75: 399.4921121 | AS75: 429.7761671 | AT75: 460.2605159 | AU75: 490.7448646 | AV75: 524.1454831 | AW75: 567.4332584
R76: 0.4 | S76: 1.143944026 | T76: 14.00883207 | U76: 26.87925561 | V76: 39.81444866 | W76: 52.75935753 | X76: 65.91410487 | Y76: 79.17629092 | Z76: 92.40912601 | AA76: 105.5905436 | AB76: 119.0691022 | AC76: 133.1235747 | AD76: 147.1780471 | AE76: 161.2325196 | AF76: 175.6130559 | AG76: 190.8552302 | AH76: 206.1572995 | AI76: 221.6172193 | AJ76: 238.022218 | AK76: 255.1999066 | AL76: 272.3775952 | AM76: 290.6028287 | AN76: 312.4653415 | AO76: 334.3278542 | AP76: 356.190367 | AQ76: 378.0528798 | AR76: 399.9153925 | AS76: 430.366375 | AT76: 460.8507238 | AU76: 491.3350726 | AV76: 524.9835783 | AW76: 568.2713536
R77: 0.5 | S77: 1.263501121 | T77: 14.13284515 | U77: 27.0038535 | V77: 39.93976194 | W77: 52.88467082 | X77: 66.04248956 | Y77: 79.22770844 | Z77: 92.40912601 | AA77: 105.5905436 | AB77: 119.0691022 | AC77: 133.1235747 | AD77: 147.1780471 | AE77: 161.2325196 | AF77: 175.6130559 | AG77: 190.9966995 | AH77: 206.4566193 | AI77: 221.916539 | AJ77: 238.3547954 | AK77: 255.532484 | AL77: 272.7101726 | AM77: 291.0261091 | AN77: 312.8886219 | AO77: 334.7511346 | AP77: 356.6136474 | AQ77: 378.4761602 | AR77: 400.4722341 | AS77: 430.9565829 | AT77: 461.4409317 | AU77: 491.9252805 | AV77: 525.8216735 | AW77: 569.1094488
R78: 0.6 | S78: 1.373195176 | T78: 14.24385054 | U78: 27.11485889 | V78: 40.05140468 | W78: 52.99631356 | X78: 66.11589241 | Y78: 79.29730997 | Z78: 92.47872754 | AA78: 105.6601451 | AB78: 119.1433137 | AC78: 133.1977862 | AD78: 147.2522586 | AE78: 161.3067311 | AF78: 175.7544669 | AG78: 191.2143866 | AH78: 206.6743063 | AI78: 222.1342261 | AJ78: 238.59667 | AK78: 255.7743586 | AL78: 272.9520472 | AM78: 291.3339494 | AN78: 313.1964622 | AO78: 335.058975 | AP78: 356.9214877 | AQ78: 378.7840005 | AR78: 400.9014762 | AS78: 431.385825 | AT78: 461.8701738 | AU78: 492.3545226 | AV78: 526.6597688 | AW78: 569.9475441
R79: 0.7 | S79: 1.474095465 | T79: 14.34352885 | U79: 27.2145372 | V79: 40.15165531 | W79: 53.09656419 | X79: 66.22618182 | Y79: 79.42491278 | Z79: 92.60633035 | AA79: 105.7877479 | AB79: 119.2793681 | AC79: 133.3338406 | AD79: 147.3883131 | AE79: 161.4427856 | AF79: 175.9041267 | AG79: 191.3640465 | AH79: 206.8239662 | AI79: 222.2838859 | AJ79: 238.7629587 | AK79: 255.9406473 | AL79: 273.1183359 | AM79: 291.5455896 | AN79: 313.4081024 | AO79: 335.2706152 | AP79: 357.1331279 | AQ79: 378.9956407 | AR79: 401.1965802 | AS79: 431.680929 | AT79: 462.1652778 | AU79: 492.8031246 | AV79: 527.497864 | AW79: 570.7856393
R80: 0.8 | S80: 1.574995753 | T80: 14.44320716 | U80: 27.31421551 | V80: 40.25190594 | W80: 53.19681481 | X80: 66.32851335 | Y80: 79.54211996 | Z80: 92.73393315 | AA80: 105.9153507 | AB80: 119.4154225 | AC80: 133.469895 | AD80: 147.5243675 | AE80: 161.57884 | AF80: 176.0537866 | AG80: 191.5137063 | AH80: 206.9736261 | AI80: 222.4335458 | AJ80: 238.9292474 | AK80: 256.106936 | AL80: 273.2846246 | AM80: 291.7572298 | AN80: 313.6197426 | AO80: 335.4822554 | AP80: 357.3447681 | AQ80: 379.2072809 | AR80: 401.4916841 | AS80: 431.9760329 | AT80: 462.4819246 | AU80: 493.4017641 | AV80: 528.3359593 | AW80: 571.6237345
R81: 0.9 | S81: 1.675896042 | T81: 14.54384351 | U81: 27.41389382 | V81: 40.35215656 | W81: 53.29706544 | X81: 66.43084488 | Y81: 79.6444515 | Z81: 92.85805811 | AA81: 106.0429535 | AB81: 119.5514769 | AC81: 133.6059494 | AD81: 147.6604219 | AE81: 161.7148944 | AF81: 176.2034464 | AG81: 191.6633662 | AH81: 207.1232859 | AI81: 222.5832057 | AJ81: 239.0955362 | AK81: 256.2732248 | AL81: 273.4509134 | AM81: 291.9688701 | AN81: 313.8313828 | AO81: 335.6938956 | AP81: 357.5564084 | AQ81: 379.4189211 | AR81: 401.7867881 | AS81: 432.2711369 | AT81: 463.080564 | AU81: 494.0004035 | AV81: 529.1740545 | AW81: 572.4618298
R82: 1 | S82: 1.776796331 | T82: 14.6447438 | U82: 27.51357213 | V82: 40.45240719 | W82: 53.39731607 | X82: 66.53317641 | Y82: 79.74678303 | Z82: 92.96038964 | AA82: 106.1705563 | AB82: 119.6875313 | AC82: 133.7420038 | AD82: 147.7964763 | AE82: 161.8509488 | AF82: 176.3531063 | AG82: 191.8130261 | AH82: 207.2729458 | AI82: 222.7328655 | AJ82: 239.2618249 | AK82: 256.4395135 | AL82: 273.6172021 | AM82: 292.1805103 | AN82: 314.043023 | AO82: 335.9055358 | AP82: 357.7680486 | AQ82: 379.6305613 | AR82: 402.0818921 | AS82: 432.759364 | AT82: 463.6792035 | AU82: 494.599043 | AV82: 530.0121497 | AW82: 573.299925
R83: 1.1 | S83: 1.876903913 | T83: 14.74485138 | U83: 27.61279885 | V83: 40.55265782 | W83: 53.49756669 | X83: 66.63550794 | Y83: 79.84911456 | Z83: 93.06272117 | AA83: 106.2763278 | AB83: 119.8235858 | AC83: 133.8780583 | AD83: 147.9325308 | AE83: 161.9870032 | AF83: 176.5027662 | AG83: 191.9626859 | AH83: 207.4226057 | AI83: 222.8825254 | AJ83: 239.4281137 | AK83: 256.6058023 | AL83: 273.7834909 | AM83: 292.3921505 | AN83: 314.2546632 | AO83: 336.117176 | AP83: 357.9796888 | AQ83: 379.8422015 | AR83: 402.3771608 | AS83: 433.3580035 | AT83: 464.277843 | AU83: 495.1976824 | AV83: 530.850245 | AW83: 574.1380203
R84: 1.2 | S84: 1.969084423 | T84: 14.83703189 | U84: 27.71190649 | V84: 40.65290844 | W84: 53.59781732 | X84: 66.73783947 | Y84: 79.95144609 | Z84: 93.16505271 | AA84: 106.3872799 | AB84: 119.9596402 | AC84: 134.0141127 | AD84: 148.0685852 | AE84: 162.1230577 | AF84: 176.652426 | AG84: 192.1123458 | AH84: 207.5722655 | AI84: 223.0321853 | AJ84: 239.5944024 | AK84: 256.772091 | AL84: 273.9497796 | AM84: 292.6037907 | AN84: 314.4663035 | AO84: 336.3288162 | AP84: 358.191329 | AQ84: 380.0835457 | AR84: 403.0368034 | AS84: 433.9566429 | AT84: 464.8764824 | AU84: 495.7963219 | AV84: 531.6883402 | AW84: 574.9761155
R85: 1.3 | S85: 2.061264934 | T85: 14.9292124 | U85: 27.81170349 | V85: 40.75315907 | W85: 53.69806795 | X85: 66.840171 | Y85: 80.05377762 | Z85: 93.2695542 | AA85: 106.5155075 | AB85: 120.0956946 | AC85: 134.1501671 | AD85: 148.2046396 | AE85: 162.2591121 | AF85: 176.8020859 | AG85: 192.2620056 | AH85: 207.7219254 | AI85: 223.1818451 | AJ85: 239.7606911 | AK85: 256.9383797 | AL85: 274.1160683 | AM85: 292.8154309 | AN85: 314.6779437 | AO85: 336.5404564 | AP85: 358.4255457 | AQ85: 380.5111453 | AR85: 403.6354429 | AS85: 434.5552824 | AT85: 465.4751219 | AU85: 496.3949613 | AV85: 532.5264355 | AW85: 575.8142107
R86: 1.4 | S86: 2.153445445 | T86: 15.02516587 | U86: 27.91150049 | V86: 40.8534097 | W86: 53.79831857 | X86: 66.94250253 | Y86: 80.15610915 | Z86: 93.39778175 | AA86: 106.643735 | AB86: 120.231749 | AC86: 134.2862215 | AD86: 148.340694 | AE86: 162.3951665 | AF86: 176.9517458 | AG86: 192.4116655 | AH86: 207.8715852 | AI86: 223.331505 | AJ86: 239.9269799 | AK86: 257.1046685 | AL86: 274.2823571 | AM86: 293.0270711 | AN86: 314.8895839 | AO86: 336.7675456 | AP86: 358.8531453 | AQ86: 380.9387449 | AR86: 404.2340824 | AS86: 435.1539218 | AT86: 466.0737613 | AU86: 496.9936008 | AV86: 533.3645307 | AW86: 576.652306
R87: 1.5 | S87: 2.245625955 | T87: 15.12496287 | U87: 28.0112975 | V87: 40.95366032 | W87: 53.8985692 | X87: 67.04483406 | Y87: 80.28005603 | Z87: 93.5260093 | AA87: 106.7719626 | AB87: 120.3678035 | AC87: 134.422276 | AD87: 148.4767484 | AE87: 162.5312209 | AF87: 177.1014056 | AG87: 192.5613254 | AH87: 208.0212451 | AI87: 223.4811649 | AJ87: 240.0932686 | AK87: 257.2709572 | AL87: 274.4486458 | AM87: 293.2387113 | AN87: 315.1095456 | AO87: 337.1951453 | AP87: 359.2807449 | AQ87: 381.3663445 | AR87: 404.8327218 | AS87: 435.7525613 | AT87: 466.6724008 | AU87: 497.5922403 | AV87: 534.2026259 | AW87: 577.4904012
R88: 1.6 | S88: 2.338425249 | T88: 15.22475988 | U88: 28.1110945 | V88: 41.05391095 | W88: 53.99881982 | X88: 67.16233031 | Y88: 80.40828357 | Z88: 93.65423684 | AA88: 106.9001901 | AB88: 120.5038579 | AC88: 134.5583304 | AD88: 148.6128029 | AE88: 162.6672754 | AF88: 177.2510655 | AG88: 192.7109852 | AH88: 208.170905 | AI88: 223.6308247 | AJ88: 240.2595573 | AK88: 257.4372459 | AL88: 274.6149345 | AM88: 293.4436554 | AN88: 315.5371452 | AO88: 337.6227449 | AP88: 359.7083445 | AQ88: 381.7939441 | AR88: 405.4313613 | AS88: 436.3512007 | AT88: 467.2710402 | AU88: 498.1908797 | AV88: 533.7449482 | AW88: 541.9831512
R89: 1.7 | S89: 2.430283854 | T89: 15.31661848 | U89: 28.20295311 | V89: 41.14618709 | W89: 54.09109597 | X89: 67.29055785 | Y89: 80.53651112 | Z89: 93.78246439 | AA89: 107.0284177 | AB89: 120.6399123 | AC89: 134.6943848 | AD89: 148.7488573 | AE89: 162.8033298 | AF89: 177.4007254 | AG89: 192.8606451 | AH89: 208.3205648 | AI89: 223.7804846 | AJ89: 240.4258461 | AK89: 257.6035347 | AL89: 274.7812233 | AM89: 293.7430908 | AN89: 315.8286904 | AO89: 337.9142901 | AP89: 359.9998897 | AQ89: 382.0854893 | AR89: 405.8395245 | AS89: 436.5799429 | AT89: 464.0499389 | AU89: 484.3520532 | AV89: 0 | AW89: 0
R90: 1.8 | S90: 2.517606233 | T90: 15.40394086 | U90: 28.29027549 | V90: 41.23390639 | W90: 54.17881527 | X90: 67.39347731 | Y90: 80.66473866 | Z90: 93.91069193 | AA90: 107.1566452 | AB90: 120.7759667 | AC90: 134.8304392 | AD90: 148.8849117 | AE90: 162.9393842 | AF90: 177.5503852 | AG90: 193.010305 | AH90: 208.4702247 | AI90: 223.9301444 | AJ90: 240.5921348 | AK90: 257.7698234 | AL90: 274.947512 | AM90: 293.9568906 | AN90: 316.0424902 | AO90: 338.1280899 | AP90: 360.2136895 | AQ90: 380.7686601 | AR90: 400.8499991 | AS90: 423.7426863 | AT90: 0 | AU90: 0 | AV90: 0 | AW90: 0
R91: 1.9 | S91: 2.604928611 | T91: 15.49126324 | U91: 28.37759786 | V91: 41.32162569 | W91: 54.26653457 | X91: 67.4835674 | Y91: 80.77833867 | Z91: 94.03891948 | AA91: 107.2848727 | AB91: 120.9120211 | AC91: 134.9664936 | AD91: 149.0209661 | AE91: 163.0754386 | AF91: 177.7000451 | AG91: 193.1599648 | AH91: 208.6198846 | AI91: 224.0798043 | AJ91: 240.7584236 | AK91: 257.9361122 | AL91: 275.1138008 | AM91: 294.1706904 | AN91: 316.2554673 | AO91: 336.7666379 | AP91: 355.7714709 | AQ91: 373.2072394 | AR91: 385.3180177 | AS91: 0 | AT91: 0 | AU91: 0 | AV91: 0 | AW91: 0
R92: 2 | S92: 2.692250989 | T92: 15.57858562 | U92: 28.46492024 | V92: 41.40934499 | W92: 54.35425386 | X92: 67.57365749 | Y92: 80.86842876 | Z92: 94.16320004 | AA92: 107.4131003 | AB92: 121.0480756 | AC92: 135.1025481 | AD92: 149.1570206 | AE92: 163.211493 | AF92: 177.8497049 | AG92: 193.3096247 | AH92: 208.7695444 | AI92: 224.2294642 | AJ92: 240.9247123 | AK92: 258.117775 | AL92: 275.0356022 | AM92: 293.5513392 | AN92: 313.8901051 | AO92: 331.6967342 | AP92: 346.201734 | AQ92: 0 | AR92: 0 | AS92: 0 | AT92: 0 | AU92: 0 | AV92: 0 | AW92: 0
R93: 2.1 | S93: 2.779573368 | T93: 15.66590799 | U93: 28.55224262 | V93: 41.49706429 | W93: 54.44197316 | X93: 67.66374758 | Y93: 80.95851885 | Z93: 94.25329013 | AA93: 107.5413278 | AB93: 121.18413 | AC93: 135.2386025 | AD93: 149.293075 | AE93: 163.3475475 | AF93: 177.9993648 | AG93: 193.4592846 | AH93: 209.0323393 | AI93: 224.7385799 | AJ93: 240.9238398 | AK93: 257.0602168 | AL93: 272.7890478 | AM93: 290.1254958 | AN93: 307.115758 | AO93: 326.5492106 | AP93: 0 | AQ93: 0 | AR93: 0 | AS93: 0 | AT93: 0 | AU93: 0 | AV93: 0 | AW93: 0
R94: 2.2 | S94: 2.866895746 | T94: 15.75323037 | U94: 28.63987471 | V94: 41.58478359 | W94: 54.52969246 | X94: 67.75383767 | Y94: 81.04860894 | Z94: 94.34338022 | AA94: 107.6381515 | AB94: 121.3201844 | AC94: 135.3746569 | AD94: 149.4291294 | AE94: 163.4836019 | AF94: 178.5241309 | AG94: 194.1835636 | AH94: 209.5789945 | AI94: 224.2872761 | AJ94: 239.5481859 | AK94: 254.385098 | AL94: 268.3881712 | AM94: 286.8876381 | AN94: 308.0345196 | AO94: 0 | AP94: 0 | AQ94: 0 | AR94: 0 | AS94: 0 | AT94: 0 | AU94: 0 | AV94: 0 | AW94: 0
R95: 2.3 | S95: 2.954218124 | T95: 15.84055275 | U95: 28.72759401 | V95: 41.67250288 | W95: 54.61741176 | X95: 67.84392776 | Y95: 81.13869903 | Z95: 94.43347031 | AA95: 107.7497834 | AB95: 121.4562388 | AC95: 135.7401794 | AD95: 150.0773812 | AE95: 164.2283661 | AF95: 178.9199494 | AG95: 193.8847708 | AH95: 208.2657145 | AI95: 222.0423337 | AJ95: 236.4047019 | AK95: 252.1656865 | AL95: 269.2006909 | AM95: 289.362689 | AN95: 0 | AO95: 0 | AP95: 0 | AQ95: 0 | AR95: 0 | AS95: 0 | AT95: 0 | AU95: 0 | AV95: 0 | AW95: 0
R96: 2.4 | S96: 3.041540503 | T96: 15.92787513 | U96: 28.81531331 | V96: 41.76022218 | W96: 54.70513106 | X96: 67.93401785 | Y96: 81.23709078 | Z96: 94.72962238 | AA96: 108.1705827 | AB96: 121.9243196 | AC96: 136.0624881 | AD96: 150.0144776 | AE96: 163.6935103 | AF96: 177.7570039 | AG96: 191.8765704 | AH96: 205.408773 | AI96: 220.8147615 | AJ96: 237.0799209 | AK96: 253.7165801 | AL96: 270.8832154 | AM96: 0 | AN96: 0 | AO96: 0 | AP96: 0 | AQ96: 0 | AR96: 0 | AS96: 0 | AT96: 0 | AU96: 0 | AV96: 0 | AW96: 0
R97: 2.5 | S97: 3.128862881 | T97: 16.01519751 | U97: 28.96440035 | V97: 42.02238108 | W97: 55.09835247 | X97: 68.35754175 | Y97: 81.5964435 | Z97: 94.71474061 | AA97: 107.683903 | AB97: 121.3062876 | AC97: 135.0046843 | AD97: 148.4422613 | AE97: 161.5144448 | AF97: 176.1438155 | AG97: 191.1753267 | AH97: 206.7335255 | AI97: 222.1260921 | AJ97: 238.3281245 | AK97: 253.1318217 | AL97: 0 | AM97: 0 | AN97: 0 | AO97: 0 | AP97: 0 | AQ97: 0 | AR97: 0 | AS97: 0 | AT97: 0 | AU97: 0 | AV97: 0 | AW97: 0
R98: 2.6 | S98: 3.21618526 | T98: 16.10251989 | U98: 29.08828165 | V98: 42.07328308 | W98: 54.71305051 | X98: 67.48604727 | Y98: 80.32385903 | Z98: 93.53249282 | AA98: 106.9494265 | AB98: 120.649244 | AC98: 134.693486 | AD98: 148.5330474 | AE98: 162.2950793 | AF98: 176.8371604 | AG98: 191.5803612 | AH98: 206.7525107 | AI98: 222.8119049 | AJ98: 237.599783 | AK98: 0 | AL98: 0 | AM98: 0 | AN98: 0 | AO98: 0 | AP98: 0 | AQ98: 0 | AR98: 0 | AS98: 0 | AT98: 0 | AU98: 0 | AV98: 0 | AW98: 0
R99: 2.7 | S99: 3.303507638 | T99: 16.18984226 | U99: 28.64305288 | V99: 41.19479605 | W99: 54.22870559 | X99: 66.95753408 | Y99: 80.07931149 | Z99: 93.57437958 | AA99: 107.4027509 | AB99: 122.0016506 | AC99: 135.726538 | AD99: 149.169988 | AE99: 162.6723072 | AF99: 176.6870797 | AG99: 191.5804497 | AH99: 206.5793237 | AI99: 221.6172927 | AJ99: 236.8945576 | AK99: 0 | AL99: 0 | AM99: 0 | AN99: 0 | AO99: 0 | AP99: 0 | AQ99: 0 | AR99: 0 | AS99: 0 | AT99: 0 | AU99: 0 | AV99: 0 | AW99: 0
R100: 2.8 | S100: 3.843174038 | T100: 16.15052827 | U100: 29.29990367 | V100: 41.36320363 | W100: 54.95837933 | X100: 67.70049789 | Y100: 80.30174885 | Z100: 93.67161942 | AA100: 107.4954878 | AB100: 121.9085069 | AC100: 136.1091364 | AD100: 149.1929319 | AE100: 162.4197305 | AF100: 176.6259453 | AG100: 191.3537435 | AH100: 205.6342249 | AI100: 221.0840333 | AJ100: 0 | AK100: 0 | AL100: 0 | AM100: 0 | AN100: 0 | AO100: 0 | AP100: 0 | AQ100: 0 | AR100: 0 | AS100: 0 | AT100: 0 | AU100: 0 | AV100: 0 | AW100: 0
R101: 2.9 | S101: 3.635149514 | T101: 15.93313383 | U101: 28.21395182 | V101: 41.09522604 | W101: 53.14243433 | X101: 68.38125827 | Y101: 80.91560304 | Z101: 93.4638494 | AA101: 106.706737 | AB101: 120.980915 | AC101: 135.1413248 | AD101: 148.3028719 | AE101: 162.0140058 | AF101: 176.3666404 | AG101: 190.825836 | AH101: 206.2589595 | AI101: 223.2026726 | AJ101: 0 | AK101: 0 | AL101: 0 | AM101: 0 | AN101: 0 | AO101: 0 | AP101: 0 | AQ101: 0 | AR101: 0 | AS101: 0 | AT101: 0 | AU101: 0 | AV101: 0 | AW101: 0
R102: 3 | S102: 3.077857571 | T102: 15.78680388 | U102: 28.05820818 | V102: 41.38857871 | W102: 53.51748624 | X102: 66.50262121 | Y102: 80.91206655 | Z102: 93.53786084 | AA102: 106.6575054 | AB102: 120.0699667 | AC102: 133.8512684 | AD102: 147.6249216 | AE102: 162.385652 | AF102: 177.1530517 | AG102: 191.6252118 | AH102: 206.8356073 | AI102: 0 | AJ102: 0 | AK102: 0 | AL102: 0 | AM102: 0 | AN102: 0 | AO102: 0 | AP102: 0 | AQ102: 0 | AR102: 0 | AS102: 0 | AT102: 0 | AU102: 0 | AV102: 0 | AW102: 0
R103: 3.1 | S103: 3.282569002 | T103: 16.18209804 | U103: 27.82833673 | V103: 41.75800257 | W103: 53.92847746 | X103: 66.67859389 | Y103: 80.15935093 | Z103: 93.57353636 | AA103: 106.8068914 | AB103: 120.3749616 | AC103: 134.2349539 | AD103: 148.2927862 | AE103: 163.1135832 | AF103: 177.81256 | AG103: 192.2350527 | AH103: 0 | AI103: 0 | AJ103: 0 | AK103: 0 | AL103: 0 | AM103: 0 | AN103: 0 | AO103: 0 | AP103: 0 | AQ103: 0 | AR103: 0 | AS103: 0 | AT103: 0 | AU103: 0 | AV103: 0 | AW103: 0
R104: 3.2 | S104: 3.132893989 | T104: 15.70030195 | U104: 28.31226483 | V104: 41.83344032 | W104: 54.45674756 | X104: 66.70735677 | Y104: 80.38059078 | Z104: 93.31105543 | AA104: 107.1630658 | AB104: 120.5702231 | AC104: 134.2682318 | AD104: 148.8856855 | AE104: 163.2523263 | AF104: 177.3395307 | AG104: 192.7218165 | AH104: 0 | AI104: 0 | AJ104: 0 | AK104: 0 | AL104: 0 | AM104: 0 | AN104: 0 | AO104: 0 | AP104: 0 | AQ104: 0 | AR104: 0 | AS104: 0 | AT104: 0 | AU104: 0 | AV104: 0 | AW104: 0
R105: 3.3 | S105: 2.834271739 | T105: 15.71173657 | U105: 28.77144439 | V105: 41.20822184 | W105: 54.222762 | X105: 66.87713816 | Y105: 80.21157964 | Z105: 93.28826495 | AA105: 106.907995 | AB105: 120.5220687 | AC105: 134.4372344 | AD105: 149.0062211 | AE105: 162.7914749 | AF105: 177.4085545 | AG105: 0 | AH105: 0 | AI105: 0 | AJ105: 0 | AK105: 0 | AL105: 0 | AM105: 0 | AN105: 0 | AO105: 0 | AP105: 0 | AQ105: 0 | AR105: 0 | AS105: 0 | AT105: 0 | AU105: 0 | AV105: 0 | AW105: 0
R106: 3.4 | S106: 2.876731579 | T106: 15.54262983 | U106: 29.20747998 | V106: 41.74247967 | W106: 53.61857878 | X106: 67.14562626 | Y106: 80.42663315 | Z106: 93.41904096 | AA106: 106.9918387 | AB106: 120.8156028 | AC106: 134.3419843 | AD106: 148.6232961 | AE106: 163.2519525 | AF106: 177.9652539 | AG106: 0 | AH106: 0 | AI106: 0 | AJ106: 0 | AK106: 0 | AL106: 0 | AM106: 0 | AN106: 0 | AO106: 0 | AP106: 0 | AQ106: 0 | AR106: 0 | AS106: 0 | AT106: 0 | AU106: 0 | AV106: 0 | AW106: 0
R107: 3.5 | S107: 2.795821895 | T107: 15.51824266 | U107: 27.67412698 | V107: 42.05248873 | W107: 53.88133148 | X107: 66.96905968 | Y107: 80.36100533 | Z107: 93.40200449 | AA107: 106.9285713 | AB107: 121.0298089 | AC107: 134.8475426 | AD107: 149.6482622 | AE107: 163.8264823 | AF107: 178.8442697 | AG107: 0 | AH107: 0 | AI107: 0 | AJ107: 0 | AK107: 0 | AL107: 0 | AM107: 0 | AN107: 0 | AO107: 0 | AP107: 0 | AQ107: 0 | AR107: 0 | AS107: 0 | AT107: 0 | AU107: 0 | AV107: 0 | AW107: 0
R108: 3.6 | S108: 2.999946167 | T108: 15.87483749 | U108: 27.55061558 | V108: 42.27639203 | W108: 54.01570679 | X108: 67.29577369 | Y108: 80.51663381 | Z108: 93.24438795 | AA108: 106.7376409 | AB108: 120.9762047 | AC108: 135.8968092 | AD108: 150.3500587 | AE108: 163.8493863 | AF108: 0 | AG108: 0 | AH108: 0 | AI108: 0 | AJ108: 0 | AK108: 0 | AL108: 0 | AM108: 0 | AN108: 0 | AO108: 0 | AP108: 0 | AQ108: 0 | AR108: 0 | AS108: 0 | AT108: 0 | AU108: 0 | AV108: 0 | AW108: 0
R109: 3.7 | S109: 3.189063657 | T109: 16.27224809 | U109: 27.73076419 | V109: 42.39997485 | W109: 54.0916208 | X109: 67.59775219 | Y109: 81.17993124 | Z109: 93.54283079 | AA109: 107.0394949 | AB109: 121.2737438 | AC109: 136.7031689 | AD109: 150.6277222 | AE109: 163.68382 | AF109: 0 | AG109: 0 | AH109: 0 | AI109: 0 | AJ109: 0 | AK109: 0 | AL109: 0 | AM109: 0 | AN109: 0 | AO109: 0 | AP109: 0 | AQ109: 0 | AR109: 0 | AS109: 0 | AT109: 0 | AU109: 0 | AV109: 0 | AW109: 0
R110: 3.8 | S110: 3.36606192 | T110: 16.23978717 | U110: 27.87836756 | V110: 42.39675554 | W110: 54.11949309 | X110: 67.78346056 | Y110: 81.6686814 | Z110: 93.8349282 | AA110: 107.1525663 | AB110: 121.4735264 | AC110: 136.7269058 | AD110: 150.4039599 | AE110: 0 | AF110: 0 | AG110: 0 | AH110: 0 | AI110: 0 | AJ110: 0 | AK110: 0 | AL110: 0 | AM110: 0 | AN110: 0 | AO110: 0 | AP110: 0 | AQ110: 0 | AR110: 0 | AS110: 0 | AT110: 0 | AU110: 0 | AV110: 0 | AW110: 0
R111: 3.9 | S111: 2.390322228 | T111: 16.10162681 | U111: 27.99364163 | V111: 42.20305218 | W111: 54.07472353 | X111: 67.83895656 | Y111: 82.10585964 | Z111: 94.25644426 | AA111: 107.1221693 | AB111: 121.4975915 | AC111: 136.4062521 | AD111: 149.6089046 | AE111: 0 | AF111: 0 | AG111: 0 | AH111: 0 | AI111: 0 | AJ111: 0 | AK111: 0 | AL111: 0 | AM111: 0 | AN111: 0 | AO111: 0 | AP111: 0 | AQ111: 0 | AR111: 0 | AS111: 0 | AT111: 0 | AU111: 0 | AV111: 0 | AW111: 0
R112: 4 | S112: 3.398670618 | T112: 15.8793513 | U112: 28.06980013 | V112: 41.05684652 | W112: 53.86070648 | X112: 67.74041886 | Y112: 82.09488301 | Z112: 94.58081188 | AA112: 107.2820819 | AB112: 121.2881774 | AC112: 135.7322985 | AD112: 150.6759158 | AE112: 0 | AF112: 0 | AG112: 0 | AH112: 0 | AI112: 0 | AJ112: 0 | AK112: 0 | AL112: 0 | AM112: 0 | AN112: 0 | AO112: 0 | AP112: 0 | AQ112: 0 | AR112: 0 | AS112: 0 | AT112: 0 | AU112: 0 | AV112: 0 | AW112: 0
R113: 4.1 | S113: 2.325741663 | T113: 15.58995591 | U113: 28.1051617 | V113: 41.07170497 | W113: 53.37636774 | X113: 67.45001835 | Y113: 81.86539413 | Z113: 94.79580111 | AA113: 107.4944021 | AB113: 121.2496888 | AC113: 135.5146588 | AD113: 0 | AE113: 0 | AF113: 0 | AG113: 0 | AH113: 0 | AI113: 0 | AJ113: 0 | AK113: 0 | AL113: 0 | AM113: 0 | AN113: 0 | AO113: 0 | AP113: 0 | AQ113: 0 | AR113: 0 | AS113: 0 | AT113: 0 | AU113: 0 | AV113: 0 | AW113: 0
R114: 4.2 | S114: 2.290682009 | T114: 15.31245261 | U114: 28.09829467 | V114: 41.02124076 | W114: 53.82006217 | X114: 67.18349698 | Y114: 81.45343212 | Z114: 94.89779611 | AA114: 107.6344109 | AB114: 121.2035468 | AC114: 136.0956566 | AD114: 0 | AE114: 0 | AF114: 0 | AG114: 0 | AH114: 0 | AI114: 0 | AJ114: 0 | AK114: 0 | AL114: 0 | AM114: 0 | AN114: 0 | AO114: 0 | AP114: 0 | AQ114: 0 | AR114: 0 | AS114: 0 | AT114: 0 | AU114: 0 | AV114: 0 | AW114: 0
R115: 4.3 | S115: 2.545089692 | T115: 15.61857965 | U115: 28.05255149 | V115: 40.96093184 | W115: 54.25189435 | X115: 67.25291844 | Y115: 80.82698693 | Z115: 94.66290531 | AA115: 107.6311081 | AB115: 121.8426919 | AC115: 136.1300333 | AD115: 0 | AE115: 0 | AF115: 0 | AG115: 0 | AH115: 0 | AI115: 0 | AJ115: 0 | AK115: 0 | AL115: 0 | AM115: 0 | AN115: 0 | AO115: 0 | AP115: 0 | AQ115: 0 | AR115: 0 | AS115: 0 | AT115: 0 | AU115: 0 | AV115: 0 | AW115: 0
R116: 4.4 | S116: 2.231702436 | T116: 15.65357928 | U116: 27.93902905 | V116: 40.79944561 | W116: 54.67341569 | X116: 67.78178121 | Y116: 80.62044996 | Z116: 94.30906666 | AA116: 108.2367717 | AB116: 122.3922204 | AC116: 136.6967376 | AD116: 0 | AE116: 0 | AF116: 0 | AG116: 0 | AH116: 0 | AI116: 0 | AJ116: 0 | AK116: 0 | AL116: 0 | AM116: 0 | AN116: 0 | AO116: 0 | AP116: 0 | AQ116: 0 | AR116: 0 | AS116: 0 | AT116: 0 | AU116: 0 | AV116: 0 | AW116: 0
R117: 4.5 | S117: 2.207156673 | T117: 15.65352759 | U117: 28.14081645 | V117: 40.70468816 | W117: 55.08631759 | X117: 68.29681636 | Y117: 80.65304303 | Z117: 94.42065491 | AA117: 108.7817521 | AB117: 122.7659183 | AC117: 136.9839853 | AD117: 0 | AE117: 0 | AF117: 0 | AG117: 0 | AH117: 0 | AI117: 0 | AJ117: 0 | AK117: 0 | AL117: 0 | AM117: 0 | AN117: 0 | AO117: 0 | AP117: 0 | AQ117: 0 | AR117: 0 | AS117: 0 | AT117: 0 | AU117: 0 | AV117: 0 | AW117: 0
R118: 4.6 | S118: 2.185544555 | T118: 15.62841905 | U118: 28.39096124 | V118: 40.62244125 | W118: 55.49189046 | X118: 68.51208963 | Y118: 80.65699349 | Z118: 94.52425038 | AA118: 109.2400852 | AB118: 122.917996 | AC118: 0 | AD118: 0 | AE118: 0 | AF118: 0 | AG118: 0 | AH118: 0 | AI118: 0 | AJ118: 0 | AK118: 0 | AL118: 0 | AM118: 0 | AN118: 0 | AO118: 0 | AP118: 0 | AQ118: 0 | AR118: 0 | AS118: 0 | AT118: 0 | AU118: 0 | AV118: 0 | AW118: 0
R119: 4.7 | S119: 2.225160857 | T119: 15.58218709 | U119: 28.63879047 | V119: 40.48093897 | W119: 55.87168193 | X119: 68.58489715 | Y119: 80.73869769 | Z119: 94.54232419 | AA119: 109.6015286 | AB119: 122.6221851 | AC119: 0 | AD119: 0 | AE119: 0 | AF119: 0 | AG119: 0 | AH119: 0 | AI119: 0 | AJ119: 0 | AK119: 0 | AL119: 0 | AM119: 0 | AN119: 0 | AO119: 0 | AP119: 0 | AQ119: 0 | AR119: 0 | AS119: 0 | AT119: 0 | AU119: 0 | AV119: 0 | AW119: 0
R120: 4.8 | S120: 2.150197901 | T120: 15.51818849 | U120: 28.80284004 | V120: 40.37134085 | W120: 55.84584269 | X120: 68.61071398 | Y120: 80.76601091 | Z120: 94.47129856 | AA120: 109.5110249 | AB120: 122.010027 | AC120: 0 | AD120: 0 | AE120: 0 | AF120: 0 | AG120: 0 | AH120: 0 | AI120: 0 | AJ120: 0 | AK120: 0 | AL120: 0 | AM120: 0 | AN120: 0 | AO120: 0 | AP120: 0 | AQ120: 0 | AR120: 0 | AS120: 0 | AT120: 0 | AU120: 0 | AV120: 0 | AW120: 0
R121: 4.9 | S121: 2.29300423 | T121: 15.43929412 | U121: 28.89138197 | V121: 40.49723112 | W121: 55.76545763 | X121: 68.5882578 | Y121: 80.73801763 | Z121: 94.30577886 | AA121: 109.1834167 | AB121: 122.392528 | AC121: 0 | AD121: 0 | AE121: 0 | AF121: 0 | AG121: 0 | AH121: 0 | AI121: 0 | AJ121: 0 | AK121: 0 | AL121: 0 | AM121: 0 | AN121: 0 | AO121: 0 | AP121: 0 | AQ121: 0 | AR121: 0 | AS121: 0 | AT121: 0 | AU121: 0 | AV121: 0 | AW121: 0
R122: 5 | S122: 2.325116192 | T122: 15.34796398 | U122: 28.96941592 | V122: 40.61667812 | W122: 55.60075703 | X122: 68.57339021 | Y122: 80.77366806 | Z122: 94.23697779 | AA122: 108.7648408 | AB122: 0 | AC122: 0 | AD122: 0 | AE122: 0 | AF122: 0 | AG122: 0 | AH122: 0 | AI122: 0 | AJ122: 0 | AK122: 0 | AL122: 0 | AM122: 0 | AN122: 0 | AO122: 0 | AP122: 0 | AQ122: 0 | AR122: 0 | AS122: 0 | AT122: 0 | AU122: 0 | AV122: 0 | AW122: 0
R123: 5.1 | S123: 2.112719234 | T123: 15.25749346 | U123: 28.97772479 | V123: 40.72514814 | W123: 55.35234174 | X123: 68.51842932 | Y123: 80.78873458 | Z123: 94.22573776 | AA123: 108.1846873 | AB123: 0 | AC123: 0 | AD123: 0 | AE123: 0 | AF123: 0 | AG123: 0 | AH123: 0 | AI123: 0 | AJ123: 0 | AK123: 0 | AL123: 0 | AM123: 0 | AN123: 0 | AO123: 0 | AP123: 0 | AQ123: 0 | AR123: 0 | AS123: 0 | AT123: 0 | AU123: 0 | AV123: 0 | AW123: 0
R124: 5.2 | S124: 2.404328653 | T124: 15.15896888 | U124: 28.81584964 | V124: 40.82288568 | W124: 54.61599484 | X124: 68.41611686 | Y124: 80.75315234 | Z124: 94.14457784 | AA124: 108.4596853 | AB124: 0 | AC124: 0 | AD124: 0 | AE124: 0 | AF124: 0 | AG124: 0 | AH124: 0 | AI124: 0 | AJ124: 0 | AK124: 0 | AL124: 0 | AM124: 0 | AN124: 0 | AO124: 0 | AP124: 0 | AQ124: 0 | AR124: 0 | AS124: 0 | AT124: 0 | AU124: 0 | AV124: 0 | AW124: 0
R125: 5.3 | S125: 2.096642468 | T125: 15.12932157 | U125: 28.60130533 | V125: 40.90949441 | W125: 54.25233492 | X125: 68.09831022 | Y125: 80.66517723 | Z125: 94.23250674 | AA125: 108.6176379 | AB125: 0 | AC125: 0 | AD125: 0 | AE125: 0 | AF125: 0 | AG125: 0 | AH125: 0 | AI125: 0 | AJ125: 0 | AK125: 0 | AL125: 0 | AM125: 0 | AN125: 0 | AO125: 0 | AP125: 0 | AQ125: 0 | AR125: 0 | AS125: 0 | AT125: 0 | AU125: 0 | AV125: 0 | AW125: 0
R126: 5.4 | S126: 2.496132395 | T126: 15.34610438 | U126: 28.3170644 | V126: 40.98594382 | W126: 54.29306971 | X126: 67.71267895 | Y126: 80.91638794 | Z126: 94.83648481 | AA126: 108.7774476 | AB126: 0 | AC126: 0 | AD126: 0 | AE126: 0 | AF126: 0 | AG126: 0 | AH126: 0 | AI126: 0 | AJ126: 0 | AK126: 0 | AL126: 0 | AM126: 0 | AN126: 0 | AO126: 0 | AP126: 0 | AQ126: 0 | AR126: 0 | AS126: 0 | AT126: 0 | AU126: 0 | AV126: 0 | AW126: 0
R127: 5.5 | S127: 2.173421203 | T127: 15.56092347 | U127: 27.92867352 | V127: 41.05256131 | W127: 54.33829757 | X127: 67.81658968 | Y127: 81.42365054 | Z127: 95.42411953 | AA127: 108.8604828 | AB127: 0 | AC127: 0 | AD127: 0 | AE127: 0 | AF127: 0 | AG127: 0 | AH127: 0 | AI127: 0 | AJ127: 0 | AK127: 0 | AL127: 0 | AM127: 0 | AN127: 0 | AO127: 0 | AP127: 0 | AQ127: 0 | AR127: 0 | AS127: 0 | AT127: 0 | AU127: 0 | AV127: 0 | AW127: 0
R128: 5.6 | S128: 2.625564072 | T128: 15.77437345 | U128: 27.91532572 | V128: 41.10964618 | W128: 54.36773858 | X128: 67.93975642 | Y128: 81.92505818 | Z128: 95.89901324 | AA128: 109.1333046 | AB128: 0 | AC128: 0 | AD128: 0 | AE128: 0 | AF128: 0 | AG128: 0 | AH128: 0 | AI128: 0 | AJ128: 0 | AK128: 0 | AL128: 0 | AM128: 0 | AN128: 0 | AO128: 0 | AP128: 0 | AQ128: 0 | AR128: 0 | AS128: 0 | AT128: 0 | AU128: 0 | AV128: 0 | AW128: 0
R129: 5.7 | S129: 2.212124651 | T129: 15.87657046 | U129: 27.96378003 | V129: 41.22982277 | W129: 54.38164089 | X129: 68.04437395 | Y129: 82.42076751 | Z129: 95.98517085 | AA129: 0 | AB129: 0 | AC129: 0 | AD129: 0 | AE129: 0 | AF129: 0 | AG129: 0 | AH129: 0 | AI129: 0 | AJ129: 0 | AK129: 0 | AL129: 0 | AM129: 0 | AN129: 0 | AO129: 0 | AP129: 0 | AQ129: 0 | AR129: 0 | AS129: 0 | AT129: 0 | AU129: 0 | AV129: 0 | AW129: 0
R130: 5.8 | S130: 1.97046511 | T130: 15.92794204 | U130: 28.00797227 | V130: 41.32916071 | W130: 54.38003436 | X130: 68.13206097 | Y130: 82.90949245 | Z130: 96.01039184 | AA130: 0 | AB130: 0 | AC130: 0 | AD130: 0 | AE130: 0 | AF130: 0 | AG130: 0 | AH130: 0 | AI130: 0 | AJ130: 0 | AK130: 0 | AL130: 0 | AM130: 0 | AN130: 0 | AO130: 0 | AP130: 0 | AQ130: 0 | AR130: 0 | AS130: 0 | AT130: 0 | AU130: 0 | AV130: 0 | AW130: 0
R131: 5.9 | S131: 1.810667667 | T131: 15.97414625 | U131: 28.04777429 | V131: 40.95054947 | W131: 54.36292434 | X131: 68.20243888 | Y131: 83.39172339 | Z131: 95.9651034 | AA131: 0 | AB131: 0 | AC131: 0 | AD131: 0 | AE131: 0 | AF131: 0 | AG131: 0 | AH131: 0 | AI131: 0 | AJ131: 0 | AK131: 0 | AL131: 0 | AM131: 0 | AN131: 0 | AO131: 0 | AP131: 0 | AQ131: 0 | AR131: 0 | AS131: 0 | AT131: 0 | AU131: 0 | AV131: 0 | AW131: 0
R132: 6 | S132: 1.826301187 | T132: 16.0157726 | U132: 28.08357971 | V132: 40.72714677 | W132: 54.33023301 | X132: 68.25554279 | Y132: 83.69512634 | Z132: 95.8371187 | AA132: 0 | AB132: 0 | AC132: 0 | AD132: 0 | AE132: 0 | AF132: 0 | AG132: 0 | AH132: 0 | AI132: 0 | AJ132: 0 | AK132: 0 | AL132: 0 | AM132: 0 | AN132: 0 | AO132: 0 | AP132: 0 | AQ132: 0 | AR132: 0 | AS132: 0 | AT132: 0 | AU132: 0 | AV132: 0 | AW132: 0
Q139: Id Map | S139: Torque(Nm)
S140: =S2 -> 0 | T140: =T2 -> 0.1 | U140: 0.2 | V140: 0.3 | W140: 0.4 | X140: 0.5 | Y140: 0.6 | Z140: 0.7 | AA140: 0.8 | AB140: 0.9 | AC140: 1 | AD140: 1.1 | AE140: 1.2 | AF140: 1.3 | AG140: 1.4 | AH140: 1.5 | AI140: 1.6 | AJ140: 1.7 | AK140: 1.8 | AL140: 1.9 | AM140: 2 | AN140: 2.1 | AO140: 2.2 | AP140: 2.3 | AQ140: 2.4 | AR140: 2.5 | AS140: 2.6 | AT140: 2.7 | AU140: 2.8 | AV140: 2.9 | AW140: 3
Q141: Speed(RPM)
R142: =R3 -> 0 | S142: 7.424540571e-05 | T142: 0 | U142: 0 | V142: 0 | W142: 0 | X142: 0 | Y142: 0 | Z142: 0 | AA142: 0 | AB142: 0 | AC142: 0 | AD142: 0 | AE142: 0 | AF142: 0 | AG142: 0 | AH142: 0 | AI142: 0 | AJ142: 0 | AK142: 0 | AL142: 0 | AM142: 0 | AN142: 0 | AO142: 0 | AP142: 0 | AQ142: 0 | AR142: 0 | AS142: 0 | AT142: 0 | AU142: 0 | AV142: 0 | AW142: 0
R143: =R4 -> 0.1 | S143: 0 | T143: 0 | U143: 0 | V143: 0 | W143: 0 | X143: 0 | Y143: 0 | Z143: 0 | AA143: 0 | AB143: 0 | AC143: 0 | AD143: 0 | AE143: 0 | AF143: 0 | AG143: 0 | AH143: 0 | AI143: 0 | AJ143: 0 | AK143: 0 | AL143: 0 | AM143: 0 | AN143: 0 | AO143: 0 | AP143: 0 | AQ143: 0 | AR143: 0 | AS143: 0 | AT143: 0 | AU143: 0 | AV143: 0 | AW143: 0
R144: 0.2 | S144: 0 | T144: 0 | U144: 0 | V144: 0 | W144: 0 | X144: 0 | Y144: 0 | Z144: 0 | AA144: 0 | AB144: 0 | AC144: 0 | AD144: 0 | AE144: 0 | AF144: 0 | AG144: 0 | AH144: 0 | AI144: 0 | AJ144: 0 | AK144: 0 | AL144: 0 | AM144: 0 | AN144: 0 | AO144: 0 | AP144: 0 | AQ144: 0 | AR144: 0 | AS144: 0 | AT144: 0 | AU144: 0 | AV144: 0 | AW144: 0
R145: 0.3 | S145: 0 | T145: 0 | U145: 0 | V145: 0 | W145: 0 | X145: 0 | Y145: 0 | Z145: 0 | AA145: 0 | AB145: 0 | AC145: 0 | AD145: 0 | AE145: 0 | AF145: 0 | AG145: 0 | AH145: 0 | AI145: 0 | AJ145: 0 | AK145: 0 | AL145: 0 | AM145: 0 | AN145: 0 | AO145: 0 | AP145: 0 | AQ145: 0 | AR145: 0 | AS145: 0 | AT145: 0 | AU145: 0 | AV145: 0 | AW145: 0
R146: 0.4 | S146: 0 | T146: 0 | U146: 0 | V146: 0 | W146: 0 | X146: 0 | Y146: 0 | Z146: 0 | AA146: 0 | AB146: 0 | AC146: 0 | AD146: 0 | AE146: 0 | AF146: 0 | AG146: 0 | AH146: 0 | AI146: 0 | AJ146: 0 | AK146: 0 | AL146: 0 | AM146: 0 | AN146: 0 | AO146: 0 | AP146: 0 | AQ146: 0 | AR146: 0 | AS146: 0 | AT146: 0 | AU146: 0 | AV146: 0 | AW146: 0
R147: 0.5 | S147: 0 | T147: 0 | U147: 0 | V147: 0 | W147: 0 | X147: 0 | Y147: 0 | Z147: 0 | AA147: 0 | AB147: 0 | AC147: 0 | AD147: 0 | AE147: 0 | AF147: 0 | AG147: 0 | AH147: 0 | AI147: 0 | AJ147: 0 | AK147: 0 | AL147: 0 | AM147: 0 | AN147: 0 | AO147: 0 | AP147: 0 | AQ147: 0 | AR147: 0 | AS147: 0 | AT147: 0 | AU147: 0 | AV147: 0 | AW147: 0
R148: 0.6 | S148: 0 | T148: 0 | U148: 0 | V148: 0 | W148: 0 | X148: 0 | Y148: 0 | Z148: 0 | AA148: 0 | AB148: 0 | AC148: 0 | AD148: 0 | AE148: 0 | AF148: 0 | AG148: 0 | AH148: 0 | AI148: 0 | AJ148: 0 | AK148: 0 | AL148: 0 | AM148: 0 | AN148: 0 | AO148: 0 | AP148: 0 | AQ148: 0 | AR148: 0 | AS148: 0 | AT148: 0 | AU148: 0 | AV148: 0 | AW148: 0
R149: 0.7 | S149: 0 | T149: 0 | U149: 0 | V149: 0 | W149: 0 | X149: 0 | Y149: 0 | Z149: 0 | AA149: 0 | AB149: 0 | AC149: 0 | AD149: 0 | AE149: 0 | AF149: 0 | AG149: 0 | AH149: 0 | AI149: 0 | AJ149: 0 | AK149: 0 | AL149: 0 | AM149: 0 | AN149: 0 | AO149: 0 | AP149: 0 | AQ149: 0 | AR149: 0 | AS149: 0 | AT149: 0 | AU149: 0 | AV149: 0 | AW149: 0
R150: 0.8 | S150: 0 | T150: 0 | U150: 0 | V150: 0 | W150: 0 | X150: 0 | Y150: 0 | Z150: 0 | AA150: 0 | AB150: 0 | AC150: 0 | AD150: 0 | AE150: 0 | AF150: 0 | AG150: 0 | AH150: 0 | AI150: 0 | AJ150: 0 | AK150: 0 | AL150: 0 | AM150: 0 | AN150: 0 | AO150: 0 | AP150: 0 | AQ150: 0 | AR150: 0 | AS150: 0 | AT150: 0 | AU150: 0 | AV150: 0 | AW150: 0
R151: 0.9 | S151: 0 | T151: 0 | U151: 0 | V151: 0 | W151: 0 | X151: 0 | Y151: 0 | Z151: 0 | AA151: 0 | AB151: 0 | AC151: 0 | AD151: 0 | AE151: 0 | AF151: 0 | AG151: 0 | AH151: 0 | AI151: 0 | AJ151: 0 | AK151: 0 | AL151: 0 | AM151: 0 | AN151: 0 | AO151: 0 | AP151: 0 | AQ151: 0 | AR151: 0 | AS151: 0 | AT151: 0 | AU151: 0 | AV151: 0 | AW151: 0
R152: 1 | S152: 0 | T152: 0 | U152: 0 | V152: 0 | W152: 0 | X152: 0 | Y152: 0 | Z152: 0 | AA152: 0 | AB152: 0 | AC152: 0 | AD152: 0 | AE152: 0 | AF152: 0 | AG152: 0 | AH152: 0 | AI152: 0 | AJ152: 0 | AK152: 0 | AL152: 0 | AM152: 0 | AN152: 0 | AO152: 0 | AP152: 0 | AQ152: 0 | AR152: 0 | AS152: 0 | AT152: 0 | AU152: 0 | AV152: 0 | AW152: 0
R153: 1.1 | S153: 0 | T153: 0 | U153: 0 | V153: 0 | W153: 0 | X153: 0 | Y153: 0 | Z153: 0 | AA153: 0 | AB153: 0 | AC153: 0 | AD153: 0 | AE153: 0 | AF153: 0 | AG153: 0 | AH153: 0 | AI153: 0 | AJ153: 0 | AK153: 0 | AL153: 0 | AM153: 0 | AN153: 0 | AO153: 0 | AP153: 0 | AQ153: 0 | AR153: 0.4356481 | AS153: 0 | AT153: 0 | AU153: 0 | AV153: 0 | AW153: 0
R154: 1.2 | S154: 0 | T154: 0 | U154: 0 | V154: 0 | W154: 0 | X154: 0 | Y154: 0 | Z154: 0 | AA154: 0 | AB154: 0 | AC154: 0 | AD154: 0 | AE154: 0 | AF154: 0 | AG154: 0 | AH154: 0 | AI154: 0 | AJ154: 0 | AK154: 0 | AL154: 0 | AM154: 0 | AN154: 0 | AO154: 0 | AP154: 0 | AQ154: 0 | AR154: 0 | AS154: 0 | AT154: 0 | AU154: 0 | AV154: 0 | AW154: 0
R155: 1.3 | S155: 0 | T155: 0 | U155: 0 | V155: 0 | W155: 0 | X155: 0 | Y155: 0 | Z155: 0 | AA155: 0 | AB155: 0 | AC155: 0 | AD155: 0 | AE155: 0 | AF155: 0 | AG155: 0 | AH155: 0 | AI155: 0 | AJ155: 0 | AK155: 0 | AL155: 0 | AM155: 0 | AN155: 0 | AO155: 0 | AP155: 0 | AQ155: 0 | AR155: 0 | AS155: 0 | AT155: 0 | AU155: 0 | AV155: 0 | AW155: 0
R156: 1.4 | S156: 0 | T156: 0 | U156: 0 | V156: 0 | W156: 0 | X156: 0 | Y156: 0 | Z156: 0 | AA156: 0 | AB156: 0 | AC156: 0 | AD156: 0 | AE156: 0 | AF156: 0 | AG156: 0 | AH156: 0 | AI156: 0 | AJ156: 0 | AK156: 0 | AL156: 0 | AM156: 0 | AN156: 0 | AO156: 0 | AP156: 0 | AQ156: 0 | AR156: 0 | AS156: 0 | AT156: 0 | AU156: 0 | AV156: 0 | AW156: 0
R157: 1.5 | S157: 0 | T157: 0 | U157: 0 | V157: 0 | W157: 0 | X157: 0 | Y157: 0 | Z157: 0 | AA157: 0 | AB157: 0 | AC157: 0 | AD157: 0 | AE157: 0 | AF157: 0 | AG157: 0 | AH157: 0 | AI157: 0 | AJ157: 0 | AK157: 0 | AL157: 0 | AM157: 0 | AN157: 0 | AO157: 0 | AP157: 0 | AQ157: 0 | AR157: 0 | AS157: 0 | AT157: 0 | AU157: 0 | AV157: 0 | AW157: 0
R158: 1.6 | S158: 0 | T158: 0 | U158: 0 | V158: 0 | W158: 0 | X158: 0 | Y158: 0 | Z158: 0 | AA158: 0 | AB158: 0 | AC158: 0 | AD158: 0 | AE158: 0 | AF158: 0 | AG158: 0 | AH158: 0 | AI158: 0 | AJ158: 0 | AK158: 0 | AL158: 0 | AM158: 0.07416529613 | AN158: 0 | AO158: 0 | AP158: 0 | AQ158: 0 | AR158: 0 | AS158: 0 | AT158: 0 | AU158: 0 | AV158: 9.285664961 | AW158: 155.6300727
R159: 1.7 | S159: 0 | T159: 0 | U159: 0 | V159: 0 | W159: 0 | X159: 0 | Y159: 0 | Z159: 0 | AA159: 0 | AB159: 0 | AC159: 0 | AD159: 0 | AE159: 0 | AF159: 0 | AG159: 0 | AH159: 0 | AI159: 0 | AJ159: 0 | AK159: 0 | AL159: 0 | AM159: 0 | AN159: 0 | AO159: 0 | AP159: 0 | AQ159: 0 | AR159: 0 | AS159: 1.758950701 | AT159: 28.99654923 | AU159: 76.99061713 | AV159: 0 | AW159: 0
R160: 1.8 | S160: 0 | T160: 0 | U160: 0 | V160: 0 | W160: 0 | X160: 0 | Y160: 0 | Z160: 0 | AA160: 0 | AB160: 0 | AC160: 0 | AD160: 0 | AE160: 0 | AF160: 0 | AG160: 0 | AH160: 0 | AI160: 0 | AJ160: 0 | AK160: 0 | AL160: 0 | AM160: 0 | AN160: 0 | AO160: 0 | AP160: 0 | AQ160: 15.06240783 | AR160: 34.80375658 | AS160: 70.4525672 | AT160: 0 | AU160: 0 | AV160: 0 | AW160: 0
R161: 1.9 | S161: 0 | T161: 0 | U161: 0 | V161: 0 | W161: 0 | X161: 0 | Y161: 0 | Z161: 0 | AA161: 0 | AB161: 0 | AC161: 0 | AD161: 0 | AE161: 0 | AF161: 0 | AG161: 0 | AH161: 0 | AI161: 0 | AJ161: 0 | AK161: 0 | AL161: 0 | AM161: 0 | AN161: 8.96641467 | AO161: 23.16553189 | AP161: 41.42780733 | AQ161: 64.23498284 | AR161: 97.77811951 | AS161: 0 | AT161: 0 | AU161: 0 | AV161: 0 | AW161: 0
R162: 2 | S162: 0 | T162: 0 | U162: 0 | V162: 0 | W162: 0 | X162: 0 | Y162: 0 | Z162: 0 | AA162: 0 | AB162: 0 | AC162: 0 | AD162: 0 | AE162: 0 | AF162: 0 | AG162: 0 | AH162: 0 | AI162: 0 | AJ162: 0 | AK162: 5.480643023 | AL162: 15.57111558 | AM162: 27.03441358 | AN162: 41.16322376 | AO162: 60.43495342 | AP162: 86.34014973 | AQ162: 0 | AR162: 0 | AS162: 0 | AT162: 0 | AU162: 0 | AV162: 0 | AW162: 0
R163: 2.1 | S163: 0 | T163: 0 | U163: 0 | V163: 0 | W163: 0 | X163: 0 | Y163: 0 | Z163: 0 | AA163: 0 | AB163: 0 | AC163: 0 | AD163: 0 | AE163: 0 | AF163: 0 | AG163: 0 | AH163: 1.598873384 | AI163: 9.636187405 | AJ163: 18.84132397 | AK163: 29.45893085 | AL163: 41.80110374 | AM163: 55.81089039 | AN163: 74.87012885 | AO163: 110.516414 | AP163: 0 | AQ163: 0 | AR163: 0 | AS163: 0 | AT163: 0 | AU163: 0 | AV163: 0 | AW163: 0
R164: 2.2 | S164: 0 | T164: 0 | U164: 0 | V164: 0 | W164: 0 | X164: 0 | Y164: 0 | Z164: 0 | AA164: 0 | AB164: 0 | AC164: 0 | AD164: 0 | AE164: 0 | AF164: 5.145612301 | AG164: 11.16049265 | AH164: 18.68111843 | AI164: 28.80722285 | AJ164: 39.77980696 | AK164: 52.46643086 | AL164: 67.29077553 | AM164: 87.96939911 | AN164: 127.2241788 | AO164: 0 | AP164: 0 | AQ164: 0 | AR164: 0 | AS164: 0 | AT164: 0 | AU164: 0 | AV164: 0 | AW164: 0
R165: 2.3 | S165: 0 | T165: 0 | U165: 0 | V165: 0 | W165: 0 | X165: 0 | Y165: 0 | Z165: 0 | AA165: 0 | AB165: 0 | AC165: 2.40130104 | AD165: 7.316741407 | AE165: 13.54658383 | AF165: 19.99752125 | AG165: 27.26595842 | AH165: 36.58830941 | AI165: 48.03528697 | AJ165: 60.20553356 | AK165: 74.29210122 | AL165: 93.74694914 | AM165: 128.9727418 | AN165: 0 | AO165: 0 | AP165: 0 | AQ165: 0 | AR165: 0 | AS165: 0 | AT165: 0 | AU165: 0 | AV165: 0 | AW165: 0
R166: 2.4 | S166: 0 | T166: 0 | U166: 0 | V166: 0 | W166: 0 | X166: 0 | Y166: 0.1103379527 | Z166: 2.902386239 | AA166: 6.657278816 | AB166: 10.64584791 | AC166: 15.06187528 | AD166: 20.79378523 | AE166: 27.81068997 | AF166: 35.41547945 | AG166: 43.93612912 | AH166: 54.45005038 | AI166: 66.01991454 | AJ166: 79.40795466 | AK166: 98.15204563 | AL166: 127.3726102 | AM166: 0 | AN166: 0 | AO166: 0 | AP166: 0 | AQ166: 0 | AR166: 0 | AS166: 0 | AT166: 0 | AU166: 0 | AV166: 0 | AW166: 0
R167: 2.5 | S167: 0 | T167: 0 | U167: 0.7057469377 | V167: 3.309977439 | W167: 5.861550518 | X167: 8.031571964 | Y167: 10.97403633 | Z167: 14.86480638 | AA167: 19.58529774 | AB167: 23.74373488 | AC167: 28.79330542 | AD167: 35.08878544 | AE167: 42.76102404 | AF167: 50.05897089 | AG167: 58.75872881 | AH167: 69.66368585 | AI167: 83.08902265 | AJ167: 100.6016991 | AK167: 124.7806586 | AL167: 0 | AM167: 0 | AN167: 0 | AO167: 0 | AP167: 0 | AQ167: 0 | AR167: 0 | AS167: 0 | AT167: 0 | AU167: 0 | AV167: 0 | AW167: 0
R168: 2.6 | S168: 0 | T168: 0 | U168: 10.58880243 | V168: 13.97881186 | W168: 18.71665622 | X168: 22.40904238 | Y168: 25.95394829 | Z168: 28.88756531 | AA168: 32.21475034 | AB168: 36.0747799 | AC168: 40.59657184 | AD168: 46.68872481 | AE168: 54.1092409 | AF168: 62.28622195 | AG168: 72.27791002 | AH168: 84.8972581 | AI168: 101.3602089 | AJ168: 123.2798197 | AK168: 0 | AL168: 0 | AM168: 0 | AN168: 0 | AO168: 0 | AP168: 0 | AQ168: 0 | AR168: 0 | AS168: 0 | AT168: 0 | AU168: 0 | AV168: 0 | AW168: 0
R169: 2.7 | S169: 0 | T169: 0 | U169: 24.36841226 | V169: 29.57992736 | W169: 31.14279616 | X169: 34.51025203 | Y169: 36.75968316 | Z169: 38.81071617 | AA169: 41.36134987 | AB169: 44.16086857 | AC169: 49.84449388 | AD169: 56.96070395 | AE169: 65.25325035 | AF169: 74.57094642 | AG169: 85.76111013 | AH169: 100.3976235 | AI169: 119.6355473 | AJ169: 151.1375939 | AK169: 0 | AL169: 0 | AM169: 0 | AN169: 0 | AO169: 0 | AP169: 0 | AQ169: 0 | AR169: 0 | AS169: 0 | AT169: 0 | AU169: 0 | AV169: 0 | AW169: 0
R170: 2.8 | S170: 470.2301379 | T170: 9.726872384 | U170: 27.61367474 | V170: 37.37321003 | W170: 36.8042627 | X170: 40.77962476 | Y170: 45.18645292 | Z170: 47.79183648 | AA170: 50.58694289 | AB170: 53.95188858 | AC170: 59.35367693 | AD170: 67.36790987 | AE170: 76.43944106 | AF170: 86.52721174 | AG170: 99.31475341 | AH170: 116.0304631 | AI170: 140.8139093 | AJ170: 0 | AK170: 0 | AL170: 0 | AM170: 0 | AN170: 0 | AO170: 0 | AP170: 0 | AQ170: 0 | AR170: 0 | AS170: 0 | AT170: 0 | AU170: 0 | AV170: 0 | AW170: 0
R171: 2.9 | S171: 461.8909714 | T171: 19.1460609 | U171: 44.7081804 | V171: 46.99839226 | W171: 53.38804061 | X171: 46.78689443 | Y171: 51.80882973 | Z171: 56.81239571 | AA171: 60.92829367 | AB171: 64.44038111 | AC171: 69.8793156 | AD171: 78.07370993 | AE171: 87.28355514 | AF171: 98.41611543 | AG171: 113.0993415 | AH171: 134.0253875 | AI171: 182.1825939 | AJ171: 0 | AK171: 0 | AL171: 0 | AM171: 0 | AN171: 0 | AO171: 0 | AP171: 0 | AQ171: 0 | AR171: 0 | AS171: 0 | AT171: 0 | AU171: 0 | AV171: 0 | AW171: 0
R172: 3 | S172: 27.03120988 | T172: 27.69296445 | U172: 55.33209404 | V172: 52.63967747 | W172: 58.80766601 | X172: 61.02475959 | Y172: 59.6322861 | Z172: 64.52413935 | AA172: 69.14995734 | AB172: 74.25683809 | AC172: 80.25996863 | AD172: 88.03772105 | AE172: 97.59543015 | AF172: 110.4367708 | AG172: 128.2414239 | AH172: 156.3040247 | AI172: 0 | AJ172: 0 | AK172: 0 | AL172: 0 | AM172: 0 | AN172: 0 | AO172: 0 | AP172: 0 | AQ172: 0 | AR172: 0 | AS172: 0 | AT172: 0 | AU172: 0 | AV172: 0 | AW172: 0
R173: 3.1 | S173: 446.860424 | T173: 35.3116188 | U173: 61.98709445 | V173: 57.57114664 | W173: 63.76019513 | X173: 67.16265312 | Y173: 68.81492921 | Z173: 71.86705672 | AA173: 76.5437755 | AB173: 81.8133024 | AC173: 88.31512545 | AD173: 96.82535406 | AE173: 107.8341683 | AF173: 123.1006549 | AG173: 145.1670431 | AH173: 0 | AI173: 0 | AJ173: 0 | AK173: 0 | AL173: 0 | AM173: 0 | AN173: 0 | AO173: 0 | AP173: 0 | AQ173: 0 | AR173: 0 | AS173: 0 | AT173: 0 | AU173: 0 | AV173: 0 | AW173: 0
R174: 3.2 | S174: 440.0639404 | T174: 42.19248686 | U174: 64.08130383 | V174: 63.73112605 | W174: 67.95461862 | X174: 73.42230709 | Y174: 74.73383739 | Z174: 79.33251393 | AA174: 83.22057294 | AB174: 89.20180826 | AC174: 96.49906491 | AD174: 105.7002829 | AE174: 118.4328701 | AF174: 136.2448344 | AG174: 165.8608954 | AH174: 0 | AI174: 0 | AJ174: 0 | AK174: 0 | AL174: 0 | AM174: 0 | AN174: 0 | AO174: 0 | AP174: 0 | AQ174: 0 | AR174: 0 | AS174: 0 | AT174: 0 | AU174: 0 | AV174: 0 | AW174: 0
R175: 3.3 | S175: 47.96675424 | T175: 48.50904695 | U175: 66.14761177 | V175: 73.26674245 | W175: 75.11423121 | X175: 78.91541484 | Y175: 81.25224002 | Z175: 85.88108386 | AA175: 90.5752029 | AB175: 96.69387545 | AC175: 104.5320556 | AD175: 114.8770274 | AE175: 129.3767055 | AF175: 150.766731 | AG175: 0 | AH175: 0 | AI175: 0 | AJ175: 0 | AK175: 0 | AL175: 0 | AM175: 0 | AN175: 0 | AO175: 0 | AP175: 0 | AQ175: 0 | AR175: 0 | AS175: 0 | AT175: 0 | AU175: 0 | AV175: 0 | AW175: 0
R176: 3.4 | S176: 427.6930576 | T176: 54.30075762 | U176: 68.18402648 | V176: 75.75011855 | W176: 83.32191914 | X176: 83.73724859 | Y176: 86.75958544 | Z176: 91.85451871 | AA176: 96.98104601 | AB176: 103.5420456 | AC176: 112.7091512 | AD176: 124.3177721 | AE176: 140.6726148 | AF176: 166.8630603 | AG176: 0 | AH176: 0 | AI176: 0 | AJ176: 0 | AK176: 0 | AL176: 0 | AM176: 0 | AN176: 0 | AO176: 0 | AP176: 0 | AQ176: 0 | AR176: 0 | AS176: 0 | AT176: 0 | AU176: 0 | AV176: 0 | AW176: 0
R177: 3.5 | S177: 59.22023557 | T177: 59.82918403 | U177: 85.16527646 | V177: 79.11509583 | W177: 87.27167621 | X177: 89.66722379 | Y177: 92.70551178 | Z177: 97.87178272 | AA177: 103.37487 | AB177: 110.0967421 | AC177: 119.9602765 | AD177: 132.9325616 | AE177: 152.5318874 | AF177: 189.9946797 | AG177: 0 | AH177: 0 | AI177: 0 | AJ177: 0 | AK177: 0 | AL177: 0 | AM177: 0 | AN177: 0 | AO177: 0 | AP177: 0 | AQ177: 0 | AR177: 0 | AS177: 0 | AT177: 0 | AU177: 0 | AV177: 0 | AW177: 0
R178: 3.6 | S178: 64.42601315 | T178: 65.05137868 | U178: 91.05615838 | V178: 82.66774748 | W178: 91.47580677 | X178: 93.61397246 | Y178: 97.76282104 | Z178: 103.9019587 | AA178: 109.7220159 | AB178: 116.7644172 | AC178: 126.8208005 | AD178: 142.0528577 | AE178: 165.3912796 | AF178: 0 | AG178: 0 | AH178: 0 | AI178: 0 | AJ178: 0 | AK178: 0 | AL178: 0 | AM178: 0 | AN178: 0 | AO178: 0 | AP178: 0 | AQ178: 0 | AR178: 0 | AS178: 0 | AT178: 0 | AU178: 0 | AV178: 0 | AW178: 0
R179: 3.7 | S179: 69.28801117 | T179: 69.94157948 | U179: 93.81620878 | V179: 86.48826499 | W179: 95.65530622 | X179: 97.58195867 | Y179: 101.218687 | Z179: 108.7494786 | AA179: 115.0964321 | AB179: 122.9663844 | AC179: 134.0006779 | AD179: 151.7921598 | AE179: 180.0377874 | AF179: 0 | AG179: 0 | AH179: 0 | AI179: 0 | AJ179: 0 | AK179: 0 | AL179: 0 | AM179: 0 | AN179: 0 | AO179: 0 | AP179: 0 | AQ179: 0 | AR179: 0 | AS179: 0 | AT179: 0 | AU179: 0 | AV179: 0 | AW179: 0
R180: 3.8 | S180: 73.84002624 | T180: 74.47696737 | U180: 96.63270835 | V180: 90.70131358 | W180: 99.80350498 | X180: 101.7137129 | Y180: 104.9238568 | Z180: 113.3786921 | AA180: 120.6179491 | AB180: 129.2676956 | AC180: 141.7663922 | AD180: 162.1719314 | AE180: 0 | AF180: 0 | AG180: 0 | AH180: 0 | AI180: 0 | AJ180: 0 | AK180: 0 | AL180: 0 | AM180: 0 | AN180: 0 | AO180: 0 | AP180: 0 | AQ180: 0 | AR180: 0 | AS180: 0 | AT180: 0 | AU180: 0 | AV180: 0 | AW180: 0
R181: 3.9 | S181: 402.4087111 | T181: 78.72981095 | U181: 99.61473182 | V181: 95.70372782 | W181: 104.3378063 | X181: 106.0786407 | Y181: 108.6221607 | Z181: 117.5718186 | AA181: 126.2432957 | AB181: 135.6567627 | AC181: 149.7967887 | AD181: 173.1444464 | AE181: 0 | AF181: 0 | AG181: 0 | AH181: 0 | AI181: 0 | AJ181: 0 | AK181: 0 | AL181: 0 | AM181: 0 | AN181: 0 | AO181: 0 | AP181: 0 | AQ181: 0 | AR181: 0 | AS181: 0 | AT181: 0 | AU181: 0 | AV181: 0 | AW181: 0
R182: 4 | S182: 82.12117507 | T182: 82.72084904 | U182: 102.7371937 | V182: 105.3288905 | W182: 109.4453527 | X182: 110.748049 | Y182: 113.2252537 | Z182: 121.8208368 | AA182: 131.342043 | AB182: 142.2659385 | AC182: 158.0694455 | AD182: 186.9601445 | AE182: 0 | AF182: 0 | AG182: 0 | AH182: 0 | AI182: 0 | AJ182: 0 | AK182: 0 | AL182: 0 | AM182: 0 | AN182: 0 | AO182: 0 | AP182: 0 | AQ182: 0 | AR182: 0 | AS182: 0 | AT182: 0 | AU182: 0 | AV182: 0 | AW182: 0
R183: 4.1 | S183: 394.0792003 | T183: 86.47356268 | U183: 105.9655468 | V183: 108.8961511 | W183: 115.4827178 | X183: 115.8259225 | Y183: 118.1565722 | Z183: 126.1395295 | AA183: 136.3255489 | AB183: 148.5289095 | AC183: 166.2916065 | AD183: 0 | AE183: 0 | AF183: 0 | AG183: 0 | AH183: 0 | AI183: 0 | AJ183: 0 | AK183: 0 | AL183: 0 | AM183: 0 | AN183: 0 | AO183: 0 | AP183: 0 | AQ183: 0 | AR183: 0 | AS183: 0 | AT183: 0 | AU183: 0 | AV183: 0 | AW183: 0
R184: 4.2 | S184: 390.2223181 | T184: 90.01864617 | U184: 109.3597715 | V184: 112.7668406 | W184: 117.3589149 | X184: 120.643668 | Y184: 123.3457458 | Z184: 130.53145 | AA184: 141.39286 | AB184: 154.7529753 | AC184: 175.1112325 | AD184: 0 | AE184: 0 | AF184: 0 | AG184: 0 | AH184: 0 | AI184: 0 | AJ184: 0 | AK184: 0 | AL184: 0 | AM184: 0 | AN184: 0 | AO184: 0 | AP184: 0 | AQ184: 0 | AR184: 0 | AS184: 0 | AT184: 0 | AU184: 0 | AV184: 0 | AW184: 0
R185: 4.3 | S185: 92.82293583 | T185: 93.43049337 | U185: 113.0956676 | V185: 116.5665441 | W185: 119.1698424 | X185: 124.2001363 | Y185: 128.885449 | Z185: 135.3667008 | AA185: 146.5448537 | AB185: 160.5887702 | AC185: 184.9281029 | AD185: 0 | AE185: 0 | AF185: 0 | AG185: 0 | AH185: 0 | AI185: 0 | AJ185: 0 | AK185: 0 | AL185: 0 | AM185: 0 | AN185: 0 | AO185: 0 | AP185: 0 | AQ185: 0 | AR185: 0 | AS185: 0 | AT185: 0 | AU185: 0 | AV185: 0 | AW185: 0
R186: 4.4 | S186: 383.0408691 | T186: 96.63533098 | U186: 117.3559736 | V186: 120.7529033 | W186: 120.909555 | X186: 126.1463874 | Y186: 133.2404925 | Z186: 140.2701823 | AA186: 150.8697804 | AB186: 166.8216542 | AC186: 197.0589809 | AD186: 0 | AE186: 0 | AF186: 0 | AG186: 0 | AH186: 0 | AI186: 0 | AJ186: 0 | AK186: 0 | AL186: 0 | AM186: 0 | AN186: 0 | AO186: 0 | AP186: 0 | AQ186: 0 | AR186: 0 | AS186: 0 | AT186: 0 | AU186: 0 | AV186: 0 | AW186: 0
R187: 4.5 | S187: 379.6923754 | T187: 99.67728579 | U187: 118.8141895 | V187: 124.4680803 | W187: 122.5973006 | X187: 128.0489625 | Y187: 136.8915447 | Z187: 144.2911087 | AA187: 155.3408047 | AB187: 173.5156275 | AC187: 215.7889471 | AD187: 0 | AE187: 0 | AF187: 0 | AG187: 0 | AH187: 0 | AI187: 0 | AJ187: 0 | AK187: 0 | AL187: 0 | AM187: 0 | AN187: 0 | AO187: 0 | AP187: 0 | AQ187: 0 | AR187: 0 | AS187: 0 | AT187: 0 | AU187: 0 | AV187: 0 | AW187: 0
R188: 4.6 | S188: 376.4911723 | T188: 102.5659788 | U188: 119.7957778 | V188: 128.0143185 | W188: 124.2018111 | X188: 130.7240465 | Y188: 140.4597798 | Z188: 148.3613871 | AA188: 159.9802151 | AB188: 180.8364078 | AC188: 0 | AD188: 0 | AE188: 0 | AF188: 0 | AG188: 0 | AH188: 0 | AI188: 0 | AJ188: 0 | AK188: 0 | AL188: 0 | AM188: 0 | AN188: 0 | AO188: 0 | AP188: 0 | AQ188: 0 | AR188: 0 | AS188: 0 | AT188: 0 | AU188: 0 | AV188: 0 | AW188: 0
R189: 4.7 | S189: 104.6687203 | T189: 105.3125953 | U189: 120.6989242 | V189: 131.7622181 | W189: 125.8204982 | X189: 133.7002929 | Y189: 143.7201943 | Z189: 152.4750696 | AA189: 164.8585553 | AB189: 188.7575443 | AC189: 0 | AD189: 0 | AE189: 0 | AF189: 0 | AG189: 0 | AH189: 0 | AI189: 0 | AJ189: 0 | AK189: 0 | AL189: 0 | AM189: 0 | AN189: 0 | AO189: 0 | AP189: 0 | AQ189: 0 | AR189: 0 | AS189: 0 | AT189: 0 | AU189: 0 | AV189: 0 | AW189: 0
R190: 4.8 | S190: 370.4934311 | T190: 107.9272747 | U190: 122.1885358 | V190: 135.1784073 | W190: 128.8686859 | X190: 136.7080915 | Y190: 147.0090577 | Z190: 156.6955401 | AA190: 170.1932493 | AB190: 197.1228423 | AC190: 0 | AD190: 0 | AE190: 0 | AF190: 0 | AG190: 0 | AH190: 0 | AI190: 0 | AJ190: 0 | AK190: 0 | AL190: 0 | AM190: 0 | AN190: 0 | AO190: 0 | AP190: 0 | AQ190: 0 | AR190: 0 | AS190: 0 | AT190: 0 | AU190: 0 | AV190: 0 | AW190: 0
R191: 4.9 | S191: 109.7733915 | T191: 110.4192275 | U191: 124.1704805 | V191: 137.064289 | W191: 132.0087299 | X191: 139.7548784 | Y191: 150.3214907 | Z191: 161.010137 | AA191: 175.8036595 | AB191: 207.9046417 | AC191: 0 | AD191: 0 | AE191: 0 | AF191: 0 | AG191: 0 | AH191: 0 | AI191: 0 | AJ191: 0 | AK191: 0 | AL191: 0 | AM191: 0 | AN191: 0 | AO191: 0 | AP191: 0 | AQ191: 0 | AR191: 0 | AS191: 0 | AT191: 0 | AU191: 0 | AV191: 0 | AW191: 0
R192: 5 | S192: 112.1523479 | T192: 112.7968381 | U192: 126.203723 | V192: 138.9373463 | W192: 135.3940395 | X192: 142.6977897 | Y192: 153.5552666 | Z192: 165.0693039 | AA192: 181.5671153 | AB192: 0 | AC192: 0 | AD192: 0 | AE192: 0 | AF192: 0 | AG192: 0 | AH192: 0 | AI192: 0 | AJ192: 0 | AK192: 0 | AL192: 0 | AM192: 0 | AN192: 0 | AO192: 0 | AP192: 0 | AQ192: 0 | AR192: 0 | AS192: 0 | AT192: 0 | AU192: 0 | AV192: 0 | AW192: 0
R193: 5.1 | S193: 362.3869035 | T193: 115.2121248 | U193: 128.6470712 | V193: 140.7883878 | W193: 139.0107745 | X193: 145.6801456 | Y193: 156.7976466 | Z193: 168.9387691 | AA193: 187.5073522 | AB193: 0 | AC193: 0 | AD193: 0 | AE193: 0 | AF193: 0 | AG193: 0 | AH193: 0 | AI193: 0 | AJ193: 0 | AK193: 0 | AL193: 0 | AM193: 0 | AN193: 0 | AO193: 0 | AP193: 0 | AQ193: 0 | AR193: 0 | AS193: 0 | AT193: 0 | AU193: 0 | AV193: 0 | AW193: 0
R194: 5.2 | S194: 116.7943248 | T194: 117.5616783 | U194: 132.1974127 | V194: 142.6263512 | W194: 144.3499402 | X194: 148.7096382 | Y194: 160.0868286 | Z194: 172.8661274 | AA194: 192.898587 | AB194: 0 | AC194: 0 | AD194: 0 | AE194: 0 | AF194: 0 | AG194: 0 | AH194: 0 | AI194: 0 | AJ194: 0 | AK194: 0 | AL194: 0 | AM194: 0 | AN194: 0 | AO194: 0 | AP194: 0 | AQ194: 0 | AR194: 0 | AS194: 0 | AT194: 0 | AU194: 0 | AV194: 0 | AW194: 0
R195: 5.3 | S195: 357.497011 | T195: 119.8275115 | U195: 136.0644508 | V195: 144.4316998 | W195: 148.1262448 | X195: 152.2714951 | Y195: 163.4203909 | Z195: 176.4893871 | AA195: 198.7774598 | AB195: 0 | AC195: 0 | AD195: 0 | AE195: 0 | AF195: 0 | AG195: 0 | AH195: 0 | AI195: 0 | AJ195: 0 | AK195: 0 | AL195: 0 | AM195: 0 | AN195: 0 | AO195: 0 | AP195: 0 | AQ195: 0 | AR195: 0 | AS195: 0 | AT195: 0 | AU195: 0 | AV195: 0 | AW195: 0
R196: 5.4 | S196: 121.22963 | T196: 122.0424568 | U196: 140.3982594 | V196: 146.2195236 | W196: 150.2592407 | X196: 155.9042803 | Y196: 165.9162608 | Z196: 179.4080031 | AA196: 205.2451059 | AB196: 0 | AC196: 0 | AD196: 0 | AE196: 0 | AF196: 0 | AG196: 0 | AH196: 0 | AI196: 0 | AJ196: 0 | AK196: 0 | AL196: 0 | AM196: 0 | AN196: 0 | AO196: 0 | AP196: 0 | AQ196: 0 | AR196: 0 | AS196: 0 | AT196: 0 | AU196: 0 | AV196: 0 | AW196: 0
R197: 5.5 | S197: 352.957825 | T197: 124.1752255 | U197: 145.496798 | V197: 147.9908926 | W197: 152.315841 | X197: 158.0971773 | Y197: 167.7863365 | Z197: 182.4896848 | AA197: 212.6826535 | AB197: 0 | AC197: 0 | AD197: 0 | AE197: 0 | AF197: 0 | AG197: 0 | AH197: 0 | AI197: 0 | AJ197: 0 | AK197: 0 | AL197: 0 | AM197: 0 | AN197: 0 | AO197: 0 | AP197: 0 | AQ197: 0 | AR197: 0 | AS197: 0 | AT197: 0 | AU197: 0 | AV197: 0 | AW197: 0
R198: 5.6 | S198: 350.7690366 | T198: 126.2337732 | U198: 147.5064785 | V198: 149.7468369 | W198: 154.3559369 | X198: 160.2845381 | Y198: 169.6863487 | Z198: 185.8815065 | AA198: 222.8089563 | AB198: 0 | AC198: 0 | AD198: 0 | AE198: 0 | AF198: 0 | AG198: 0 | AH198: 0 | AI198: 0 | AJ198: 0 | AK198: 0 | AL198: 0 | AM198: 0 | AN198: 0 | AO198: 0 | AP198: 0 | AQ198: 0 | AR198: 0 | AS198: 0 | AT198: 0 | AU198: 0 | AV198: 0 | AW198: 0
R199: 5.7 | S199: 127.248167 | T199: 128.2000655 | U199: 148.9474893 | V199: 151.1493303 | W199: 156.3994634 | X199: 162.4452398 | Y199: 171.6341124 | Z199: 189.8286417 | AA199: 0 | AB199: 0 | AC199: 0 | AD199: 0 | AE199: 0 | AF199: 0 | AG199: 0 | AH199: 0 | AI199: 0 | AJ199: 0 | AK199: 0 | AL199: 0 | AM199: 0 | AN199: 0 | AO199: 0 | AP199: 0 | AQ199: 0 | AR199: 0 | AS199: 0 | AT199: 0 | AU199: 0 | AV199: 0 | AW199: 0
R200: 5.8 | S200: 129.1022247 | T200: 130.0865057 | U200: 150.37922 | V200: 152.6062282 | W200: 158.4422136 | X200: 164.6176936 | Y200: 173.6133802 | Z200: 193.9679309 | AA200: 0 | AB200: 0 | AC200: 0 | AD200: 0 | AE200: 0 | AF200: 0 | AG200: 0 | AH200: 0 | AI200: 0 | AJ200: 0 | AK200: 0 | AL200: 0 | AM200: 0 | AN200: 0 | AO200: 0 | AP200: 0 | AQ200: 0 | AR200: 0 | AS200: 0 | AT200: 0 | AU200: 0 | AV200: 0 | AW200: 0
R201: 5.9 | S201: 130.8926223 | T201: 131.9048332 | U201: 151.7811521 | V201: 156.4561337 | W201: 160.4862247 | X201: 166.7917687 | Y201: 175.6675422 | Z201: 198.3310116 | AA201: 0 | AB201: 0 | AC201: 0 | AD201: 0 | AE201: 0 | AF201: 0 | AG201: 0 | AH201: 0 | AI201: 0 | AJ201: 0 | AK201: 0 | AL201: 0 | AM201: 0 | AN201: 0 | AO201: 0 | AP201: 0 | AQ201: 0 | AR201: 0 | AS201: 0 | AT201: 0 | AU201: 0 | AV201: 0 | AW201: 0
R202: 6 | S202: 132.6264431 | T202: 133.6601076 | U202: 153.1703216 | V202: 159.480186 | W202: 162.5340952 | X202: 168.9694315 | Y202: 178.0577957 | Z202: 202.9517259 | AA202: 0 | AB202: 0 | AC202: 0 | AD202: 0 | AE202: 0 | AF202: 0 | AG202: 0 | AH202: 0 | AI202: 0 | AJ202: 0 | AK202: 0 | AL202: 0 | AM202: 0 | AN202: 0 | AO202: 0 | AP202: 0 | AQ202: 0 | AR202: 0 | AS202: 0 | AT202: 0 | AU202: 0 | AV202: 0 | AW202: 0
Q209: Watts Total
Q210: Losses Map | S210: Torque(Nm)
S211: =S70 -> 0 | T211: =T70 -> 0.1 | U211: 0.2 | V211: 0.3 | W211: 0.4 | X211: 0.5 | Y211: 0.6 | Z211: 0.7 | AA211: 0.8 | AB211: 0.9 | AC211: 1 | AD211: 1.1 | AE211: 1.2 | AF211: 1.3 | AG211: 1.4 | AH211: 1.5 | AI211: 1.6 | AJ211: 1.7 | AK211: 1.8 | AL211: 1.9 | AM211: 2 | AN211: 2.1 | AO211: 2.2 | AP211: 2.3 | AQ211: 2.4 | AR211: 2.5 | AS211: 2.6 | AT211: 2.7 | AU211: 2.8 | AV211: 2.9 | AW211: 3
Q212: Speed(RPM) | R212: =R3 -> 0 | S212: 1.058998195 | T212: 17.04326921 | U212: 33.02837646 | V212: 74.4364417 | W212: 122.7020432 | X212: 199.8685815 | Y212: 297.9283179 | Z212: 395.9880543 | AA212: 494.0477907 | AB212: 610.1663948 | AC212: 785.1572371 | AD212: 960.1480793 | AE212: 1135.138922 | AF212: 1325.637711 | AG212: 1592.430793 | AH212: 1859.223875 | AI212: 2126.016957 | AJ212: 2444.298206 | AK212: 2833.702203 | AL212: 3223.106199 | AM212: 3638.207935 | AN212: 4302.874849 | AO212: 4967.541764 | AP212: 5632.208678 | AQ212: 6296.875592 | AR212: 6961.542506 | AS212: 8127.101571 | AT212: 9407.811047 | AU212: 10688.52052 | AV212: 12077.57401 | AW212: 14285.1976
R213: =R4 -> 0.1 | S213: 68.9376355 | T213: 86.31059915 | U213: 103.6334493 | V213: 147.9501233 | W213: 197.5453668 | X213: 279.4612917 | Y213: 379.2526849 | Z213: 478.6180225 | AA213: 577.5724457 | AB213: 699.1594405 | AC213: 874.5048034 | AD213: 1049.700725 | AE213: 1224.957991 | AF213: 1422.970674 | AG213: 1690.828421 | AH213: 1957.500776 | AI213: 2224.101231 | AJ213: 2549.932723 | AK213: 2938.995681 | AL213: 3327.995609 | AM213: 3763.222864 | AN213: 4437.140023 | AO213: 5108.3102 | AP213: 5779.497877 | AQ213: 6450.654751 | AR213: 7122.142302 | AS213: 8343.643748 | AT213: 9606.852515 | AU213: 10870.11174 | AV213: 12316.03026 | AW213: 14542.7505
R214: 0.2 | S214: 138.6937548 | T214: 156.5830206 | U214: 174.3990722 | V214: 219.5949755 | W214: 269.9477627 | X214: 352.6736738 | Y214: 453.695368 | Z214: 554.6763538 | AA214: 653.7563717 | AB214: 776.7682626 | AC214: 951.6000593 | AD214: 1127.603653 | AE214: 1303.578468 | AF214: 1503.165016 | AG214: 1771.11661 | AH214: 2038.775459 | AI214: 2304.952068 | AJ214: 2632.807301 | AK214: 3021.712728 | AL214: 3411.816957 | AM214: 3853.177213 | AN214: 4526.283147 | AO214: 5199.429786 | AP214: 5872.638451 | AQ214: 6543.783271 | AR214: 7214.584588 | AS214: 8449.30856 | AT214: 9714.213226 | AU214: 10980.33448 | AV214: 12449.21304 | AW214: 14705.4424
R215: 0.3 | S215: 208.4150792 | T215: 226.7250976 | U215: 245.0623271 | V215: 291.6108931 | W215: 342.3137415 | X215: 425.8222394 | Y215: 526.9965867 | Z215: 628.1119333 | AA215: 728.1211747 | AB215: 854.9807289 | AC215: 1030.956566 | AD215: 1206.417823 | AE215: 1381.780106 | AF215: 1582.345462 | AG215: 1849.580035 | AH215: 2116.418232 | AI215: 2383.141381 | AJ215: 2719.204087 | AK215: 3108.417443 | AL215: 3497.408825 | AM215: 3943.895528 | AN215: 4615.604378 | AO215: 5287.286077 | AP215: 5958.925667 | AQ215: 6630.625267 | AR215: 7306.193599 | AS215: 8560.308266 | AT215: 9825.339797 | AU215: 11090.35259 | AV215: 12580.97447 | AW215: 14836.22045
R216: 0.4 | S216: 289.9151859 | T216: 308.489742 | U216: 327.3137912 | V216: 374.968526 | W216: 425.9808388 | X216: 509.9902261 | Y216: 611.1293755 | Z216: 712.6317644 | AA216: 813.4327489 | AB216: 939.9935791 | AC216: 1117.909613 | AD216: 1294.197004 | AE216: 1468.835149 | AF216: 1668.65406 | AG216: 1935.083577 | AH216: 2202.926913 | AI216: 2475.991907 | AJ216: 2814.568377 | AK216: 3206.505505 | AL216: 3593.819885 | AM216: 4044.302238 | AN216: 4714.491566 | AO216: 5384.869034 | AP216: 6057.95174 | AQ216: 6734.470182 | AR216: 7412.100198 | AS216: 8681.445435 | AT216: 9951.569863 | AU216: 11215.77807 | AV216: 12724.74949 | AW216: 14979.03045
R217: 0.5 | S217: 368.7096548 | T217: 387.6253972 | U217: 406.6175938 | V217: 454.7346032 | W217: 506.4614679 | X217: 590.8774128 | Y217: 692.9774703 | Z217: 795.0537637 | AA217: 895.4369195 | AB217: 1021.416819 | AC217: 1198.697988 | AD217: 1375.510398 | AE217: 1552.129904 | AF217: 1750.837714 | AG217: 2020.924501 | AH217: 2292.815536 | AI217: 2564.486658 | AJ217: 2903.908189 | AK217: 3294.588427 | AL217: 3685.227989 | AM217: 4140.714678 | AN217: 4811.700047 | AO217: 5486.780964 | AP217: 6162.122425 | AQ217: 6837.654531 | AR217: 7523.73488 | AS217: 8794.475714 | AT217: 10065.84383 | AU217: 11337.44079 | AV217: 12865.54355 | AW217: 15126.83952
... 183 more rows

Sheet Extras
A1: .
A2: .
A3: .
A4: .
A5: .
A6: .
A7: .
A8: .
A9: .
A10: .
A11: .
A12: .
A13: .
A14: .
A15: .
A16: .
A17: .
A18: .
A19: .
A20: .
A21: .
A22: .
A23: .
A24: .
A25: .
A26: .
A27: .
A28: .
A29: .
A30: .
A31: .
A32: .
A33: .
A34: .
A35: .
A36: .
A37: .
A38: .
A39: .
A40: .
A41: .
A42: .
A43: .
A44: .
A45: .
A46: .
A47: .
A48: .
A49: .
A50: .
A51: .
A52: .
A53: .
A54: .
A55: .
A56: .
A57: .
A58: .
A59: .
A60: .
A61: .
A62: .
A63: .
A64: .
A65: .
A66: .
A67: .
A68: .
A69: .
A70: .
A71: .
A72: .
A73: .
A74: .
A75: .
A76: .
A77: .
A78: .
A79: .
A80: .
A81: .
A82: .
A83: .
A84: .
A85: .
A86: .
A87: .
A88: .
A89: .
A90: .
A91: .
A92: .
A93: .
A94: .
A95: .
A96: .
A97: .
A98: .
A99: .
A100: .
A101: .
A102: .
A103: .
A104: .
A105: .
A106: .
A107: .
A108: .
A109: .
A110: .
A111: .
A112: .
A113: .
A114: .
A115: .
A116: .
A117: .
A118: .
A119: .
A120: .
A121: .
A122: .
A123: .
A124: .
A125: .
A126: .
A127: .
A128: .
A129: .
A130: .
A131: .
A132: .
A133: .
A134: .
A135: .
A136: .
A137: .
A138: .
A139: .
A140: .
A141: .
A142: .
A143: .
A144: .
A145: .
A146: .
A147: .
A148: .
A149: .
A150: .
A151: .
A152: .
A153: .
A154: .
A155: .
A156: .
A157: .
A158: .
A159: .
A160: .
A161: .
A162: .
A163: .
A164: .
A165: .
A166: .
A167: .
A168: .
A169: .
A170: .
A171: .
A172: .
A173: .
A174: .
A175: .
A176: .
A177: .
A178: .
A179: .
A180: .
A181: .
A182: .
A183: .
A184: .
A185: .
A186: .
A187: .
A188: .
A189: .
A190: .
A191: .
A192: .
A193: .
A194: .
A195: .
A196: .
A197: .
A198: .
A199: .
A200: .
... 800 more rows

Sheet Motor Footnotes
C1: PLEASE NOTE: The information contained in this document may be confidential or privileged. It only should be used or disseminated for the purpose of conducting business with Parker.
C3: This document contains a simulation of a motor and amplifier and possibly other components. The simulation is for reference only. Performance can not be guaranteed until tested and verified. Results can vary significantly if the assumption made while preparing the simulation do not match the real system. Such things as duty cycle, ambient temperatures, and heat management can cause significant derating.
B6: Motor Page Footnotes:
B7: 1 | C7: Assumes motor is mounted to an aluminum plate with dimensions of 10" X 10" X 1/4" aluminum plate for 70mm motor frames or smaller, 12" X 12" X 1/2" for 92mm to 115mm, 12" X 12" X 1" for 142mm to 230mm motor frames, and 21"x21"x1 for 270mm to 320mm motor frames
B8: 2 | C8: Maximum winding temperature is 155°C. Thermal protection device may be at a lower temperature.
B9: 3 | C9: These ratings are valid for Parker Hannifin Drives. Other drives may not achieve the same ratings.
B10: 4 | C10: ±10%
B11: 5 | C11: ±30% @ 1kHz
B12: 6 | C12: Reference only
B13: 7 | C13: The winding temperature at the motor rated speed may be lower than the winding maximum due to feedback or amplifier limitations
B14: 8 | C14: Refer to the productliterature for IP rating
B15: 9 | C15: Measured Lead to Lead
B16: 10 | C16: +12%/-8% using an RMS meter
B17: 11 | C17: Value is a function of temperature, Displayed value is at the temperate in cell MotorSpec1:F46
B18: 12 | C18: Value is measured at room temperature (25oC)
B19: 13 | C19: Stall torque could be up to 20% lower in a true stall condition with no shaft rotation for long periods of time.

Sheet Gearbox Footnotes
B3: Gearbox Page Footnotes:
B4: 1 | C4: See motor rating infromation for motor detail on the assumed thermal situation of the motor
B5: 2 | C5: The Gearbox may have additional and significant losses, especially at high speed opration. The motor may need to be derated by increase the assumed ambient temperature or reducing the thermal resistance of the motor.
B6: 3 | C6: Reference Only.
B7: 4 | C7: Refer to the product literature for IP rating.
B8: 5 | C8: Rating data is calculated at the maximum continous output power point.
B9: 6 | C9: Gearbox Only

Sheet Longvic (hidden)
A1: Speed (rpm) | B1: LV Torq Cont | C1: LV Power Cont | D1: LV Current Cont | G1: LV Adv Ang | P1: LV total Loss | Q1: LV Cu Loss | R1: LV Iron Loss | S1: LV Eff | V1: LV Peak Torq | W1: LV Peak Pow | X1: LV Peak Cur
A2: Speed (rpm) | B2: Continuous Torque (Nm) | C2: Continuous Power (kW) | D2: Continuous Current (Arms) | E2: Iq Current | F2: Id Currrent | G2: Phase Advance (degree) | H2: Voltage (Phase to neutral) | I2: Uq Voltage | J2: Ud Voltage | K2: Voltage Advance (Degree) | L2: BEMF Phase to Neutral (V) | M2: Total Inductance mH | N2: Quadrature Inductance mH | O2: Direct Inductance mH | P2: Total Losses (W) | Q2: Copper Losses (W) | R2: Iron Losses (W) | S2: Efficiency | T2: Drive Losses | U2: Global Efficiency | V2: Peak Torque (Nm) | W2: Peak Power (kW) | X2: Peak Current (Arms) | Y2: Iq Current | Z2: Id Currrent | AA2: Cooper Temperature | AB2: Iron Temperature | AC2: Rotor Temperature | AD2: Rotor Power | AE2: Power Eddy current winding | AF2: Power PWM
A3: N | B3: Ms1 | C3: Ps1 | D3: Is1 | E3: Iqs1 | F3: Ids1 | G3: AvIs1 | H3: Us1 | I3: Uqs1 | J3: Uds1 | K3: AvUs1 | L3: Kecs1 | M3: ls1 | N3: lqs1 | O3: lds1 | P3: pts1 | Q3: pjs1 | R3: pfs1 | S3: Effs1 | T3: Pdriv1 | U3: EffGs1 | V3: Ms3 | W3: Ps3 | X3: Is3 | Y3: Iqs3 | Z3: Ids3 | AA3: Tcopp1 | AB3: Tiron1 | AC3: Trot1 | AD3: Prot1 | AE3: Pecw1 | AF3: Ppmw1
A4: 0.01 | B4: -1 | C4: -1 | D4: -1 | E4: -1 | F4: -1 | G4: -1 | H4: -1 | I4: -1 | J4: -1 | K4: -1 | L4: -1 | M4: -1 | N4: -1 | O4: -1 | P4: -1 | Q4: -1 | R4: -1 | S4: -1 | T4: -1 | U4: -1 | V4: -1 | W4: -1 | X4: -1 | Y4: -1 | Z4: -1 | AA4: -1 | AB4: -1 | AC4: -1 | AD4: -1 | AE4: -1 | AF4: -1
A5: =A4+0.01 -> 0.02 | B5: -1 | C5: -1 | D5: -1 | E5: -1 | F5: -1 | G5: -1 | H5: -1 | I5: -1 | J5: -1 | K5: -1 | L5: -1 | M5: -1 | N5: -1 | O5: -1 | P5: -1 | Q5: -1 | R5: -1 | S5: -1 | T5: -1 | U5: -1 | V5: -1 | W5: -1 | X5: -1 | Y5: -1 | Z5: -1 | AA5: -1 | AB5: -1 | AC5: -1 | AD5: -1 | AE5: -1 | AF5: -1
A6: 0.03 | B6: -1 | C6: -1 | D6: -1 | E6: -1 | F6: -1 | G6: -1 | H6: -1 | I6: -1 | J6: -1 | K6: -1 | L6: -1 | M6: -1 | N6: -1 | O6: -1 | P6: -1 | Q6: -1 | R6: -1 | S6: -1 | T6: -1 | U6: -1 | V6: -1 | W6: -1 | X6: -1 | Y6: -1 | Z6: -1 | AA6: -1 | AB6: -1 | AC6: -1 | AD6: -1 | AE6: -1 | AF6: -1
A7: 0.04 | B7: -1 | C7: -1 | D7: -1 | E7: -1 | F7: -1 | G7: -1 | H7: -1 | I7: -1 | J7: -1 | K7: -1 | L7: -1 | M7: -1 | N7: -1 | O7: -1 | P7: -1 | Q7: -1 | R7: -1 | S7: -1 | T7: -1 | U7: -1 | V7: -1 | W7: -1 | X7: -1 | Y7: -1 | Z7: -1 | AA7: -1 | AB7: -1 | AC7: -1 | AD7: -1 | AE7: -1 | AF7: -1
A8: 0.05 | B8: -1 | C8: -1 | D8: -1 | E8: -1 | F8: -1 | G8: -1 | H8: -1 | I8: -1 | J8: -1 | K8: -1 | L8: -1 | M8: -1 | N8: -1 | O8: -1 | P8: -1 | Q8: -1 | R8: -1 | S8: -1 | T8: -1 | U8: -1 | V8: -1 | W8: -1 | X8: -1 | Y8: -1 | Z8: -1 | AA8: -1 | AB8: -1 | AC8: -1 | AD8: -1 | AE8: -1 | AF8: -1
A9: 0.06 | B9: -1 | C9: -1 | D9: -1 | E9: -1 | F9: -1 | G9: -1 | H9: -1 | I9: -1 | J9: -1 | K9: -1 | L9: -1 | M9: -1 | N9: -1 | O9: -1 | P9: -1 | Q9: -1 | R9: -1 | S9: -1 | T9: -1 | U9: -1 | V9: -1 | W9: -1 | X9: -1 | Y9: -1 | Z9: -1 | AA9: -1 | AB9: -1 | AC9: -1 | AD9: -1 | AE9: -1 | AF9: -1
A10: 0.07 | B10: -1 | C10: -1 | D10: -1 | E10: -1 | F10: -1 | G10: -1 | H10: -1 | I10: -1 | J10: -1 | K10: -1 | L10: -1 | M10: -1 | N10: -1 | O10: -1 | P10: -1 | Q10: -1 | R10: -1 | S10: -1 | T10: -1 | U10: -1 | V10: -1 | W10: -1 | X10: -1 | Y10: -1 | Z10: -1 | AA10: -1 | AB10: -1 | AC10: -1 | AD10: -1 | AE10: -1 | AF10: -1
A11: 0.08 | B11: -1 | C11: -1 | D11: -1 | E11: -1 | F11: -1 | G11: -1 | H11: -1 | I11: -1 | J11: -1 | K11: -1 | L11: -1 | M11: -1 | N11: -1 | O11: -1 | P11: -1 | Q11: -1 | R11: -1 | S11: -1 | T11: -1 | U11: -1 | V11: -1 | W11: -1 | X11: -1 | Y11: -1 | Z11: -1 | AA11: -1 | AB11: -1 | AC11: -1 | AD11: -1 | AE11: -1 | AF11: -1
A12: 0.09 | B12: -1 | C12: -1 | D12: -1 | E12: -1 | F12: -1 | G12: -1 | H12: -1 | I12: -1 | J12: -1 | K12: -1 | L12: -1 | M12: -1 | N12: -1 | O12: -1 | P12: -1 | Q12: -1 | R12: -1 | S12: -1 | T12: -1 | U12: -1 | V12: -1 | W12: -1 | X12: -1 | Y12: -1 | Z12: -1 | AA12: -1 | AB12: -1 | AC12: -1 | AD12: -1 | AE12: -1 | AF12: -1
A13: 0.1 | B13: -1 | C13: -1 | D13: -1 | E13: -1 | F13: -1 | G13: -1 | H13: -1 | I13: -1 | J13: -1 | K13: -1 | L13: -1 | M13: -1 | N13: -1 | O13: -1 | P13: -1 | Q13: -1 | R13: -1 | S13: -1 | T13: -1 | U13: -1 | V13: -1 | W13: -1 | X13: -1 | Y13: -1 | Z13: -1 | AA13: -1 | AB13: -1 | AC13: -1 | AD13: -1 | AE13: -1 | AF13: -1
A14: 0.11 | B14: -1 | C14: -1 | D14: -1 | E14: -1 | F14: -1 | G14: -1 | H14: -1 | I14: -1 | J14: -1 | K14: -1 | L14: -1 | M14: -1 | N14: -1 | O14: -1 | P14: -1 | Q14: -1 | R14: -1 | S14: -1 | T14: -1 | U14: -1 | V14: -1 | W14: -1 | X14: -1 | Y14: -1 | Z14: -1 | AA14: -1 | AB14: -1 | AC14: -1 | AD14: -1 | AE14: -1 | AF14: -1
A15: 0.12 | B15: -1 | C15: -1 | D15: -1 | E15: -1 | F15: -1 | G15: -1 | H15: -1 | I15: -1 | J15: -1 | K15: -1 | L15: -1 | M15: -1 | N15: -1 | O15: -1 | P15: -1 | Q15: -1 | R15: -1 | S15: -1 | T15: -1 | U15: -1 | V15: -1 | W15: -1 | X15: -1 | Y15: -1 | Z15: -1 | AA15: -1 | AB15: -1 | AC15: -1 | AD15: -1 | AE15: -1 | AF15: -1
A16: 0.13 | B16: -1 | C16: -1 | D16: -1 | E16: -1 | F16: -1 | G16: -1 | H16: -1 | I16: -1 | J16: -1 | K16: -1 | L16: -1 | M16: -1 | N16: -1 | O16: -1 | P16: -1 | Q16: -1 | R16: -1 | S16: -1 | T16: -1 | U16: -1 | V16: -1 | W16: -1 | X16: -1 | Y16: -1 | Z16: -1 | AA16: -1 | AB16: -1 | AC16: -1 | AD16: -1 | AE16: -1 | AF16: -1
A17: 0.14 | B17: -1 | C17: -1 | D17: -1 | E17: -1 | F17: -1 | G17: -1 | H17: -1 | I17: -1 | J17: -1 | K17: -1 | L17: -1 | M17: -1 | N17: -1 | O17: -1 | P17: -1 | Q17: -1 | R17: -1 | S17: -1 | T17: -1 | U17: -1 | V17: -1 | W17: -1 | X17: -1 | Y17: -1 | Z17: -1 | AA17: -1 | AB17: -1 | AC17: -1 | AD17: -1 | AE17: -1 | AF17: -1
A18: 0.15 | B18: -1 | C18: -1 | D18: -1 | E18: -1 | F18: -1 | G18: -1 | H18: -1 | I18: -1 | J18: -1 | K18: -1 | L18: -1 | M18: -1 | N18: -1 | O18: -1 | P18: -1 | Q18: -1 | R18: -1 | S18: -1 | T18: -1 | U18: -1 | V18: -1 | W18: -1 | X18: -1 | Y18: -1 | Z18: -1 | AA18: -1 | AB18: -1 | AC18: -1 | AD18: -1 | AE18: -1 | AF18: -1
A19: 0.16 | B19: -1 | C19: -1 | D19: -1 | E19: -1 | F19: -1 | G19: -1 | H19: -1 | I19: -1 | J19: -1 | K19: -1 | L19: -1 | M19: -1 | N19: -1 | O19: -1 | P19: -1 | Q19: -1 | R19: -1 | S19: -1 | T19: -1 | U19: -1 | V19: -1 | W19: -1 | X19: -1 | Y19: -1 | Z19: -1 | AA19: -1 | AB19: -1 | AC19: -1 | AD19: -1 | AE19: -1 | AF19: -1
A20: 0.17 | B20: -1 | C20: -1 | D20: -1 | E20: -1 | F20: -1 | G20: -1 | H20: -1 | I20: -1 | J20: -1 | K20: -1 | L20: -1 | M20: -1 | N20: -1 | O20: -1 | P20: -1 | Q20: -1 | R20: -1 | S20: -1 | T20: -1 | U20: -1 | V20: -1 | W20: -1 | X20: -1 | Y20: -1 | Z20: -1 | AA20: -1 | AB20: -1 | AC20: -1 | AD20: -1 | AE20: -1 | AF20: -1
A21: 0.18 | B21: -1 | C21: -1 | D21: -1 | E21: -1 | F21: -1 | G21: -1 | H21: -1 | I21: -1 | J21: -1 | K21: -1 | L21: -1 | M21: -1 | N21: -1 | O21: -1 | P21: -1 | Q21: -1 | R21: -1 | S21: -1 | T21: -1 | U21: -1 | V21: -1 | W21: -1 | X21: -1 | Y21: -1 | Z21: -1 | AA21: -1 | AB21: -1 | AC21: -1 | AD21: -1 | AE21: -1 | AF21: -1
A22: 0.19 | B22: -1 | C22: -1 | D22: -1 | E22: -1 | F22: -1 | G22: -1 | H22: -1 | I22: -1 | J22: -1 | K22: -1 | L22: -1 | M22: -1 | N22: -1 | O22: -1 | P22: -1 | Q22: -1 | R22: -1 | S22: -1 | T22: -1 | U22: -1 | V22: -1 | W22: -1 | X22: -1 | Y22: -1 | Z22: -1 | AA22: -1 | AB22: -1 | AC22: -1 | AD22: -1 | AE22: -1 | AF22: -1
A23: 0.2 | B23: -1 | C23: -1 | D23: -1 | E23: -1 | F23: -1 | G23: -1 | H23: -1 | I23: -1 | J23: -1 | K23: -1 | L23: -1 | M23: -1 | N23: -1 | O23: -1 | P23: -1 | Q23: -1 | R23: -1 | S23: -1 | T23: -1 | U23: -1 | V23: -1 | W23: -1 | X23: -1 | Y23: -1 | Z23: -1 | AA23: -1 | AB23: -1 | AC23: -1 | AD23: -1 | AE23: -1 | AF23: -1
A24: 0.21 | B24: -1 | C24: -1 | D24: -1 | E24: -1 | F24: -1 | G24: -1 | H24: -1 | I24: -1 | J24: -1 | K24: -1 | L24: -1 | M24: -1 | N24: -1 | O24: -1 | P24: -1 | Q24: -1 | R24: -1 | S24: -1 | T24: -1 | U24: -1 | V24: -1 | W24: -1 | X24: -1 | Y24: -1 | Z24: -1 | AA24: -1 | AB24: -1 | AC24: -1 | AD24: -1 | AE24: -1 | AF24: -1
A25: 0.22 | B25: -1 | C25: -1 | D25: -1 | E25: -1 | F25: -1 | G25: -1 | H25: -1 | I25: -1 | J25: -1 | K25: -1 | L25: -1 | M25: -1 | N25: -1 | O25: -1 | P25: -1 | Q25: -1 | R25: -1 | S25: -1 | T25: -1 | U25: -1 | V25: -1 | W25: -1 | X25: -1 | Y25: -1 | Z25: -1 | AA25: -1 | AB25: -1 | AC25: -1 | AD25: -1 | AE25: -1 | AF25: -1
A26: 0.23 | B26: -1 | C26: -1 | D26: -1 | E26: -1 | F26: -1 | G26: -1 | H26: -1 | I26: -1 | J26: -1 | K26: -1 | L26: -1 | M26: -1 | N26: -1 | O26: -1 | P26: -1 | Q26: -1 | R26: -1 | S26: -1 | T26: -1 | U26: -1 | V26: -1 | W26: -1 | X26: -1 | Y26: -1 | Z26: -1 | AA26: -1 | AB26: -1 | AC26: -1 | AD26: -1 | AE26: -1 | AF26: -1
A27: 0.24 | B27: -1 | C27: -1 | D27: -1 | E27: -1 | F27: -1 | G27: -1 | H27: -1 | I27: -1 | J27: -1 | K27: -1 | L27: -1 | M27: -1 | N27: -1 | O27: -1 | P27: -1 | Q27: -1 | R27: -1 | S27: -1 | T27: -1 | U27: -1 | V27: -1 | W27: -1 | X27: -1 | Y27: -1 | Z27: -1 | AA27: -1 | AB27: -1 | AC27: -1 | AD27: -1 | AE27: -1 | AF27: -1
A28: 0.25 | B28: -1 | C28: -1 | D28: -1 | E28: -1 | F28: -1 | G28: -1 | H28: -1 | I28: -1 | J28: -1 | K28: -1 | L28: -1 | M28: -1 | N28: -1 | O28: -1 | P28: -1 | Q28: -1 | R28: -1 | S28: -1 | T28: -1 | U28: -1 | V28: -1 | W28: -1 | X28: -1 | Y28: -1 | Z28: -1 | AA28: -1 | AB28: -1 | AC28: -1 | AD28: -1 | AE28: -1 | AF28: -1
A29: 0.26 | B29: -1 | C29: -1 | D29: -1 | E29: -1 | F29: -1 | G29: -1 | H29: -1 | I29: -1 | J29: -1 | K29: -1 | L29: -1 | M29: -1 | N29: -1 | O29: -1 | P29: -1 | Q29: -1 | R29: -1 | S29: -1 | T29: -1 | U29: -1 | V29: -1 | W29: -1 | X29: -1 | Y29: -1 | Z29: -1 | AA29: -1 | AB29: -1 | AC29: -1 | AD29: -1 | AE29: -1 | AF29: -1
A30: 0.27 | B30: -1 | C30: -1 | D30: -1 | E30: -1 | F30: -1 | G30: -1 | H30: -1 | I30: -1 | J30: -1 | K30: -1 | L30: -1 | M30: -1 | N30: -1 | O30: -1 | P30: -1 | Q30: -1 | R30: -1 | S30: -1 | T30: -1 | U30: -1 | V30: -1 | W30: -1 | X30: -1 | Y30: -1 | Z30: -1 | AA30: -1 | AB30: -1 | AC30: -1 | AD30: -1 | AE30: -1 | AF30: -1
A31: 0.28 | B31: -1 | C31: -1 | D31: -1 | E31: -1 | F31: -1 | G31: -1 | H31: -1 | I31: -1 | J31: -1 | K31: -1 | L31: -1 | M31: -1 | N31: -1 | O31: -1 | P31: -1 | Q31: -1 | R31: -1 | S31: -1 | T31: -1 | U31: -1 | V31: -1 | W31: -1 | X31: -1 | Y31: -1 | Z31: -1 | AA31: -1 | AB31: -1 | AC31: -1 | AD31: -1 | AE31: -1 | AF31: -1
A32: 0.29 | B32: -1 | C32: -1 | D32: -1 | E32: -1 | F32: -1 | G32: -1 | H32: -1 | I32: -1 | J32: -1 | K32: -1 | L32: -1 | M32: -1 | N32: -1 | O32: -1 | P32: -1 | Q32: -1 | R32: -1 | S32: -1 | T32: -1 | U32: -1 | V32: -1 | W32: -1 | X32: -1 | Y32: -1 | Z32: -1 | AA32: -1 | AB32: -1 | AC32: -1 | AD32: -1 | AE32: -1 | AF32: -1
A33: 0.3 | B33: -1 | C33: -1 | D33: -1 | E33: -1 | F33: -1 | G33: -1 | H33: -1 | I33: -1 | J33: -1 | K33: -1 | L33: -1 | M33: -1 | N33: -1 | O33: -1 | P33: -1 | Q33: -1 | R33: -1 | S33: -1 | T33: -1 | U33: -1 | V33: -1 | W33: -1 | X33: -1 | Y33: -1 | Z33: -1 | AA33: -1 | AB33: -1 | AC33: -1 | AD33: -1 | AE33: -1 | AF33: -1
A34: 0.31 | B34: -1 | C34: -1 | D34: -1 | E34: -1 | F34: -1 | G34: -1 | H34: -1 | I34: -1 | J34: -1 | K34: -1 | L34: -1 | M34: -1 | N34: -1 | O34: -1 | P34: -1 | Q34: -1 | R34: -1 | S34: -1 | T34: -1 | U34: -1 | V34: -1 | W34: -1 | X34: -1 | Y34: -1 | Z34: -1 | AA34: -1 | AB34: -1 | AC34: -1 | AD34: -1 | AE34: -1 | AF34: -1
A35: 0.32 | B35: -1 | C35: -1 | D35: -1 | E35: -1 | F35: -1 | G35: -1 | H35: -1 | I35: -1 | J35: -1 | K35: -1 | L35: -1 | M35: -1 | N35: -1 | O35: -1 | P35: -1 | Q35: -1 | R35: -1 | S35: -1 | T35: -1 | U35: -1 | V35: -1 | W35: -1 | X35: -1 | Y35: -1 | Z35: -1 | AA35: -1 | AB35: -1 | AC35: -1 | AD35: -1 | AE35: -1 | AF35: -1
A36: 0.33 | B36: -1 | C36: -1 | D36: -1 | E36: -1 | F36: -1 | G36: -1 | H36: -1 | I36: -1 | J36: -1 | K36: -1 | L36: -1 | M36: -1 | N36: -1 | O36: -1 | P36: -1 | Q36: -1 | R36: -1 | S36: -1 | T36: -1 | U36: -1 | V36: -1 | W36: -1 | X36: -1 | Y36: -1 | Z36: -1 | AA36: -1 | AB36: -1 | AC36: -1 | AD36: -1 | AE36: -1 | AF36: -1
A37: 0.34 | B37: -1 | C37: -1 | D37: -1 | E37: -1 | F37: -1 | G37: -1 | H37: -1 | I37: -1 | J37: -1 | K37: -1 | L37: -1 | M37: -1 | N37: -1 | O37: -1 | P37: -1 | Q37: -1 | R37: -1 | S37: -1 | T37: -1 | U37: -1 | V37: -1 | W37: -1 | X37: -1 | Y37: -1 | Z37: -1 | AA37: -1 | AB37: -1 | AC37: -1 | AD37: -1 | AE37: -1 | AF37: -1
A38: 0.35 | B38: -1 | C38: -1 | D38: -1 | E38: -1 | F38: -1 | G38: -1 | H38: -1 | I38: -1 | J38: -1 | K38: -1 | L38: -1 | M38: -1 | N38: -1 | O38: -1 | P38: -1 | Q38: -1 | R38: -1 | S38: -1 | T38: -1 | U38: -1 | V38: -1 | W38: -1 | X38: -1 | Y38: -1 | Z38: -1 | AA38: -1 | AB38: -1 | AC38: -1 | AD38: -1 | AE38: -1 | AF38: -1
A39: 0.36 | B39: -1 | C39: -1 | D39: -1 | E39: -1 | F39: -1 | G39: -1 | H39: -1 | I39: -1 | J39: -1 | K39: -1 | L39: -1 | M39: -1 | N39: -1 | O39: -1 | P39: -1 | Q39: -1 | R39: -1 | S39: -1 | T39: -1 | U39: -1 | V39: -1 | W39: -1 | X39: -1 | Y39: -1 | Z39: -1 | AA39: -1 | AB39: -1 | AC39: -1 | AD39: -1 | AE39: -1 | AF39: -1
A40: 0.37 | B40: -1 | C40: -1 | D40: -1 | E40: -1 | F40: -1 | G40: -1 | H40: -1 | I40: -1 | J40: -1 | K40: -1 | L40: -1 | M40: -1 | N40: -1 | O40: -1 | P40: -1 | Q40: -1 | R40: -1 | S40: -1 | T40: -1 | U40: -1 | V40: -1 | W40: -1 | X40: -1 | Y40: -1 | Z40: -1 | AA40: -1 | AB40: -1 | AC40: -1 | AD40: -1 | AE40: -1 | AF40: -1
A41: 0.38 | B41: -1 | C41: -1 | D41: -1 | E41: -1 | F41: -1 | G41: -1 | H41: -1 | I41: -1 | J41: -1 | K41: -1 | L41: -1 | M41: -1 | N41: -1 | O41: -1 | P41: -1 | Q41: -1 | R41: -1 | S41: -1 | T41: -1 | U41: -1 | V41: -1 | W41: -1 | X41: -1 | Y41: -1 | Z41: -1 | AA41: -1 | AB41: -1 | AC41: -1 | AD41: -1 | AE41: -1 | AF41: -1
A42: 0.39 | B42: -1 | C42: -1 | D42: -1 | E42: -1 | F42: -1 | G42: -1 | H42: -1 | I42: -1 | J42: -1 | K42: -1 | L42: -1 | M42: -1 | N42: -1 | O42: -1 | P42: -1 | Q42: -1 | R42: -1 | S42: -1 | T42: -1 | U42: -1 | V42: -1 | W42: -1 | X42: -1 | Y42: -1 | Z42: -1 | AA42: -1 | AB42: -1 | AC42: -1 | AD42: -1 | AE42: -1 | AF42: -1
A43: 0.4 | B43: -1 | C43: -1 | D43: -1 | E43: -1 | F43: -1 | G43: -1 | H43: -1 | I43: -1 | J43: -1 | K43: -1 | L43: -1 | M43: -1 | N43: -1 | O43: -1 | P43: -1 | Q43: -1 | R43: -1 | S43: -1 | T43: -1 | U43: -1 | V43: -1 | W43: -1 | X43: -1 | Y43: -1 | Z43: -1 | AA43: -1 | AB43: -1 | AC43: -1 | AD43: -1 | AE43: -1 | AF43: -1
A44: 0.41 | B44: -1 | C44: -1 | D44: -1 | E44: -1 | F44: -1 | G44: -1 | H44: -1 | I44: -1 | J44: -1 | K44: -1 | L44: -1 | M44: -1 | N44: -1 | O44: -1 | P44: -1 | Q44: -1 | R44: -1 | S44: -1 | T44: -1 | U44: -1 | V44: -1 | W44: -1 | X44: -1 | Y44: -1 | Z44: -1 | AA44: -1 | AB44: -1 | AC44: -1 | AD44: -1 | AE44: -1 | AF44: -1
A45: 0.42 | B45: -1 | C45: -1 | D45: -1 | E45: -1 | F45: -1 | G45: -1 | H45: -1 | I45: -1 | J45: -1 | K45: -1 | L45: -1 | M45: -1 | N45: -1 | O45: -1 | P45: -1 | Q45: -1 | R45: -1 | S45: -1 | T45: -1 | U45: -1 | V45: -1 | W45: -1 | X45: -1 | Y45: -1 | Z45: -1 | AA45: -1 | AB45: -1 | AC45: -1 | AD45: -1 | AE45: -1 | AF45: -1
A46: 0.43 | B46: -1 | C46: -1 | D46: -1 | E46: -1 | F46: -1 | G46: -1 | H46: -1 | I46: -1 | J46: -1 | K46: -1 | L46: -1 | M46: -1 | N46: -1 | O46: -1 | P46: -1 | Q46: -1 | R46: -1 | S46: -1 | T46: -1 | U46: -1 | V46: -1 | W46: -1 | X46: -1 | Y46: -1 | Z46: -1 | AA46: -1 | AB46: -1 | AC46: -1 | AD46: -1 | AE46: -1 | AF46: -1
A47: 0.44 | B47: -1 | C47: -1 | D47: -1 | E47: -1 | F47: -1 | G47: -1 | H47: -1 | I47: -1 | J47: -1 | K47: -1 | L47: -1 | M47: -1 | N47: -1 | O47: -1 | P47: -1 | Q47: -1 | R47: -1 | S47: -1 | T47: -1 | U47: -1 | V47: -1 | W47: -1 | X47: -1 | Y47: -1 | Z47: -1 | AA47: -1 | AB47: -1 | AC47: -1 | AD47: -1 | AE47: -1 | AF47: -1
A48: 0.45 | B48: -1 | C48: -1 | D48: -1 | E48: -1 | F48: -1 | G48: -1 | H48: -1 | I48: -1 | J48: -1 | K48: -1 | L48: -1 | M48: -1 | N48: -1 | O48: -1 | P48: -1 | Q48: -1 | R48: -1 | S48: -1 | T48: -1 | U48: -1 | V48: -1 | W48: -1 | X48: -1 | Y48: -1 | Z48: -1 | AA48: -1 | AB48: -1 | AC48: -1 | AD48: -1 | AE48: -1 | AF48: -1
A49: 0.46 | B49: -1 | C49: -1 | D49: -1 | E49: -1 | F49: -1 | G49: -1 | H49: -1 | I49: -1 | J49: -1 | K49: -1 | L49: -1 | M49: -1 | N49: -1 | O49: -1 | P49: -1 | Q49: -1 | R49: -1 | S49: -1 | T49: -1 | U49: -1 | V49: -1 | W49: -1 | X49: -1 | Y49: -1 | Z49: -1 | AA49: -1 | AB49: -1 | AC49: -1 | AD49: -1 | AE49: -1 | AF49: -1
A50: 0.47 | B50: -1 | C50: -1 | D50: -1 | E50: -1 | F50: -1 | G50: -1 | H50: -1 | I50: -1 | J50: -1 | K50: -1 | L50: -1 | M50: -1 | N50: -1 | O50: -1 | P50: -1 | Q50: -1 | R50: -1 | S50: -1 | T50: -1 | U50: -1 | V50: -1 | W50: -1 | X50: -1 | Y50: -1 | Z50: -1 | AA50: -1 | AB50: -1 | AC50: -1 | AD50: -1 | AE50: -1 | AF50: -1
A51: 0.48 | B51: -1 | C51: -1 | D51: -1 | E51: -1 | F51: -1 | G51: -1 | H51: -1 | I51: -1 | J51: -1 | K51: -1 | L51: -1 | M51: -1 | N51: -1 | O51: -1 | P51: -1 | Q51: -1 | R51: -1 | S51: -1 | T51: -1 | U51: -1 | V51: -1 | W51: -1 | X51: -1 | Y51: -1 | Z51: -1 | AA51: -1 | AB51: -1 | AC51: -1 | AD51: -1 | AE51: -1 | AF51: -1
A52: 0.49 | B52: -1 | C52: -1 | D52: -1 | E52: -1 | F52: -1 | G52: -1 | H52: -1 | I52: -1 | J52: -1 | K52: -1 | L52: -1 | M52: -1 | N52: -1 | O52: -1 | P52: -1 | Q52: -1 | R52: -1 | S52: -1 | T52: -1 | U52: -1 | V52: -1 | W52: -1 | X52: -1 | Y52: -1 | Z52: -1 | AA52: -1 | AB52: -1 | AC52: -1 | AD52: -1 | AE52: -1 | AF52: -1
A53: 0.5 | B53: -1 | C53: -1 | D53: -1 | E53: -1 | F53: -1 | G53: -1 | H53: -1 | I53: -1 | J53: -1 | K53: -1 | L53: -1 | M53: -1 | N53: -1 | O53: -1 | P53: -1 | Q53: -1 | R53: -1 | S53: -1 | T53: -1 | U53: -1 | V53: -1 | W53: -1 | X53: -1 | Y53: -1 | Z53: -1 | AA53: -1 | AB53: -1 | AC53: -1 | AD53: -1 | AE53: -1 | AF53: -1
A54: 0.51 | B54: -1 | C54: -1 | D54: -1 | E54: -1 | F54: -1 | G54: -1 | H54: -1 | I54: -1 | J54: -1 | K54: -1 | L54: -1 | M54: -1 | N54: -1 | O54: -1 | P54: -1 | Q54: -1 | R54: -1 | S54: -1 | T54: -1 | U54: -1 | V54: -1 | W54: -1 | X54: -1 | Y54: -1 | Z54: -1 | AA54: -1 | AB54: -1 | AC54: -1 | AD54: -1 | AE54: -1 | AF54: -1
A55: 0.52 | B55: -1 | C55: -1 | D55: -1 | E55: -1 | F55: -1 | G55: -1 | H55: -1 | I55: -1 | J55: -1 | K55: -1 | L55: -1 | M55: -1 | N55: -1 | O55: -1 | P55: -1 | Q55: -1 | R55: -1 | S55: -1 | T55: -1 | U55: -1 | V55: -1 | W55: -1 | X55: -1 | Y55: -1 | Z55: -1 | AA55: -1 | AB55: -1 | AC55: -1 | AD55: -1 | AE55: -1 | AF55: -1
A56: 0.53 | B56: -1 | C56: -1 | D56: -1 | E56: -1 | F56: -1 | G56: -1 | H56: -1 | I56: -1 | J56: -1 | K56: -1 | L56: -1 | M56: -1 | N56: -1 | O56: -1 | P56: -1 | Q56: -1 | R56: -1 | S56: -1 | T56: -1 | U56: -1 | V56: -1 | W56: -1 | X56: -1 | Y56: -1 | Z56: -1 | AA56: -1 | AB56: -1 | AC56: -1 | AD56: -1 | AE56: -1 | AF56: -1
A57: 0.54 | B57: -1 | C57: -1 | D57: -1 | E57: -1 | F57: -1 | G57: -1 | H57: -1 | I57: -1 | J57: -1 | K57: -1 | L57: -1 | M57: -1 | N57: -1 | O57: -1 | P57: -1 | Q57: -1 | R57: -1 | S57: -1 | T57: -1 | U57: -1 | V57: -1 | W57: -1 | X57: -1 | Y57: -1 | Z57: -1 | AA57: -1 | AB57: -1 | AC57: -1 | AD57: -1 | AE57: -1 | AF57: -1
A58: 0.55 | B58: -1 | C58: -1 | D58: -1 | E58: -1 | F58: -1 | G58: -1 | H58: -1 | I58: -1 | J58: -1 | K58: -1 | L58: -1 | M58: -1 | N58: -1 | O58: -1 | P58: -1 | Q58: -1 | R58: -1 | S58: -1 | T58: -1 | U58: -1 | V58: -1 | W58: -1 | X58: -1 | Y58: -1 | Z58: -1 | AA58: -1 | AB58: -1 | AC58: -1 | AD58: -1 | AE58: -1 | AF58: -1
A59: 0.56 | B59: -1 | C59: -1 | D59: -1 | E59: -1 | F59: -1 | G59: -1 | H59: -1 | I59: -1 | J59: -1 | K59: -1 | L59: -1 | M59: -1 | N59: -1 | O59: -1 | P59: -1 | Q59: -1 | R59: -1 | S59: -1 | T59: -1 | U59: -1 | V59: -1 | W59: -1 | X59: -1 | Y59: -1 | Z59: -1 | AA59: -1 | AB59: -1 | AC59: -1 | AD59: -1 | AE59: -1 | AF59: -1
A60: 0.57 | B60: -1 | C60: -1 | D60: -1 | E60: -1 | F60: -1 | G60: -1 | H60: -1 | I60: -1 | J60: -1 | K60: -1 | L60: -1 | M60: -1 | N60: -1 | O60: -1 | P60: -1 | Q60: -1 | R60: -1 | S60: -1 | T60: -1 | U60: -1 | V60: -1 | W60: -1 | X60: -1 | Y60: -1 | Z60: -1 | AA60: -1 | AB60: -1 | AC60: -1 | AD60: -1 | AE60: -1 | AF60: -1
A61: 0.58 | B61: -1 | C61: -1 | D61: -1 | E61: -1 | F61: -1 | G61: -1 | H61: -1 | I61: -1 | J61: -1 | K61: -1 | L61: -1 | M61: -1 | N61: -1 | O61: -1 | P61: -1 | Q61: -1 | R61: -1 | S61: -1 | T61: -1 | U61: -1 | V61: -1 | W61: -1 | X61: -1 | Y61: -1 | Z61: -1 | AA61: -1 | AB61: -1 | AC61: -1 | AD61: -1 | AE61: -1 | AF61: -1
A62: 0.59 | B62: -1 | C62: -1 | D62: -1 | E62: -1 | F62: -1 | G62: -1 | H62: -1 | I62: -1 | J62: -1 | K62: -1 | L62: -1 | M62: -1 | N62: -1 | O62: -1 | P62: -1 | Q62: -1 | R62: -1 | S62: -1 | T62: -1 | U62: -1 | V62: -1 | W62: -1 | X62: -1 | Y62: -1 | Z62: -1 | AA62: -1 | AB62: -1 | AC62: -1 | AD62: -1 | AE62: -1 | AF62: -1
A63: 0.6 | B63: -1 | C63: -1 | D63: -1 | E63: -1 | F63: -1 | G63: -1 | H63: -1 | I63: -1 | J63: -1 | K63: -1 | L63: -1 | M63: -1 | N63: -1 | O63: -1 | P63: -1 | Q63: -1 | R63: -1 | S63: -1 | T63: -1 | U63: -1 | V63: -1 | W63: -1 | X63: -1 | Y63: -1 | Z63: -1 | AA63: -1 | AB63: -1 | AC63: -1 | AD63: -1 | AE63: -1 | AF63: -1
A64: 0.61 | B64: -1 | C64: -1 | D64: -1 | E64: -1 | F64: -1 | G64: -1 | H64: -1 | I64: -1 | J64: -1 | K64: -1 | L64: -1 | M64: -1 | N64: -1 | O64: -1 | P64: -1 | Q64: -1 | R64: -1 | S64: -1 | T64: -1 | U64: -1 | V64: -1 | W64: -1 | X64: -1 | Y64: -1 | Z64: -1 | AA64: -1 | AB64: -1 | AC64: -1 | AD64: -1 | AE64: -1 | AF64: -1
A65: 0.62 | B65: -1 | C65: -1 | D65: -1 | E65: -1 | F65: -1 | G65: -1 | H65: -1 | I65: -1 | J65: -1 | K65: -1 | L65: -1 | M65: -1 | N65: -1 | O65: -1 | P65: -1 | Q65: -1 | R65: -1 | S65: -1 | T65: -1 | U65: -1 | V65: -1 | W65: -1 | X65: -1 | Y65: -1 | Z65: -1 | AA65: -1 | AB65: -1 | AC65: -1 | AD65: -1 | AE65: -1 | AF65: -1
A66: 0.63 | B66: -1 | C66: -1 | D66: -1 | E66: -1 | F66: -1 | G66: -1 | H66: -1 | I66: -1 | J66: -1 | K66: -1 | L66: -1 | M66: -1 | N66: -1 | O66: -1 | P66: -1 | Q66: -1 | R66: -1 | S66: -1 | T66: -1 | U66: -1 | V66: -1 | W66: -1 | X66: -1 | Y66: -1 | Z66: -1 | AA66: -1 | AB66: -1 | AC66: -1 | AD66: -1 | AE66: -1 | AF66: -1
A67: 0.64 | B67: -1 | C67: -1 | D67: -1 | E67: -1 | F67: -1 | G67: -1 | H67: -1 | I67: -1 | J67: -1 | K67: -1 | L67: -1 | M67: -1 | N67: -1 | O67: -1 | P67: -1 | Q67: -1 | R67: -1 | S67: -1 | T67: -1 | U67: -1 | V67: -1 | W67: -1 | X67: -1 | Y67: -1 | Z67: -1 | AA67: -1 | AB67: -1 | AC67: -1 | AD67: -1 | AE67: -1 | AF67: -1
A68: 0.65 | B68: -1 | C68: -1 | D68: -1 | E68: -1 | F68: -1 | G68: -1 | H68: -1 | I68: -1 | J68: -1 | K68: -1 | L68: -1 | M68: -1 | N68: -1 | O68: -1 | P68: -1 | Q68: -1 | R68: -1 | S68: -1 | T68: -1 | U68: -1 | V68: -1 | W68: -1 | X68: -1 | Y68: -1 | Z68: -1 | AA68: -1 | AB68: -1 | AC68: -1 | AD68: -1 | AE68: -1 | AF68: -1
A69: 0.66 | B69: -1 | C69: -1 | D69: -1 | E69: -1 | F69: -1 | G69: -1 | H69: -1 | I69: -1 | J69: -1 | K69: -1 | L69: -1 | M69: -1 | N69: -1 | O69: -1 | P69: -1 | Q69: -1 | R69: -1 | S69: -1 | T69: -1 | U69: -1 | V69: -1 | W69: -1 | X69: -1 | Y69: -1 | Z69: -1 | AA69: -1 | AB69: -1 | AC69: -1 | AD69: -1 | AE69: -1 | AF69: -1
A70: =A69+0.01 -> 0.67 | B70: -1 | C70: -1 | D70: -1 | E70: -1 | F70: -1 | G70: -1 | H70: -1 | I70: -1 | J70: -1 | K70: -1 | L70: -1 | M70: -1 | N70: -1 | O70: -1 | P70: -1 | Q70: -1 | R70: -1 | S70: -1 | T70: -1 | U70: -1 | V70: -1 | W70: -1 | X70: -1 | Y70: -1 | Z70: -1 | AA70: -1 | AB70: -1 | AC70: -1 | AD70: -1 | AE70: -1 | AF70: -1
A71: 0.68 | B71: -1 | C71: -1 | D71: -1 | E71: -1 | F71: -1 | G71: -1 | H71: -1 | I71: -1 | J71: -1 | K71: -1 | L71: -1 | M71: -1 | N71: -1 | O71: -1 | P71: -1 | Q71: -1 | R71: -1 | S71: -1 | T71: -1 | U71: -1 | V71: -1 | W71: -1 | X71: -1 | Y71: -1 | Z71: -1 | AA71: -1 | AB71: -1 | AC71: -1 | AD71: -1 | AE71: -1 | AF71: -1
A72: 0.69 | B72: -1 | C72: -1 | D72: -1 | E72: -1 | F72: -1 | G72: -1 | H72: -1 | I72: -1 | J72: -1 | K72: -1 | L72: -1 | M72: -1 | N72: -1 | O72: -1 | P72: -1 | Q72: -1 | R72: -1 | S72: -1 | T72: -1 | U72: -1 | V72: -1 | W72: -1 | X72: -1 | Y72: -1 | Z72: -1 | AA72: -1 | AB72: -1 | AC72: -1 | AD72: -1 | AE72: -1 | AF72: -1
A73: 0.7 | B73: -1 | C73: -1 | D73: -1 | E73: -1 | F73: -1 | G73: -1 | H73: -1 | I73: -1 | J73: -1 | K73: -1 | L73: -1 | M73: -1 | N73: -1 | O73: -1 | P73: -1 | Q73: -1 | R73: -1 | S73: -1 | T73: -1 | U73: -1 | V73: -1 | W73: -1 | X73: -1 | Y73: -1 | Z73: -1 | AA73: -1 | AB73: -1 | AC73: -1 | AD73: -1 | AE73: -1 | AF73: -1
A74: 0.71 | B74: -1 | C74: -1 | D74: -1 | E74: -1 | F74: -1 | G74: -1 | H74: -1 | I74: -1 | J74: -1 | K74: -1 | L74: -1 | M74: -1 | N74: -1 | O74: -1 | P74: -1 | Q74: -1 | R74: -1 | S74: -1 | T74: -1 | U74: -1 | V74: -1 | W74: -1 | X74: -1 | Y74: -1 | Z74: -1 | AA74: -1 | AB74: -1 | AC74: -1 | AD74: -1 | AE74: -1 | AF74: -1
A75: 0.72 | B75: -1 | C75: -1 | D75: -1 | E75: -1 | F75: -1 | G75: -1 | H75: -1 | I75: -1 | J75: -1 | K75: -1 | L75: -1 | M75: -1 | N75: -1 | O75: -1 | P75: -1 | Q75: -1 | R75: -1 | S75: -1 | T75: -1 | U75: -1 | V75: -1 | W75: -1 | X75: -1 | Y75: -1 | Z75: -1 | AA75: -1 | AB75: -1 | AC75: -1 | AD75: -1 | AE75: -1 | AF75: -1
A76: 0.73 | B76: -1 | C76: -1 | D76: -1 | E76: -1 | F76: -1 | G76: -1 | H76: -1 | I76: -1 | J76: -1 | K76: -1 | L76: -1 | M76: -1 | N76: -1 | O76: -1 | P76: -1 | Q76: -1 | R76: -1 | S76: -1 | T76: -1 | U76: -1 | V76: -1 | W76: -1 | X76: -1 | Y76: -1 | Z76: -1 | AA76: -1 | AB76: -1 | AC76: -1 | AD76: -1 | AE76: -1 | AF76: -1
A77: 0.74 | B77: -1 | C77: -1 | D77: -1 | E77: -1 | F77: -1 | G77: -1 | H77: -1 | I77: -1 | J77: -1 | K77: -1 | L77: -1 | M77: -1 | N77: -1 | O77: -1 | P77: -1 | Q77: -1 | R77: -1 | S77: -1 | T77: -1 | U77: -1 | V77: -1 | W77: -1 | X77: -1 | Y77: -1 | Z77: -1 | AA77: -1 | AB77: -1 | AC77: -1 | AD77: -1 | AE77: -1 | AF77: -1
A78: 0.75 | B78: -1 | C78: -1 | D78: -1 | E78: -1 | F78: -1 | G78: -1 | H78: -1 | I78: -1 | J78: -1 | K78: -1 | L78: -1 | M78: -1 | N78: -1 | O78: -1 | P78: -1 | Q78: -1 | R78: -1 | S78: -1 | T78: -1 | U78: -1 | V78: -1 | W78: -1 | X78: -1 | Y78: -1 | Z78: -1 | AA78: -1 | AB78: -1 | AC78: -1 | AD78: -1 | AE78: -1 | AF78: -1
A79: 0.76 | B79: -1 | C79: -1 | D79: -1 | E79: -1 | F79: -1 | G79: -1 | H79: -1 | I79: -1 | J79: -1 | K79: -1 | L79: -1 | M79: -1 | N79: -1 | O79: -1 | P79: -1 | Q79: -1 | R79: -1 | S79: -1 | T79: -1 | U79: -1 | V79: -1 | W79: -1 | X79: -1 | Y79: -1 | Z79: -1 | AA79: -1 | AB79: -1 | AC79: -1 | AD79: -1 | AE79: -1 | AF79: -1
A80: 0.77 | B80: -1 | C80: -1 | D80: -1 | E80: -1 | F80: -1 | G80: -1 | H80: -1 | I80: -1 | J80: -1 | K80: -1 | L80: -1 | M80: -1 | N80: -1 | O80: -1 | P80: -1 | Q80: -1 | R80: -1 | S80: -1 | T80: -1 | U80: -1 | V80: -1 | W80: -1 | X80: -1 | Y80: -1 | Z80: -1 | AA80: -1 | AB80: -1 | AC80: -1 | AD80: -1 | AE80: -1 | AF80: -1
A81: 0.78 | B81: -1 | C81: -1 | D81: -1 | E81: -1 | F81: -1 | G81: -1 | H81: -1 | I81: -1 | J81: -1 | K81: -1 | L81: -1 | M81: -1 | N81: -1 | O81: -1 | P81: -1 | Q81: -1 | R81: -1 | S81: -1 | T81: -1 | U81: -1 | V81: -1 | W81: -1 | X81: -1 | Y81: -1 | Z81: -1 | AA81: -1 | AB81: -1 | AC81: -1 | AD81: -1 | AE81: -1 | AF81: -1
A82: 0.79 | B82: -1 | C82: -1 | D82: -1 | E82: -1 | F82: -1 | G82: -1 | H82: -1 | I82: -1 | J82: -1 | K82: -1 | L82: -1 | M82: -1 | N82: -1 | O82: -1 | P82: -1 | Q82: -1 | R82: -1 | S82: -1 | T82: -1 | U82: -1 | V82: -1 | W82: -1 | X82: -1 | Y82: -1 | Z82: -1 | AA82: -1 | AB82: -1 | AC82: -1 | AD82: -1 | AE82: -1 | AF82: -1
A83: 0.8 | B83: -1 | C83: -1 | D83: -1 | E83: -1 | F83: -1 | G83: -1 | H83: -1 | I83: -1 | J83: -1 | K83: -1 | L83: -1 | M83: -1 | N83: -1 | O83: -1 | P83: -1 | Q83: -1 | R83: -1 | S83: -1 | T83: -1 | U83: -1 | V83: -1 | W83: -1 | X83: -1 | Y83: -1 | Z83: -1 | AA83: -1 | AB83: -1 | AC83: -1 | AD83: -1 | AE83: -1 | AF83: -1
A84: 0.81 | B84: -1 | C84: -1 | D84: -1 | E84: -1 | F84: -1 | G84: -1 | H84: -1 | I84: -1 | J84: -1 | K84: -1 | L84: -1 | M84: -1 | N84: -1 | O84: -1 | P84: -1 | Q84: -1 | R84: -1 | S84: -1 | T84: -1 | U84: -1 | V84: -1 | W84: -1 | X84: -1 | Y84: -1 | Z84: -1 | AA84: -1 | AB84: -1 | AC84: -1 | AD84: -1 | AE84: -1 | AF84: -1
A85: 0.82 | B85: -1 | C85: -1 | D85: -1 | E85: -1 | F85: -1 | G85: -1 | H85: -1 | I85: -1 | J85: -1 | K85: -1 | L85: -1 | M85: -1 | N85: -1 | O85: -1 | P85: -1 | Q85: -1 | R85: -1 | S85: -1 | T85: -1 | U85: -1 | V85: -1 | W85: -1 | X85: -1 | Y85: -1 | Z85: -1 | AA85: -1 | AB85: -1 | AC85: -1 | AD85: -1 | AE85: -1 | AF85: -1
A86: 0.83 | B86: -1 | C86: -1 | D86: -1 | E86: -1 | F86: -1 | G86: -1 | H86: -1 | I86: -1 | J86: -1 | K86: -1 | L86: -1 | M86: -1 | N86: -1 | O86: -1 | P86: -1 | Q86: -1 | R86: -1 | S86: -1 | T86: -1 | U86: -1 | V86: -1 | W86: -1 | X86: -1 | Y86: -1 | Z86: -1 | AA86: -1 | AB86: -1 | AC86: -1 | AD86: -1 | AE86: -1 | AF86: -1
A87: 0.84 | B87: -1 | C87: -1 | D87: -1 | E87: -1 | F87: -1 | G87: -1 | H87: -1 | I87: -1 | J87: -1 | K87: -1 | L87: -1 | M87: -1 | N87: -1 | O87: -1 | P87: -1 | Q87: -1 | R87: -1 | S87: -1 | T87: -1 | U87: -1 | V87: -1 | W87: -1 | X87: -1 | Y87: -1 | Z87: -1 | AA87: -1 | AB87: -1 | AC87: -1 | AD87: -1 | AE87: -1 | AF87: -1
A88: 0.85 | B88: -1 | C88: -1 | D88: -1 | E88: -1 | F88: -1 | G88: -1 | H88: -1 | I88: -1 | J88: -1 | K88: -1 | L88: -1 | M88: -1 | N88: -1 | O88: -1 | P88: -1 | Q88: -1 | R88: -1 | S88: -1 | T88: -1 | U88: -1 | V88: -1 | W88: -1 | X88: -1 | Y88: -1 | Z88: -1 | AA88: -1 | AB88: -1 | AC88: -1 | AD88: -1 | AE88: -1 | AF88: -1
A89: 0.86 | B89: -1 | C89: -1 | D89: -1 | E89: -1 | F89: -1 | G89: -1 | H89: -1 | I89: -1 | J89: -1 | K89: -1 | L89: -1 | M89: -1 | N89: -1 | O89: -1 | P89: -1 | Q89: -1 | R89: -1 | S89: -1 | T89: -1 | U89: -1 | V89: -1 | W89: -1 | X89: -1 | Y89: -1 | Z89: -1 | AA89: -1 | AB89: -1 | AC89: -1 | AD89: -1 | AE89: -1 | AF89: -1
A90: 0.87 | B90: -1 | C90: -1 | D90: -1 | E90: -1 | F90: -1 | G90: -1 | H90: -1 | I90: -1 | J90: -1 | K90: -1 | L90: -1 | M90: -1 | N90: -1 | O90: -1 | P90: -1 | Q90: -1 | R90: -1 | S90: -1 | T90: -1 | U90: -1 | V90: -1 | W90: -1 | X90: -1 | Y90: -1 | Z90: -1 | AA90: -1 | AB90: -1 | AC90: -1 | AD90: -1 | AE90: -1 | AF90: -1
A91: 0.88 | B91: -1 | C91: -1 | D91: -1 | E91: -1 | F91: -1 | G91: -1 | H91: -1 | I91: -1 | J91: -1 | K91: -1 | L91: -1 | M91: -1 | N91: -1 | O91: -1 | P91: -1 | Q91: -1 | R91: -1 | S91: -1 | T91: -1 | U91: -1 | V91: -1 | W91: -1 | X91: -1 | Y91: -1 | Z91: -1 | AA91: -1 | AB91: -1 | AC91: -1 | AD91: -1 | AE91: -1 | AF91: -1
A92: 0.89 | B92: -1 | C92: -1 | D92: -1 | E92: -1 | F92: -1 | G92: -1 | H92: -1 | I92: -1 | J92: -1 | K92: -1 | L92: -1 | M92: -1 | N92: -1 | O92: -1 | P92: -1 | Q92: -1 | R92: -1 | S92: -1 | T92: -1 | U92: -1 | V92: -1 | W92: -1 | X92: -1 | Y92: -1 | Z92: -1 | AA92: -1 | AB92: -1 | AC92: -1 | AD92: -1 | AE92: -1 | AF92: -1
A93: 0.9 | B93: -1 | C93: -1 | D93: -1 | E93: -1 | F93: -1 | G93: -1 | H93: -1 | I93: -1 | J93: -1 | K93: -1 | L93: -1 | M93: -1 | N93: -1 | O93: -1 | P93: -1 | Q93: -1 | R93: -1 | S93: -1 | T93: -1 | U93: -1 | V93: -1 | W93: -1 | X93: -1 | Y93: -1 | Z93: -1 | AA93: -1 | AB93: -1 | AC93: -1 | AD93: -1 | AE93: -1 | AF93: -1
A94: 0.91 | B94: -1 | C94: -1 | D94: -1 | E94: -1 | F94: -1 | G94: -1 | H94: -1 | I94: -1 | J94: -1 | K94: -1 | L94: -1 | M94: -1 | N94: -1 | O94: -1 | P94: -1 | Q94: -1 | R94: -1 | S94: -1 | T94: -1 | U94: -1 | V94: -1 | W94: -1 | X94: -1 | Y94: -1 | Z94: -1 | AA94: -1 | AB94: -1 | AC94: -1 | AD94: -1 | AE94: -1 | AF94: -1
A95: 0.92 | B95: -1 | C95: -1 | D95: -1 | E95: -1 | F95: -1 | G95: -1 | H95: -1 | I95: -1 | J95: -1 | K95: -1 | L95: -1 | M95: -1 | N95: -1 | O95: -1 | P95: -1 | Q95: -1 | R95: -1 | S95: -1 | T95: -1 | U95: -1 | V95: -1 | W95: -1 | X95: -1 | Y95: -1 | Z95: -1 | AA95: -1 | AB95: -1 | AC95: -1 | AD95: -1 | AE95: -1 | AF95: -1
A96: 0.93 | B96: -1 | C96: -1 | D96: -1 | E96: -1 | F96: -1 | G96: -1 | H96: -1 | I96: -1 | J96: -1 | K96: -1 | L96: -1 | M96: -1 | N96: -1 | O96: -1 | P96: -1 | Q96: -1 | R96: -1 | S96: -1 | T96: -1 | U96: -1 | V96: -1 | W96: -1 | X96: -1 | Y96: -1 | Z96: -1 | AA96: -1 | AB96: -1 | AC96: -1 | AD96: -1 | AE96: -1 | AF96: -1
A97: 0.94 | B97: -1 | C97: -1 | D97: -1 | E97: -1 | F97: -1 | G97: -1 | H97: -1 | I97: -1 | J97: -1 | K97: -1 | L97: -1 | M97: -1 | N97: -1 | O97: -1 | P97: -1 | Q97: -1 | R97: -1 | S97: -1 | T97: -1 | U97: -1 | V97: -1 | W97: -1 | X97: -1 | Y97: -1 | Z97: -1 | AA97: -1 | AB97: -1 | AC97: -1 | AD97: -1 | AE97: -1 | AF97: -1
A98: 0.95 | B98: -1 | C98: -1 | D98: -1 | E98: -1 | F98: -1 | G98: -1 | H98: -1 | I98: -1 | J98: -1 | K98: -1 | L98: -1 | M98: -1 | N98: -1 | O98: -1 | P98: -1 | Q98: -1 | R98: -1 | S98: -1 | T98: -1 | U98: -1 | V98: -1 | W98: -1 | X98: -1 | Y98: -1 | Z98: -1 | AA98: -1 | AB98: -1 | AC98: -1 | AD98: -1 | AE98: -1 | AF98: -1
A99: 0.96 | B99: -1 | C99: -1 | D99: -1 | E99: -1 | F99: -1 | G99: -1 | H99: -1 | I99: -1 | J99: -1 | K99: -1 | L99: -1 | M99: -1 | N99: -1 | O99: -1 | P99: -1 | Q99: -1 | R99: -1 | S99: -1 | T99: -1 | U99: -1 | V99: -1 | W99: -1 | X99: -1 | Y99: -1 | Z99: -1 | AA99: -1 | AB99: -1 | AC99: -1 | AD99: -1 | AE99: -1 | AF99: -1
A100: 0.97 | B100: -1 | C100: -1 | D100: -1 | E100: -1 | F100: -1 | G100: -1 | H100: -1 | I100: -1 | J100: -1 | K100: -1 | L100: -1 | M100: -1 | N100: -1 | O100: -1 | P100: -1 | Q100: -1 | R100: -1 | S100: -1 | T100: -1 | U100: -1 | V100: -1 | W100: -1 | X100: -1 | Y100: -1 | Z100: -1 | AA100: -1 | AB100: -1 | AC100: -1 | AD100: -1 | AE100: -1 | AF100: -1
A101: 0.98 | B101: -1 | C101: -1 | D101: -1 | E101: -1 | F101: -1 | G101: -1 | H101: -1 | I101: -1 | J101: -1 | K101: -1 | L101: -1 | M101: -1 | N101: -1 | O101: -1 | P101: -1 | Q101: -1 | R101: -1 | S101: -1 | T101: -1 | U101: -1 | V101: -1 | W101: -1 | X101: -1 | Y101: -1 | Z101: -1 | AA101: -1 | AB101: -1 | AC101: -1 | AD101: -1 | AE101: -1 | AF101: -1
A102: 0.99 | B102: -1 | C102: -1 | D102: -1 | E102: -1 | F102: -1 | G102: -1 | H102: -1 | I102: -1 | J102: -1 | K102: -1 | L102: -1 | M102: -1 | N102: -1 | O102: -1 | P102: -1 | Q102: -1 | R102: -1 | S102: -1 | T102: -1 | U102: -1 | V102: -1 | W102: -1 | X102: -1 | Y102: -1 | Z102: -1 | AA102: -1 | AB102: -1 | AC102: -1 | AD102: -1 | AE102: -1 | AF102: -1
A103: 1 | B103: -1 | C103: -1 | D103: -1 | E103: -1 | F103: -1 | G103: -1 | H103: -1 | I103: -1 | J103: -1 | K103: -1 | L103: -1 | M103: -1 | N103: -1 | O103: -1 | P103: -1 | Q103: -1 | R103: -1 | S103: -1 | T103: -1 | U103: -1 | V103: -1 | W103: -1 | X103: -1 | Y103: -1 | Z103: -1 | AA103: -1 | AB103: -1 | AC103: -1 | AD103: -1 | AE103: -1 | AF103: -1
